{"text_format":"1","workbook":"xlsx","n_sheets":56,"sheets":["البيانات","الشيت الرئيسي","R100","R101","R102","R103","R104","R105","R106","R107","R108","R109","R1010","R1011","R1012","R113","R114","R115","R116","R117","R118","R119","R120","R121","R122","R123","R124","R125","R126","R127","R128","R129","R130","R131","R132","R133","R134","R135","R136","R137","R138","R139","R140","R141","R142","R143","R144","R145","R146","R147","R148","R149","R150","فاتورة المشتريات الرئيسية","فواتير المشتريات الكلية","إستدعاء برقم الفاتورة"],"not_rendered":{"charts":0,"images":0,"macros":1,"external_links":0,"defined_names":0,"comments":0,"pivot_tables":0},"unopened":[],"bounds":{"document_bytes":16777216,"sheet_cells":100000,"rows_first":2000,"rows_last":500,"rows_between":2000,"halvings":0,"cell_chars":16384,"cell_head_chars":4096},"cells_cut":0,"cells_raw":0,"read":"whole","date_system":"1900"}

{"sheet":"البيانات","index":0,"n_rows":52,"n_cols":7,"rows_kept":52,"cut":false,"hidden":false,"merged":[]}
["رقم الحافلة ","رقم الرحلة ","نوع الرحلة ","تاريخ الرحلة ","اسم المرشد ","فندق المدينة المنورة ","فندق مكة المكرمة "]
[1,"R100","طيران ","25-9-2018","محمود"]
[1,"R101","حافلات VIP",null,"حذيفه"]
[1,"R102","حافلات سياحية ",null,"علي"]
[2,"R103","طيران ",null,"حذيفه"]
[5,"R104",null,null,"علي"]
[null,"R105"]
[null,"R106"]
[null,"R107"]
[null,"R108"]
[null,"R109"]
[null,"R110"]
[null,"R111"]
[null,"R112"]
[null,"R113"]
[null,"R114"]
[null,"R115"]
[null,"R116"]
[null,"R117"]
[null,"R118"]
[null,"R119"]
[null,"R120"]
[null,"R121"]
[null,"R122"]
[null,"R123"]
[null,"R124"]
[null,"R125"]
[null,"R126"]
[null,"R127"]
[null,"R128"]
[null,"R129"]
[null,"R130"]
[null,"R131"]
[null,"R132"]
[null,"R133"]
[null,"R134"]
[null,"R135"]
[null,"R136"]
[null,"R137"]
[null,"R138"]
[null,"R139"]
[null,"R140"]
[null,"R141"]
[null,"R142"]
[null,"R143"]
[null,"R144"]
[null,"R145"]
[null,"R146"]
[null,"R147"]
[null,"R148"]
[null,"R149"]
[null,"R150"]

{"sheet":"الشيت الرئيسي","index":1,"n_rows":45,"n_cols":12,"rows_kept":45,"cut":false,"hidden":false,"merged":[[44,0,44,9],[10,5,10,6],[5,5,5,6],[6,5,6,6],[8,5,8,6],[9,5,9,6],[10,8,10,9],[10,10,10,11],[5,1,6,3],[0,0,3,11],[8,8,8,9],[8,10,8,11],[9,8,9,9],[9,10,9,11]]}
[]
[]
[]
[]
[]
[null,"قائمة بأسماء المعتمرين  ",null,null,null,"رقم الحافلة"]
[null,null,null,null,null,{"$f":"IFERROR(INDEX(البيانات!$A$2:$A$320,MATCH($B$9,البيانات!$B$2:$B$320,0)),\"\")","v":0}]
[]
["رقم الرحلة","R150",null,"نوع الرحلة",null,{"$f":"IFERROR(VLOOKUP(F7,البيانات!$A$1:$C$6,3,0),\"\")","v":""},null,null,"فندق المدينة "]
[]
["تاريخ الرحلة",{"$f":"IFERROR(VLOOKUP(F7,البيانات!$A$1:$D$6,4,0),\"\")","v":""},null,"اسم المرشد",null,{"$f":"IFERROR(VLOOKUP(F7,البيانات!$A$1:$E$6,5,0),\"\")","v":""},null,null,"فندق مكة "]
[]
[]
["الرقم ","اسم المعتمر ","الجنس ","الجنسية ","رقم الهوية ","رقم جواز السفر ","تاريخ الاصدار ","تاريخ الانتهاء ","اسم المحرم ","نوع الخدمة ","سعر الشراء ","سعر البيع "]
[1,"محمد ","رجل ","مصرى",2135206,1236555211,"2018-01-01","2019-12-10","ننن","طيران",2000,3000]
[2]
[3]
[4]
[5]
[6]
[7]
[8]
[9]
[10]
[11]
[12]
[13]
[14]
[15]
[16]
[17]
[18]
[19]
[20]
[21]
[22]
[23]
[24]
[25]
[26]
[27]
[28]
[29]
[30]
["الاجمالي",null,null,null,null,null,null,null,null,null,2000,3000]

{"sheet":"R100","index":2,"n_rows":45,"n_cols":12,"rows_kept":45,"cut":false,"hidden":false,"merged":[[44,0,44,9],[5,5,5,6],[6,5,6,6],[8,5,8,6],[9,5,9,6],[10,5,10,6]]}
[]
[]
[]
[]
[]
[null,null,null,null,null,"رقم الحافلة"]
[null,null,"حساب الرحلة ",null,null,{"$f":"IFERROR(INDEX(البيانات!$A$2:$A$320,MATCH($B$9,البيانات!$B$2:$B$320,0)),\"\")","v":1}]
[]
["رقم الرحلة","R100",null,"نوع الرحلة",null,{"$f":"IFERROR(VLOOKUP(F7,البيانات!$A$1:$C$6,3,0),\"\")","v":"طيران "}]
[null,null,null,"مدير مسئول"]
["تاريخ الرحلة",{"$f":"IFERROR(IF(VLOOKUP(F7,البيانات!$A$1:$D$6,4,0)=\"\",\"\",VLOOKUP(F7,البيانات!$A$1:$D$6,4,0)),\"\")","v":"25-9-2018"},null,"اسم المرشد",null,{"$f":"IFERROR(VLOOKUP(F7,البيانات!$A$1:$E$6,5,0),\"\")","v":"محمود"}]
[]
[]
["الرقم ","اسم المعتمر ","الجنس ","الجنسية ","رقم الهوية ","رقم جواز السفر ","تاريخ الاصدار ","تاريخ الانتهاء ","اسم المحرم ","نوع الخدمة ","سعر الشراء ","سعر البيع "]
[1,"محمد ","رجل ","مصرى",2135206,1236555211,"2018-01-01","2019-12-10","ننن","طيران",2000,3000]
[2]
[3]
[4]
[5]
[6]
[7]
[8]
[9]
[10]
[11]
[12]
[13]
[14]
[15]
[16]
[17]
[18]
[19]
[20]
[21]
[22]
[23]
[24]
[25]
[26]
[27]
[28]
[29]
[30]
["الاجمالي",null,null,null,null,null,null,null,null,null,2000,3000]

{"sheet":"R101","index":3,"n_rows":45,"n_cols":12,"rows_kept":45,"cut":false,"hidden":false,"merged":[[44,0,44,9],[5,5,5,6],[6,5,6,6],[8,5,8,6],[9,5,9,6],[10,5,10,6]]}
[]
[]
[]
[]
[]
[null,null,null,null,null,"رقم الحافلة"]
[null,null,"حساب الرحلة ",null,null,{"$f":"IFERROR(INDEX(البيانات!$A$2:$A$320,MATCH($B$9,البيانات!$B$2:$B$320,0)),\"\")","v":1}]
[]
["رقم الرحلة","R101",null,"نوع الرحلة",null,{"$f":"IFERROR(VLOOKUP(F7,البيانات!$A$1:$C$6,3,0),\"\")","v":"طيران "}]
[null,null,null,"مدير مسئول"]
["تاريخ الرحلة",{"$f":"IFERROR(IF(VLOOKUP(F7,البيانات!$A$1:$D$6,4,0)=\"\",\"\",VLOOKUP(F7,البيانات!$A$1:$D$6,4,0)),\"\")","v":"25-9-2018"},null,"اسم المرشد",null,{"$f":"IFERROR(VLOOKUP(F7,البيانات!$A$1:$E$6,5,0),\"\")","v":"محمود"}]
[]
[]
["الرقم ","اسم المعتمر ","الجنس ","الجنسية ","رقم الهوية ","رقم جواز السفر ","تاريخ الاصدار ","تاريخ الانتهاء ","اسم المحرم ","نوع الخدمة ","سعر الشراء ","سعر البيع "]
[1,"محمد ","رجل ","مصرى",2135206,1236555211,"2018-01-01","2019-12-10","ننن","طيران",2000,3000]
[2]
[3]
[4]
[5]
[6]
[7]
[8]
[9]
[10]
[11]
[12]
[13]
[14]
[15]
[16]
[17]
[18]
[19]
[20]
[21]
[22]
[23]
[24]
[25]
[26]
[27]
[28]
[29]
[30]
["الاجمالي",null,null,null,null,null,null,null,null,null,2000,3000]

{"sheet":"R102","index":4,"n_rows":45,"n_cols":12,"rows_kept":45,"cut":false,"hidden":false,"merged":[[44,0,44,9],[5,5,5,6],[6,5,6,6],[8,5,8,6],[9,5,9,6],[10,5,10,6]]}
[]
[]
[]
[]
[]
[null,null,null,null,null,"رقم الحافلة"]
[null,null,"حساب الرحلة ",null,null,{"$f":"IFERROR(INDEX(البيانات!$A$2:$A$320,MATCH($B$9,البيانات!$B$2:$B$320,0)),\"\")","v":1}]
[]
["رقم الرحلة","R102",null,"نوع الرحلة",null,{"$f":"IFERROR(VLOOKUP(F7,البيانات!$A$1:$C$6,3,0),\"\")","v":"طيران "}]
[null,null,null,"مدير مسئول"]
["تاريخ الرحلة",{"$f":"IFERROR(IF(VLOOKUP(F7,البيانات!$A$1:$D$6,4,0)=\"\",\"\",VLOOKUP(F7,البيانات!$A$1:$D$6,4,0)),\"\")","v":"25-9-2018"},null,"اسم المرشد",null,{"$f":"IFERROR(VLOOKUP(F7,البيانات!$A$1:$E$6,5,0),\"\")","v":"محمود"}]
[]
[]
["الرقم ","اسم المعتمر ","الجنس ","الجنسية ","رقم الهوية ","رقم جواز السفر ","تاريخ الاصدار ","تاريخ الانتهاء ","اسم المحرم ","نوع الخدمة ","سعر الشراء ","سعر البيع "]
[1,"محمد ","رجل ","مصرى",2135206,1236555211,"2018-01-01","2019-12-10","ننن","طيران",2000,3000]
[2]
[3]
[4]
[5]
[6]
[7]
[8]
[9]
[10]
[11]
[12]
[13]
[14]
[15]
[16]
[17]
[18]
[19]
[20]
[21]
[22]
[23]
[24]
[25]
[26]
[27]
[28]
[29]
[30]
["الاجمالي",null,null,null,null,null,null,null,null,null,2000,3000]

{"sheet":"R103","index":5,"n_rows":45,"n_cols":12,"rows_kept":45,"cut":false,"hidden":false,"merged":[[44,0,44,9],[5,5,5,6],[6,5,6,6],[8,5,8,6],[9,5,9,6],[10,5,10,6]]}
[]
[]
[]
[]
[]
[null,null,null,null,null,"رقم الحافلة"]
[null,null,"حساب الرحلة ",null,null,{"$f":"IFERROR(INDEX(البيانات!$A$2:$A$320,MATCH($B$9,البيانات!$B$2:$B$320,0)),\"\")","v":2}]
[]
["رقم الرحلة","R103",null,"نوع الرحلة",null,{"$f":"IFERROR(VLOOKUP(F7,البيانات!$A$1:$C$6,3,0),\"\")","v":"طيران "}]
[null,null,null,"مدير مسئول"]
["تاريخ الرحلة",{"$f":"IFERROR(IF(VLOOKUP(F7,البيانات!$A$1:$D$6,4,0)=\"\",\"\",VLOOKUP(F7,البيانات!$A$1:$D$6,4,0)),\"\")","v":""},null,"اسم المرشد",null,{"$f":"IFERROR(VLOOKUP(F7,البيانات!$A$1:$E$6,5,0),\"\")","v":"حذيفه"}]
[]
[]
["الرقم ","اسم المعتمر ","الجنس ","الجنسية ","رقم الهوية ","رقم جواز السفر ","تاريخ الاصدار ","تاريخ الانتهاء ","اسم المحرم ","نوع الخدمة ","سعر الشراء ","سعر البيع "]
[1,"محمد ","رجل ","مصرى",2135206,1236555211,"2018-01-01","2019-12-10","ننن","طيران",2000,3000]
[2]
[3]
[4]
[5]
[6]
[7]
[8]
[9]
[10]
[11]
[12]
[13]
[14]
[15]
[16]
[17]
[18]
[19]
[20]
[21]
[22]
[23]
[24]
[25]
[26]
[27]
[28]
[29]
[30]
["الاجمالي",null,null,null,null,null,null,null,null,null,2000,3000]

{"sheet":"R104","index":6,"n_rows":45,"n_cols":12,"rows_kept":45,"cut":false,"hidden":false,"merged":[[44,0,44,9],[5,5,5,6],[6,5,6,6],[8,5,8,6],[9,5,9,6],[10,5,10,6]]}
[]
[]
[]
[]
[]
[null,null,null,null,null,"رقم الحافلة"]
[null,null,"حساب الرحلة ",null,null,{"$f":"IFERROR(INDEX(البيانات!$A$2:$A$320,MATCH($B$9,البيانات!$B$2:$B$320,0)),\"\")","v":5}]
[]
["رقم الرحلة","R104",null,"نوع الرحلة",null,{"$f":"IFERROR(VLOOKUP(F7,البيانات!$A$1:$C$6,3,0),\"\")","v":0}]
[null,null,null,"مدير مسئول"]
["تاريخ الرحلة",{"$f":"IFERROR(IF(VLOOKUP(F7,البيانات!$A$1:$D$6,4,0)=\"\",\"\",VLOOKUP(F7,البيانات!$A$1:$D$6,4,0)),\"\")","v":""},null,"اسم المرشد",null,{"$f":"IFERROR(VLOOKUP(F7,البيانات!$A$1:$E$6,5,0),\"\")","v":"علي"}]
[]
[]
["الرقم ","اسم المعتمر ","الجنس ","الجنسية ","رقم الهوية ","رقم جواز السفر ","تاريخ الاصدار ","تاريخ الانتهاء ","اسم المحرم ","نوع الخدمة ","سعر الشراء ","سعر البيع "]
[1,"محمد ","رجل ","مصرى",2135206,1236555211,"2018-01-01","2019-12-10","ننن","طيران",2000,3000]
[2]
[3]
[4]
[5]
[6]
[7]
[8]
[9]
[10]
[11]
[12]
[13]
[14]
[15]
[16]
[17]
[18]
[19]
[20]
[21]
[22]
[23]
[24]
[25]
[26]
[27]
[28]
[29]
[30]
["الاجمالي",null,null,null,null,null,null,null,null,null,2000,3000]

{"sheet":"R105","index":7,"n_rows":45,"n_cols":12,"rows_kept":45,"cut":false,"hidden":false,"merged":[[44,0,44,9],[5,5,5,6],[6,5,6,6],[8,5,8,6],[9,5,9,6],[10,5,10,6]]}
[]
[]
[]
[]
[]
[null,null,null,null,null,"رقم الحافلة"]
[null,null,"حساب الرحلة ",null,null,{"$f":"IFERROR(INDEX(البيانات!$A$2:$A$320,MATCH($B$9,البيانات!$B$2:$B$320,0)),\"\")","v":0}]
[]
["رقم الرحلة","R105",null,"نوع الرحلة",null,{"$f":"IFERROR(VLOOKUP(F7,البيانات!$A$1:$C$6,3,0),\"\")","v":""}]
[null,null,null,"مدير مسئول"]
["تاريخ الرحلة",{"$f":"IFERROR(IF(VLOOKUP(F7,البيانات!$A$1:$D$6,4,0)=\"\",\"\",VLOOKUP(F7,البيانات!$A$1:$D$6,4,0)),\"\")","v":""},null,"اسم المرشد",null,{"$f":"IFERROR(VLOOKUP(F7,البيانات!$A$1:$E$6,5,0),\"\")","v":""}]
[]
[]
["الرقم ","اسم المعتمر ","الجنس ","الجنسية ","رقم الهوية ","رقم جواز السفر ","تاريخ الاصدار ","تاريخ الانتهاء ","اسم المحرم ","نوع الخدمة ","سعر الشراء ","سعر البيع "]
[1,"محمد ","رجل ","مصرى",2135206,1236555211,"2018-01-01","2019-12-10","ننن","طيران",2000,3000]
[2]
[3]
[4]
[5]
[6]
[7]
[8]
[9]
[10]
[11]
[12]
[13]
[14]
[15]
[16]
[17]
[18]
[19]
[20]
[21]
[22]
[23]
[24]
[25]
[26]
[27]
[28]
[29]
[30]
["الاجمالي",null,null,null,null,null,null,null,null,null,2000,3000]

{"sheet":"R106","index":8,"n_rows":45,"n_cols":12,"rows_kept":45,"cut":false,"hidden":false,"merged":[[44,0,44,9],[5,5,5,6],[6,5,6,6],[8,5,8,6],[9,5,9,6],[10,5,10,6]]}
[]
[]
[]
[]
[]
[null,null,null,null,null,"رقم الحافلة"]
[null,null,"حساب الرحلة ",null,null,{"$f":"IFERROR(INDEX(البيانات!$A$2:$A$320,MATCH($B$9,البيانات!$B$2:$B$320,0)),\"\")","v":0}]
[]
["رقم الرحلة","R106",null,"نوع الرحلة",null,{"$f":"IFERROR(VLOOKUP(F7,البيانات!$A$1:$C$6,3,0),\"\")","v":""}]
[null,null,null,"مدير مسئول"]
["تاريخ الرحلة",{"$f":"IFERROR(IF(VLOOKUP(F7,البيانات!$A$1:$D$6,4,0)=\"\",\"\",VLOOKUP(F7,البيانات!$A$1:$D$6,4,0)),\"\")","v":""},null,"اسم المرشد",null,{"$f":"IFERROR(VLOOKUP(F7,البيانات!$A$1:$E$6,5,0),\"\")","v":""}]
[]
[]
["الرقم ","اسم المعتمر ","الجنس ","الجنسية ","رقم الهوية ","رقم جواز السفر ","تاريخ الاصدار ","تاريخ الانتهاء ","اسم المحرم ","نوع الخدمة ","سعر الشراء ","سعر البيع "]
[1,"محمد ","رجل ","مصرى",2135206,1236555211,"2018-01-01","2019-12-10","ننن","طيران",2000,3000]
[2]
[3]
[4]
[5]
[6]
[7]
[8]
[9]
[10]
[11]
[12]
[13]
[14]
[15]
[16]
[17]
[18]
[19]
[20]
[21]
[22]
[23]
[24]
[25]
[26]
[27]
[28]
[29]
[30]
["الاجمالي",null,null,null,null,null,null,null,null,null,2000,3000]

{"sheet":"R107","index":9,"n_rows":45,"n_cols":12,"rows_kept":45,"cut":false,"hidden":false,"merged":[[44,0,44,9],[5,5,5,6],[6,5,6,6],[8,5,8,6],[9,5,9,6],[10,5,10,6]]}
[]
[]
[]
[]
[]
[null,null,null,null,null,"رقم الحافلة"]
[null,null,"حساب الرحلة ",null,null,{"$f":"IFERROR(INDEX(البيانات!$A$2:$A$320,MATCH($B$9,البيانات!$B$2:$B$320,0)),\"\")","v":0}]
[]
["رقم الرحلة","R107",null,"نوع الرحلة",null,{"$f":"IFERROR(VLOOKUP(F7,البيانات!$A$1:$C$6,3,0),\"\")","v":""}]
[null,null,null,"مدير مسئول"]
["تاريخ الرحلة",{"$f":"IFERROR(IF(VLOOKUP(F7,البيانات!$A$1:$D$6,4,0)=\"\",\"\",VLOOKUP(F7,البيانات!$A$1:$D$6,4,0)),\"\")","v":""},null,"اسم المرشد",null,{"$f":"IFERROR(VLOOKUP(F7,البيانات!$A$1:$E$6,5,0),\"\")","v":""}]
[]
[]
["الرقم ","اسم المعتمر ","الجنس ","الجنسية ","رقم الهوية ","رقم جواز السفر ","تاريخ الاصدار ","تاريخ الانتهاء ","اسم المحرم ","نوع الخدمة ","سعر الشراء ","سعر البيع "]
[1,"محمد ","رجل ","مصرى",2135206,1236555211,"2018-01-01","2019-12-10","ننن","طيران",2000,3000]
[2]
[3]
[4]
[5]
[6]
[7]
[8]
[9]
[10]
[11]
[12]
[13]
[14]
[15]
[16]
[17]
[18]
[19]
[20]
[21]
[22]
[23]
[24]
[25]
[26]
[27]
[28]
[29]
[30]
["الاجمالي",null,null,null,null,null,null,null,null,null,2000,3000]

{"sheet":"R108","index":10,"n_rows":45,"n_cols":12,"rows_kept":45,"cut":false,"hidden":false,"merged":[[44,0,44,9],[5,5,5,6],[6,5,6,6],[8,5,8,6],[9,5,9,6],[10,5,10,6]]}
[]
[]
[]
[]
[]
[null,null,null,null,null,"رقم الحافلة"]
[null,null,"حساب الرحلة ",null,null,{"$f":"IFERROR(INDEX(البيانات!$A$2:$A$320,MATCH($B$9,البيانات!$B$2:$B$320,0)),\"\")","v":0}]
[]
["رقم الرحلة","R108",null,"نوع الرحلة",null,{"$f":"IFERROR(VLOOKUP(F7,البيانات!$A$1:$C$6,3,0),\"\")","v":""}]
[null,null,null,"مدير مسئول"]
["تاريخ الرحلة",{"$f":"IFERROR(IF(VLOOKUP(F7,البيانات!$A$1:$D$6,4,0)=\"\",\"\",VLOOKUP(F7,البيانات!$A$1:$D$6,4,0)),\"\")","v":""},null,"اسم المرشد",null,{"$f":"IFERROR(VLOOKUP(F7,البيانات!$A$1:$E$6,5,0),\"\")","v":""}]
[]
[]
["الرقم ","اسم المعتمر ","الجنس ","الجنسية ","رقم الهوية ","رقم جواز السفر ","تاريخ الاصدار ","تاريخ الانتهاء ","اسم المحرم ","نوع الخدمة ","سعر الشراء ","سعر البيع "]
[1,"محمد ","رجل ","مصرى",2135206,1236555211,"2018-01-01","2019-12-10","ننن","طيران",2000,3000]
[2]
[3]
[4]
[5]
[6]
[7]
[8]
[9]
[10]
[11]
[12]
[13]
[14]
[15]
[16]
[17]
[18]
[19]
[20]
[21]
[22]
[23]
[24]
[25]
[26]
[27]
[28]
[29]
[30]
["الاجمالي",null,null,null,null,null,null,null,null,null,2000,3000]

{"sheet":"R109","index":11,"n_rows":45,"n_cols":12,"rows_kept":45,"cut":false,"hidden":false,"merged":[[44,0,44,9],[5,5,5,6],[6,5,6,6],[8,5,8,6],[9,5,9,6],[10,5,10,6]]}
[]
[]
[]
[]
[]
[null,null,null,null,null,"رقم الحافلة"]
[null,null,"حساب الرحلة ",null,null,{"$f":"IFERROR(INDEX(البيانات!$A$2:$A$320,MATCH($B$9,البيانات!$B$2:$B$320,0)),\"\")","v":0}]
[]
["رقم الرحلة","R109",null,"نوع الرحلة",null,{"$f":"IFERROR(VLOOKUP(F7,البيانات!$A$1:$C$6,3,0),\"\")","v":""}]
[null,null,null,"مدير مسئول"]
["تاريخ الرحلة",{"$f":"IFERROR(IF(VLOOKUP(F7,البيانات!$A$1:$D$6,4,0)=\"\",\"\",VLOOKUP(F7,البيانات!$A$1:$D$6,4,0)),\"\")","v":""},null,"اسم المرشد",null,{"$f":"IFERROR(VLOOKUP(F7,البيانات!$A$1:$E$6,5,0),\"\")","v":""}]
[]
[]
["الرقم ","اسم المعتمر ","الجنس ","الجنسية ","رقم الهوية ","رقم جواز السفر ","تاريخ الاصدار ","تاريخ الانتهاء ","اسم المحرم ","نوع الخدمة ","سعر الشراء ","سعر البيع "]
[1,"محمد ","رجل ","مصرى",2135206,1236555211,"2018-01-01","2019-12-10","ننن","طيران",2000,3000]
[2]
[3]
[4]
[5]
[6]
[7]
[8]
[9]
[10]
[11]
[12]
[13]
[14]
[15]
[16]
[17]
[18]
[19]
[20]
[21]
[22]
[23]
[24]
[25]
[26]
[27]
[28]
[29]
[30]
["الاجمالي",null,null,null,null,null,null,null,null,null,2000,3000]

{"sheet":"R1010","index":12,"n_rows":45,"n_cols":12,"rows_kept":45,"cut":false,"hidden":false,"merged":[[44,0,44,9],[5,5,5,6],[6,5,6,6],[8,5,8,6],[9,5,9,6],[10,5,10,6]]}
[]
[]
[]
[]
[]
[null,null,null,null,null,"رقم الحافلة"]
[null,null,"حساب الرحلة ",null,null,{"$f":"IFERROR(INDEX(البيانات!$A$2:$A$320,MATCH($B$9,البيانات!$B$2:$B$320,0)),\"\")","v":0}]
[]
["رقم الرحلة","R110",null,"نوع الرحلة",null,{"$f":"IFERROR(VLOOKUP(F7,البيانات!$A$1:$C$6,3,0),\"\")","v":""}]
[null,null,null,"مدير مسئول"]
["تاريخ الرحلة",{"$f":"IFERROR(IF(VLOOKUP(F7,البيانات!$A$1:$D$6,4,0)=\"\",\"\",VLOOKUP(F7,البيانات!$A$1:$D$6,4,0)),\"\")","v":""},null,"اسم المرشد",null,{"$f":"IFERROR(VLOOKUP(F7,البيانات!$A$1:$E$6,5,0),\"\")","v":""}]
[]
[]
["الرقم ","اسم المعتمر ","الجنس ","الجنسية ","رقم الهوية ","رقم جواز السفر ","تاريخ الاصدار ","تاريخ الانتهاء ","اسم المحرم ","نوع الخدمة ","سعر الشراء ","سعر البيع "]
[1,"محمد ","رجل ","مصرى",2135206,1236555211,"2018-01-01","2019-12-10","ننن","طيران",2000,3000]
[2]
[3]
[4]
[5]
[6]
[7]
[8]
[9]
[10]
[11]
[12]
[13]
[14]
[15]
[16]
[17]
[18]
[19]
[20]
[21]
[22]
[23]
[24]
[25]
[26]
[27]
[28]
[29]
[30]
["الاجمالي",null,null,null,null,null,null,null,null,null,2000,3000]

{"sheet":"R1011","index":13,"n_rows":45,"n_cols":12,"rows_kept":45,"cut":false,"hidden":false,"merged":[[44,0,44,9],[5,5,5,6],[6,5,6,6],[8,5,8,6],[9,5,9,6],[10,5,10,6]]}
[]
[]
[]
[]
[]
[null,null,null,null,null,"رقم الحافلة"]
[null,null,"حساب الرحلة ",null,null,{"$f":"IFERROR(INDEX(البيانات!$A$2:$A$320,MATCH($B$9,البيانات!$B$2:$B$320,0)),\"\")","v":0}]
[]
["رقم الرحلة","R111",null,"نوع الرحلة",null,{"$f":"IFERROR(VLOOKUP(F7,البيانات!$A$1:$C$6,3,0),\"\")","v":""}]
[null,null,null,"مدير مسئول"]
["تاريخ الرحلة",{"$f":"IFERROR(IF(VLOOKUP(F7,البيانات!$A$1:$D$6,4,0)=\"\",\"\",VLOOKUP(F7,البيانات!$A$1:$D$6,4,0)),\"\")","v":""},null,"اسم المرشد",null,{"$f":"IFERROR(VLOOKUP(F7,البيانات!$A$1:$E$6,5,0),\"\")","v":""}]
[]
[]
["الرقم ","اسم المعتمر ","الجنس ","الجنسية ","رقم الهوية ","رقم جواز السفر ","تاريخ الاصدار ","تاريخ الانتهاء ","اسم المحرم ","نوع الخدمة ","سعر الشراء ","سعر البيع "]
[1,"محمد ","رجل ","مصرى",2135206,1236555211,"2018-01-01","2019-12-10","ننن","طيران",2000,3000]
[2]
[3]
[4]
[5]
[6]
[7]
[8]
[9]
[10]
[11]
[12]
[13]
[14]
[15]
[16]
[17]
[18]
[19]
[20]
[21]
[22]
[23]
[24]
[25]
[26]
[27]
[28]
[29]
[30]
["الاجمالي",null,null,null,null,null,null,null,null,null,2000,3000]

{"sheet":"R1012","index":14,"n_rows":45,"n_cols":12,"rows_kept":45,"cut":false,"hidden":false,"merged":[[44,0,44,9],[5,5,5,6],[6,5,6,6],[8,5,8,6],[9,5,9,6],[10,5,10,6]]}
[]
[]
[]
[]
[]
[null,null,null,null,null,"رقم الحافلة"]
[null,null,"حساب الرحلة ",null,null,{"$f":"IFERROR(INDEX(البيانات!$A$2:$A$320,MATCH($B$9,البيانات!$B$2:$B$320,0)),\"\")","v":0}]
[]
["رقم الرحلة","R112",null,"نوع الرحلة",null,{"$f":"IFERROR(VLOOKUP(F7,البيانات!$A$1:$C$6,3,0),\"\")","v":""}]
[null,null,null,"مدير مسئول"]
["تاريخ الرحلة",{"$f":"IFERROR(IF(VLOOKUP(F7,البيانات!$A$1:$D$6,4,0)=\"\",\"\",VLOOKUP(F7,البيانات!$A$1:$D$6,4,0)),\"\")","v":""},null,"اسم المرشد",null,{"$f":"IFERROR(VLOOKUP(F7,البيانات!$A$1:$E$6,5,0),\"\")","v":""}]
[]
[]
["الرقم ","اسم المعتمر ","الجنس ","الجنسية ","رقم الهوية ","رقم جواز السفر ","تاريخ الاصدار ","تاريخ الانتهاء ","اسم المحرم ","نوع الخدمة ","سعر الشراء ","سعر البيع "]
[1,"محمد ","رجل ","مصرى",2135206,1236555211,"2018-01-01","2019-12-10","ننن","طيران",2000,3000]
[2]
[3]
[4]
[5]
[6]
[7]
[8]
[9]
[10]
[11]
[12]
[13]
[14]
[15]
[16]
[17]
[18]
[19]
[20]
[21]
[22]
[23]
[24]
[25]
[26]
[27]
[28]
[29]
[30]
["الاجمالي",null,null,null,null,null,null,null,null,null,2000,3000]

{"sheet":"R113","index":15,"n_rows":45,"n_cols":12,"rows_kept":45,"cut":false,"hidden":false,"merged":[[44,0,44,9],[5,5,5,6],[6,5,6,6],[8,5,8,6],[9,5,9,6],[10,5,10,6]]}
[]
[]
[]
[]
[]
[null,null,null,null,null,"رقم الحافلة"]
[null,null,"حساب الرحلة ",null,null,{"$f":"IFERROR(INDEX(البيانات!$A$2:$A$320,MATCH($B$9,البيانات!$B$2:$B$320,0)),\"\")","v":0}]
[]
["رقم الرحلة","R113",null,"نوع الرحلة",null,{"$f":"IFERROR(VLOOKUP(F7,البيانات!$A$1:$C$6,3,0),\"\")","v":""}]
[null,null,null,"مدير مسئول"]
["تاريخ الرحلة",{"$f":"IFERROR(IF(VLOOKUP(F7,البيانات!$A$1:$D$6,4,0)=\"\",\"\",VLOOKUP(F7,البيانات!$A$1:$D$6,4,0)),\"\")","v":""},null,"اسم المرشد",null,{"$f":"IFERROR(VLOOKUP(F7,البيانات!$A$1:$E$6,5,0),\"\")","v":""}]
[]
[]
["الرقم ","اسم المعتمر ","الجنس ","الجنسية ","رقم الهوية ","رقم جواز السفر ","تاريخ الاصدار ","تاريخ الانتهاء ","اسم المحرم ","نوع الخدمة ","سعر الشراء ","سعر البيع "]
[1,"محمد ","رجل ","مصرى",2135206,1236555211,"2018-01-01","2019-12-10","ننن","طيران",2000,3000]
[2]
[3]
[4]
[5]
[6]
[7]
[8]
[9]
[10]
[11]
[12]
[13]
[14]
[15]
[16]
[17]
[18]
[19]
[20]
[21]
[22]
[23]
[24]
[25]
[26]
[27]
[28]
[29]
[30]
["الاجمالي",null,null,null,null,null,null,null,null,null,2000,3000]

{"sheet":"R114","index":16,"n_rows":45,"n_cols":12,"rows_kept":45,"cut":false,"hidden":false,"merged":[[44,0,44,9],[5,5,5,6],[6,5,6,6],[8,5,8,6],[9,5,9,6],[10,5,10,6]]}
[]
[]
[]
[]
[]
[null,null,null,null,null,"رقم الحافلة"]
[null,null,"حساب الرحلة ",null,null,{"$f":"IFERROR(INDEX(البيانات!$A$2:$A$320,MATCH($B$9,البيانات!$B$2:$B$320,0)),\"\")","v":0}]
[]
["رقم الرحلة","R114",null,"نوع الرحلة",null,{"$f":"IFERROR(VLOOKUP(F7,البيانات!$A$1:$C$6,3,0),\"\")","v":""}]
[null,null,null,"مدير مسئول"]
["تاريخ الرحلة",{"$f":"IFERROR(IF(VLOOKUP(F7,البيانات!$A$1:$D$6,4,0)=\"\",\"\",VLOOKUP(F7,البيانات!$A$1:$D$6,4,0)),\"\")","v":""},null,"اسم المرشد",null,{"$f":"IFERROR(VLOOKUP(F7,البيانات!$A$1:$E$6,5,0),\"\")","v":""}]
[]
[]
["الرقم ","اسم المعتمر ","الجنس ","الجنسية ","رقم الهوية ","رقم جواز السفر ","تاريخ الاصدار ","تاريخ الانتهاء ","اسم المحرم ","نوع الخدمة ","سعر الشراء ","سعر البيع "]
[1,"محمد ","رجل ","مصرى",2135206,1236555211,"2018-01-01","2019-12-10","ننن","طيران",2000,3000]
[2]
[3]
[4]
[5]
[6]
[7]
[8]
[9]
[10]
[11]
[12]
[13]
[14]
[15]
[16]
[17]
[18]
[19]
[20]
[21]
[22]
[23]
[24]
[25]
[26]
[27]
[28]
[29]
[30]
["الاجمالي",null,null,null,null,null,null,null,null,null,2000,3000]

{"sheet":"R115","index":17,"n_rows":45,"n_cols":12,"rows_kept":45,"cut":false,"hidden":false,"merged":[[44,0,44,9],[5,5,5,6],[6,5,6,6],[8,5,8,6],[9,5,9,6],[10,5,10,6]]}
[]
[]
[]
[]
[]
[null,null,null,null,null,"رقم الحافلة"]
[null,null,"حساب الرحلة ",null,null,{"$f":"IFERROR(INDEX(البيانات!$A$2:$A$320,MATCH($B$9,البيانات!$B$2:$B$320,0)),\"\")","v":0}]
[]
["رقم الرحلة","R115",null,"نوع الرحلة",null,{"$f":"IFERROR(VLOOKUP(F7,البيانات!$A$1:$C$6,3,0),\"\")","v":""}]
[null,null,null,"مدير مسئول"]
["تاريخ الرحلة",{"$f":"IFERROR(IF(VLOOKUP(F7,البيانات!$A$1:$D$6,4,0)=\"\",\"\",VLOOKUP(F7,البيانات!$A$1:$D$6,4,0)),\"\")","v":""},null,"اسم المرشد",null,{"$f":"IFERROR(VLOOKUP(F7,البيانات!$A$1:$E$6,5,0),\"\")","v":""}]
[]
[]
["الرقم ","اسم المعتمر ","الجنس ","الجنسية ","رقم الهوية ","رقم جواز السفر ","تاريخ الاصدار ","تاريخ الانتهاء ","اسم المحرم ","نوع الخدمة ","سعر الشراء ","سعر البيع "]
[1,"محمد ","رجل ","مصرى",2135206,1236555211,"2018-01-01","2019-12-10","ننن","طيران",2000,3000]
[2]
[3]
[4]
[5]
[6]
[7]
[8]
[9]
[10]
[11]
[12]
[13]
[14]
[15]
[16]
[17]
[18]
[19]
[20]
[21]
[22]
[23]
[24]
[25]
[26]
[27]
[28]
[29]
[30]
["الاجمالي",null,null,null,null,null,null,null,null,null,2000,3000]

{"sheet":"R116","index":18,"n_rows":45,"n_cols":12,"rows_kept":45,"cut":false,"hidden":false,"merged":[[44,0,44,9],[5,5,5,6],[6,5,6,6],[8,5,8,6],[9,5,9,6],[10,5,10,6]]}
[]
[]
[]
[]
[]
[null,null,null,null,null,"رقم الحافلة"]
[null,null,"حساب الرحلة ",null,null,{"$f":"IFERROR(INDEX(البيانات!$A$2:$A$320,MATCH($B$9,البيانات!$B$2:$B$320,0)),\"\")","v":0}]
[]
["رقم الرحلة","R116",null,"نوع الرحلة",null,{"$f":"IFERROR(VLOOKUP(F7,البيانات!$A$1:$C$6,3,0),\"\")","v":""}]
[null,null,null,"مدير مسئول"]
["تاريخ الرحلة",{"$f":"IFERROR(IF(VLOOKUP(F7,البيانات!$A$1:$D$6,4,0)=\"\",\"\",VLOOKUP(F7,البيانات!$A$1:$D$6,4,0)),\"\")","v":""},null,"اسم المرشد",null,{"$f":"IFERROR(VLOOKUP(F7,البيانات!$A$1:$E$6,5,0),\"\")","v":""}]
[]
[]
["الرقم ","اسم المعتمر ","الجنس ","الجنسية ","رقم الهوية ","رقم جواز السفر ","تاريخ الاصدار ","تاريخ الانتهاء ","اسم المحرم ","نوع الخدمة ","سعر الشراء ","سعر البيع "]
[1,"محمد ","رجل ","مصرى",2135206,1236555211,"2018-01-01","2019-12-10","ننن","طيران",2000,3000]
[2]
[3]
[4]
[5]
[6]
[7]
[8]
[9]
[10]
[11]
[12]
[13]
[14]
[15]
[16]
[17]
[18]
[19]
[20]
[21]
[22]
[23]
[24]
[25]
[26]
[27]
[28]
[29]
[30]
["الاجمالي",null,null,null,null,null,null,null,null,null,2000,3000]

{"sheet":"R117","index":19,"n_rows":45,"n_cols":12,"rows_kept":45,"cut":false,"hidden":false,"merged":[[44,0,44,9],[5,5,5,6],[6,5,6,6],[8,5,8,6],[9,5,9,6],[10,5,10,6]]}
[]
[]
[]
[]
[]
[null,null,null,null,null,"رقم الحافلة"]
[null,null,"حساب الرحلة ",null,null,{"$f":"IFERROR(INDEX(البيانات!$A$2:$A$320,MATCH($B$9,البيانات!$B$2:$B$320,0)),\"\")","v":0}]
[]
["رقم الرحلة","R117",null,"نوع الرحلة",null,{"$f":"IFERROR(VLOOKUP(F7,البيانات!$A$1:$C$6,3,0),\"\")","v":""}]
[null,null,null,"مدير مسئول"]
["تاريخ الرحلة",{"$f":"IFERROR(IF(VLOOKUP(F7,البيانات!$A$1:$D$6,4,0)=\"\",\"\",VLOOKUP(F7,البيانات!$A$1:$D$6,4,0)),\"\")","v":""},null,"اسم المرشد",null,{"$f":"IFERROR(VLOOKUP(F7,البيانات!$A$1:$E$6,5,0),\"\")","v":""}]
[]
[]
["الرقم ","اسم المعتمر ","الجنس ","الجنسية ","رقم الهوية ","رقم جواز السفر ","تاريخ الاصدار ","تاريخ الانتهاء ","اسم المحرم ","نوع الخدمة ","سعر الشراء ","سعر البيع "]
[1,"محمد ","رجل ","مصرى",2135206,1236555211,"2018-01-01","2019-12-10","ننن","طيران",2000,3000]
[2]
[3]
[4]
[5]
[6]
[7]
[8]
[9]
[10]
[11]
[12]
[13]
[14]
[15]
[16]
[17]
[18]
[19]
[20]
[21]
[22]
[23]
[24]
[25]
[26]
[27]
[28]
[29]
[30]
["الاجمالي",null,null,null,null,null,null,null,null,null,2000,3000]

{"sheet":"R118","index":20,"n_rows":45,"n_cols":12,"rows_kept":45,"cut":false,"hidden":false,"merged":[[44,0,44,9],[5,5,5,6],[6,5,6,6],[8,5,8,6],[9,5,9,6],[10,5,10,6]]}
[]
[]
[]
[]
[]
[null,null,null,null,null,"رقم الحافلة"]
[null,null,"حساب الرحلة ",null,null,{"$f":"IFERROR(INDEX(البيانات!$A$2:$A$320,MATCH($B$9,البيانات!$B$2:$B$320,0)),\"\")","v":0}]
[]
["رقم الرحلة","R118",null,"نوع الرحلة",null,{"$f":"IFERROR(VLOOKUP(F7,البيانات!$A$1:$C$6,3,0),\"\")","v":""}]
[null,null,null,"مدير مسئول"]
["تاريخ الرحلة",{"$f":"IFERROR(IF(VLOOKUP(F7,البيانات!$A$1:$D$6,4,0)=\"\",\"\",VLOOKUP(F7,البيانات!$A$1:$D$6,4,0)),\"\")","v":""},null,"اسم المرشد",null,{"$f":"IFERROR(VLOOKUP(F7,البيانات!$A$1:$E$6,5,0),\"\")","v":""}]
[]
[]
["الرقم ","اسم المعتمر ","الجنس ","الجنسية ","رقم الهوية ","رقم جواز السفر ","تاريخ الاصدار ","تاريخ الانتهاء ","اسم المحرم ","نوع الخدمة ","سعر الشراء ","سعر البيع "]
[1,"محمد ","رجل ","مصرى",2135206,1236555211,"2018-01-01","2019-12-10","ننن","طيران",2000,3000]
[2]
[3]
[4]
[5]
[6]
[7]
[8]
[9]
[10]
[11]
[12]
[13]
[14]
[15]
[16]
[17]
[18]
[19]
[20]
[21]
[22]
[23]
[24]
[25]
[26]
[27]
[28]
[29]
[30]
["الاجمالي",null,null,null,null,null,null,null,null,null,2000,3000]

{"sheet":"R119","index":21,"n_rows":45,"n_cols":12,"rows_kept":45,"cut":false,"hidden":false,"merged":[[44,0,44,9],[5,5,5,6],[6,5,6,6],[8,5,8,6],[9,5,9,6],[10,5,10,6]]}
[]
[]
[]
[]
[]
[null,null,null,null,null,"رقم الحافلة"]
[null,null,"حساب الرحلة ",null,null,{"$f":"IFERROR(INDEX(البيانات!$A$2:$A$320,MATCH($B$9,البيانات!$B$2:$B$320,0)),\"\")","v":0}]
[]
["رقم الرحلة","R119",null,"نوع الرحلة",null,{"$f":"IFERROR(VLOOKUP(F7,البيانات!$A$1:$C$6,3,0),\"\")","v":""}]
[null,null,null,"مدير مسئول"]
["تاريخ الرحلة",{"$f":"IFERROR(IF(VLOOKUP(F7,البيانات!$A$1:$D$6,4,0)=\"\",\"\",VLOOKUP(F7,البيانات!$A$1:$D$6,4,0)),\"\")","v":""},null,"اسم المرشد",null,{"$f":"IFERROR(VLOOKUP(F7,البيانات!$A$1:$E$6,5,0),\"\")","v":""}]
[]
[]
["الرقم ","اسم المعتمر ","الجنس ","الجنسية ","رقم الهوية ","رقم جواز السفر ","تاريخ الاصدار ","تاريخ الانتهاء ","اسم المحرم ","نوع الخدمة ","سعر الشراء ","سعر البيع "]
[1,"محمد ","رجل ","مصرى",2135206,1236555211,"2018-01-01","2019-12-10","ننن","طيران",2000,3000]
[2]
[3]
[4]
[5]
[6]
[7]
[8]
[9]
[10]
[11]
[12]
[13]
[14]
[15]
[16]
[17]
[18]
[19]
[20]
[21]
[22]
[23]
[24]
[25]
[26]
[27]
[28]
[29]
[30]
["الاجمالي",null,null,null,null,null,null,null,null,null,2000,3000]

{"sheet":"R120","index":22,"n_rows":45,"n_cols":12,"rows_kept":45,"cut":false,"hidden":false,"merged":[[44,0,44,9],[5,5,5,6],[6,5,6,6],[8,5,8,6],[9,5,9,6],[10,5,10,6]]}
[]
[]
[]
[]
[]
[null,null,null,null,null,"رقم الحافلة"]
[null,null,"حساب الرحلة ",null,null,{"$f":"IFERROR(INDEX(البيانات!$A$2:$A$320,MATCH($B$9,البيانات!$B$2:$B$320,0)),\"\")","v":0}]
[]
["رقم الرحلة","R120",null,"نوع الرحلة",null,{"$f":"IFERROR(VLOOKUP(F7,البيانات!$A$1:$C$6,3,0),\"\")","v":""}]
[null,null,null,"مدير مسئول"]
["تاريخ الرحلة",{"$f":"IFERROR(IF(VLOOKUP(F7,البيانات!$A$1:$D$6,4,0)=\"\",\"\",VLOOKUP(F7,البيانات!$A$1:$D$6,4,0)),\"\")","v":""},null,"اسم المرشد",null,{"$f":"IFERROR(VLOOKUP(F7,البيانات!$A$1:$E$6,5,0),\"\")","v":""}]
[]
[]
["الرقم ","اسم المعتمر ","الجنس ","الجنسية ","رقم الهوية ","رقم جواز السفر ","تاريخ الاصدار ","تاريخ الانتهاء ","اسم المحرم ","نوع الخدمة ","سعر الشراء ","سعر البيع "]
[1,"محمد ","رجل ","مصرى",2135206,1236555211,"2018-01-01","2019-12-10","ننن","طيران",2000,3000]
[2]
[3]
[4]
[5]
[6]
[7]
[8]
[9]
[10]
[11]
[12]
[13]
[14]
[15]
[16]
[17]
[18]
[19]
[20]
[21]
[22]
[23]
[24]
[25]
[26]
[27]
[28]
[29]
[30]
["الاجمالي",null,null,null,null,null,null,null,null,null,2000,3000]

{"sheet":"R121","index":23,"n_rows":45,"n_cols":12,"rows_kept":45,"cut":false,"hidden":false,"merged":[[44,0,44,9],[5,5,5,6],[6,5,6,6],[8,5,8,6],[9,5,9,6],[10,5,10,6]]}
[]
[]
[]
[]
[]
[null,null,null,null,null,"رقم الحافلة"]
[null,null,"حساب الرحلة ",null,null,{"$f":"IFERROR(INDEX(البيانات!$A$2:$A$320,MATCH($B$9,البيانات!$B$2:$B$320,0)),\"\")","v":0}]
[]
["رقم الرحلة","R121",null,"نوع الرحلة",null,{"$f":"IFERROR(VLOOKUP(F7,البيانات!$A$1:$C$6,3,0),\"\")","v":""}]
[null,null,null,"مدير مسئول"]
["تاريخ الرحلة",{"$f":"IFERROR(IF(VLOOKUP(F7,البيانات!$A$1:$D$6,4,0)=\"\",\"\",VLOOKUP(F7,البيانات!$A$1:$D$6,4,0)),\"\")","v":""},null,"اسم المرشد",null,{"$f":"IFERROR(VLOOKUP(F7,البيانات!$A$1:$E$6,5,0),\"\")","v":""}]
[]
[]
["الرقم ","اسم المعتمر ","الجنس ","الجنسية ","رقم الهوية ","رقم جواز السفر ","تاريخ الاصدار ","تاريخ الانتهاء ","اسم المحرم ","نوع الخدمة ","سعر الشراء ","سعر البيع "]
[1,"محمد ","رجل ","مصرى",2135206,1236555211,"2018-01-01","2019-12-10","ننن","طيران",2000,3000]
[2]
[3]
[4]
[5]
[6]
[7]
[8]
[9]
[10]
[11]
[12]
[13]
[14]
[15]
[16]
[17]
[18]
[19]
[20]
[21]
[22]
[23]
[24]
[25]
[26]
[27]
[28]
[29]
[30]
["الاجمالي",null,null,null,null,null,null,null,null,null,2000,3000]

{"sheet":"R122","index":24,"n_rows":45,"n_cols":12,"rows_kept":45,"cut":false,"hidden":false,"merged":[[44,0,44,9],[5,5,5,6],[6,5,6,6],[8,5,8,6],[9,5,9,6],[10,5,10,6]]}
[]
[]
[]
[]
[]
[null,null,null,null,null,"رقم الحافلة"]
[null,null,"حساب الرحلة ",null,null,{"$f":"IFERROR(INDEX(البيانات!$A$2:$A$320,MATCH($B$9,البيانات!$B$2:$B$320,0)),\"\")","v":0}]
[]
["رقم الرحلة","R122",null,"نوع الرحلة",null,{"$f":"IFERROR(VLOOKUP(F7,البيانات!$A$1:$C$6,3,0),\"\")","v":""}]
[null,null,null,"مدير مسئول"]
["تاريخ الرحلة",{"$f":"IFERROR(IF(VLOOKUP(F7,البيانات!$A$1:$D$6,4,0)=\"\",\"\",VLOOKUP(F7,البيانات!$A$1:$D$6,4,0)),\"\")","v":""},null,"اسم المرشد",null,{"$f":"IFERROR(VLOOKUP(F7,البيانات!$A$1:$E$6,5,0),\"\")","v":""}]
[]
[]
["الرقم ","اسم المعتمر ","الجنس ","الجنسية ","رقم الهوية ","رقم جواز السفر ","تاريخ الاصدار ","تاريخ الانتهاء ","اسم المحرم ","نوع الخدمة ","سعر الشراء ","سعر البيع "]
[1,"محمد ","رجل ","مصرى",2135206,1236555211,"2018-01-01","2019-12-10","ننن","طيران",2000,3000]
[2]
[3]
[4]
[5]
[6]
[7]
[8]
[9]
[10]
[11]
[12]
[13]
[14]
[15]
[16]
[17]
[18]
[19]
[20]
[21]
[22]
[23]
[24]
[25]
[26]
[27]
[28]
[29]
[30]
["الاجمالي",null,null,null,null,null,null,null,null,null,2000,3000]

{"sheet":"R123","index":25,"n_rows":45,"n_cols":12,"rows_kept":45,"cut":false,"hidden":false,"merged":[[44,0,44,9],[5,5,5,6],[6,5,6,6],[8,5,8,6],[9,5,9,6],[10,5,10,6]]}
[]
[]
[]
[]
[]
[null,null,null,null,null,"رقم الحافلة"]
[null,null,"حساب الرحلة ",null,null,{"$f":"IFERROR(INDEX(البيانات!$A$2:$A$320,MATCH($B$9,البيانات!$B$2:$B$320,0)),\"\")","v":0}]
[]
["رقم الرحلة","R123",null,"نوع الرحلة",null,{"$f":"IFERROR(VLOOKUP(F7,البيانات!$A$1:$C$6,3,0),\"\")","v":""}]
[null,null,null,"مدير مسئول"]
["تاريخ الرحلة",{"$f":"IFERROR(IF(VLOOKUP(F7,البيانات!$A$1:$D$6,4,0)=\"\",\"\",VLOOKUP(F7,البيانات!$A$1:$D$6,4,0)),\"\")","v":""},null,"اسم المرشد",null,{"$f":"IFERROR(VLOOKUP(F7,البيانات!$A$1:$E$6,5,0),\"\")","v":""}]
[]
[]
["الرقم ","اسم المعتمر ","الجنس ","الجنسية ","رقم الهوية ","رقم جواز السفر ","تاريخ الاصدار ","تاريخ الانتهاء ","اسم المحرم ","نوع الخدمة ","سعر الشراء ","سعر البيع "]
[1,"محمد ","رجل ","مصرى",2135206,1236555211,"2018-01-01","2019-12-10","ننن","طيران",2000,3000]
[2]
[3]
[4]
[5]
[6]
[7]
[8]
[9]
[10]
[11]
[12]
[13]
[14]
[15]
[16]
[17]
[18]
[19]
[20]
[21]
[22]
[23]
[24]
[25]
[26]
[27]
[28]
[29]
[30]
["الاجمالي",null,null,null,null,null,null,null,null,null,2000,3000]

{"sheet":"R124","index":26,"n_rows":45,"n_cols":12,"rows_kept":45,"cut":false,"hidden":false,"merged":[[44,0,44,9],[5,5,5,6],[6,5,6,6],[8,5,8,6],[9,5,9,6],[10,5,10,6]]}
[]
[]
[]
[]
[]
[null,null,null,null,null,"رقم الحافلة"]
[null,null,"حساب الرحلة ",null,null,{"$f":"IFERROR(INDEX(البيانات!$A$2:$A$320,MATCH($B$9,البيانات!$B$2:$B$320,0)),\"\")","v":0}]
[]
["رقم الرحلة","R124",null,"نوع الرحلة",null,{"$f":"IFERROR(VLOOKUP(F7,البيانات!$A$1:$C$6,3,0),\"\")","v":""}]
[null,null,null,"مدير مسئول"]
["تاريخ الرحلة",{"$f":"IFERROR(IF(VLOOKUP(F7,البيانات!$A$1:$D$6,4,0)=\"\",\"\",VLOOKUP(F7,البيانات!$A$1:$D$6,4,0)),\"\")","v":""},null,"اسم المرشد",null,{"$f":"IFERROR(VLOOKUP(F7,البيانات!$A$1:$E$6,5,0),\"\")","v":""}]
[]
[]
["الرقم ","اسم المعتمر ","الجنس ","الجنسية ","رقم الهوية ","رقم جواز السفر ","تاريخ الاصدار ","تاريخ الانتهاء ","اسم المحرم ","نوع الخدمة ","سعر الشراء ","سعر البيع "]
[1,"محمد ","رجل ","مصرى",2135206,1236555211,"2018-01-01","2019-12-10","ننن","طيران",2000,3000]
[2]
[3]
[4]
[5]
[6]
[7]
[8]
[9]
[10]
[11]
[12]
[13]
[14]
[15]
[16]
[17]
[18]
[19]
[20]
[21]
[22]
[23]
[24]
[25]
[26]
[27]
[28]
[29]
[30]
["الاجمالي",null,null,null,null,null,null,null,null,null,2000,3000]

{"sheet":"R125","index":27,"n_rows":45,"n_cols":12,"rows_kept":45,"cut":false,"hidden":false,"merged":[[44,0,44,9],[5,5,5,6],[6,5,6,6],[8,5,8,6],[9,5,9,6],[10,5,10,6]]}
[]
[]
[]
[]
[]
[null,null,null,null,null,"رقم الحافلة"]
[null,null,"حساب الرحلة ",null,null,{"$f":"IFERROR(INDEX(البيانات!$A$2:$A$320,MATCH($B$9,البيانات!$B$2:$B$320,0)),\"\")","v":0}]
[]
["رقم الرحلة","R125",null,"نوع الرحلة",null,{"$f":"IFERROR(VLOOKUP(F7,البيانات!$A$1:$C$6,3,0),\"\")","v":""}]
[null,null,null,"مدير مسئول"]
["تاريخ الرحلة",{"$f":"IFERROR(IF(VLOOKUP(F7,البيانات!$A$1:$D$6,4,0)=\"\",\"\",VLOOKUP(F7,البيانات!$A$1:$D$6,4,0)),\"\")","v":""},null,"اسم المرشد",null,{"$f":"IFERROR(VLOOKUP(F7,البيانات!$A$1:$E$6,5,0),\"\")","v":""}]
[]
[]
["الرقم ","اسم المعتمر ","الجنس ","الجنسية ","رقم الهوية ","رقم جواز السفر ","تاريخ الاصدار ","تاريخ الانتهاء ","اسم المحرم ","نوع الخدمة ","سعر الشراء ","سعر البيع "]
[1,"محمد ","رجل ","مصرى",2135206,1236555211,"2018-01-01","2019-12-10","ننن","طيران",2000,3000]
[2]
[3]
[4]
[5]
[6]
[7]
[8]
[9]
[10]
[11]
[12]
[13]
[14]
[15]
[16]
[17]
[18]
[19]
[20]
[21]
[22]
[23]
[24]
[25]
[26]
[27]
[28]
[29]
[30]
["الاجمالي",null,null,null,null,null,null,null,null,null,2000,3000]

{"sheet":"R126","index":28,"n_rows":45,"n_cols":12,"rows_kept":45,"cut":false,"hidden":false,"merged":[[44,0,44,9],[5,5,5,6],[6,5,6,6],[8,5,8,6],[9,5,9,6],[10,5,10,6]]}
[]
[]
[]
[]
[]
[null,null,null,null,null,"رقم الحافلة"]
[null,null,"حساب الرحلة ",null,null,{"$f":"IFERROR(INDEX(البيانات!$A$2:$A$320,MATCH($B$9,البيانات!$B$2:$B$320,0)),\"\")","v":0}]
[]
["رقم الرحلة","R126",null,"نوع الرحلة",null,{"$f":"IFERROR(VLOOKUP(F7,البيانات!$A$1:$C$6,3,0),\"\")","v":""}]
[null,null,null,"مدير مسئول"]
["تاريخ الرحلة",{"$f":"IFERROR(IF(VLOOKUP(F7,البيانات!$A$1:$D$6,4,0)=\"\",\"\",VLOOKUP(F7,البيانات!$A$1:$D$6,4,0)),\"\")","v":""},null,"اسم المرشد",null,{"$f":"IFERROR(VLOOKUP(F7,البيانات!$A$1:$E$6,5,0),\"\")","v":""}]
[]
[]
["الرقم ","اسم المعتمر ","الجنس ","الجنسية ","رقم الهوية ","رقم جواز السفر ","تاريخ الاصدار ","تاريخ الانتهاء ","اسم المحرم ","نوع الخدمة ","سعر الشراء ","سعر البيع "]
[1,"محمد ","رجل ","مصرى",2135206,1236555211,"2018-01-01","2019-12-10","ننن","طيران",2000,3000]
[2]
[3]
[4]
[5]
[6]
[7]
[8]
[9]
[10]
[11]
[12]
[13]
[14]
[15]
[16]
[17]
[18]
[19]
[20]
[21]
[22]
[23]
[24]
[25]
[26]
[27]
[28]
[29]
[30]
["الاجمالي",null,null,null,null,null,null,null,null,null,2000,3000]

{"sheet":"R127","index":29,"n_rows":45,"n_cols":12,"rows_kept":45,"cut":false,"hidden":false,"merged":[[44,0,44,9],[5,5,5,6],[6,5,6,6],[8,5,8,6],[9,5,9,6],[10,5,10,6]]}
[]
[]
[]
[]
[]
[null,null,null,null,null,"رقم الحافلة"]
[null,null,"حساب الرحلة ",null,null,{"$f":"IFERROR(INDEX(البيانات!$A$2:$A$320,MATCH($B$9,البيانات!$B$2:$B$320,0)),\"\")","v":0}]
[]
["رقم الرحلة","R127",null,"نوع الرحلة",null,{"$f":"IFERROR(VLOOKUP(F7,البيانات!$A$1:$C$6,3,0),\"\")","v":""}]
[null,null,null,"مدير مسئول"]
["تاريخ الرحلة",{"$f":"IFERROR(IF(VLOOKUP(F7,البيانات!$A$1:$D$6,4,0)=\"\",\"\",VLOOKUP(F7,البيانات!$A$1:$D$6,4,0)),\"\")","v":""},null,"اسم المرشد",null,{"$f":"IFERROR(VLOOKUP(F7,البيانات!$A$1:$E$6,5,0),\"\")","v":""}]
[]
[]
["الرقم ","اسم المعتمر ","الجنس ","الجنسية ","رقم الهوية ","رقم جواز السفر ","تاريخ الاصدار ","تاريخ الانتهاء ","اسم المحرم ","نوع الخدمة ","سعر الشراء ","سعر البيع "]
[1,"محمد ","رجل ","مصرى",2135206,1236555211,"2018-01-01","2019-12-10","ننن","طيران",2000,3000]
[2]
[3]
[4]
[5]
[6]
[7]
[8]
[9]
[10]
[11]
[12]
[13]
[14]
[15]
[16]
[17]
[18]
[19]
[20]
[21]
[22]
[23]
[24]
[25]
[26]
[27]
[28]
[29]
[30]
["الاجمالي",null,null,null,null,null,null,null,null,null,2000,3000]

{"sheet":"R128","index":30,"n_rows":45,"n_cols":12,"rows_kept":45,"cut":false,"hidden":false,"merged":[[44,0,44,9],[5,5,5,6],[6,5,6,6],[8,5,8,6],[9,5,9,6],[10,5,10,6]]}
[]
[]
[]
[]
[]
[null,null,null,null,null,"رقم الحافلة"]
[null,null,"حساب الرحلة ",null,null,{"$f":"IFERROR(INDEX(البيانات!$A$2:$A$320,MATCH($B$9,البيانات!$B$2:$B$320,0)),\"\")","v":0}]
[]
["رقم الرحلة","R128",null,"نوع الرحلة",null,{"$f":"IFERROR(VLOOKUP(F7,البيانات!$A$1:$C$6,3,0),\"\")","v":""}]
[null,null,null,"مدير مسئول"]
["تاريخ الرحلة",{"$f":"IFERROR(IF(VLOOKUP(F7,البيانات!$A$1:$D$6,4,0)=\"\",\"\",VLOOKUP(F7,البيانات!$A$1:$D$6,4,0)),\"\")","v":""},null,"اسم المرشد",null,{"$f":"IFERROR(VLOOKUP(F7,البيانات!$A$1:$E$6,5,0),\"\")","v":""}]
[]
[]
["الرقم ","اسم المعتمر ","الجنس ","الجنسية ","رقم الهوية ","رقم جواز السفر ","تاريخ الاصدار ","تاريخ الانتهاء ","اسم المحرم ","نوع الخدمة ","سعر الشراء ","سعر البيع "]
[1,"محمد ","رجل ","مصرى",2135206,1236555211,"2018-01-01","2019-12-10","ننن","طيران",2000,3000]
[2]
[3]
[4]
[5]
[6]
[7]
[8]
[9]
[10]
[11]
[12]
[13]
[14]
[15]
[16]
[17]
[18]
[19]
[20]
[21]
[22]
[23]
[24]
[25]
[26]
[27]
[28]
[29]
[30]
["الاجمالي",null,null,null,null,null,null,null,null,null,2000,3000]

{"sheet":"R129","index":31,"n_rows":45,"n_cols":12,"rows_kept":45,"cut":false,"hidden":false,"merged":[[44,0,44,9],[5,5,5,6],[6,5,6,6],[8,5,8,6],[9,5,9,6],[10,5,10,6]]}
[]
[]
[]
[]
[]
[null,null,null,null,null,"رقم الحافلة"]
[null,null,"حساب الرحلة ",null,null,{"$f":"IFERROR(INDEX(البيانات!$A$2:$A$320,MATCH($B$9,البيانات!$B$2:$B$320,0)),\"\")","v":0}]
[]
["رقم الرحلة","R129",null,"نوع الرحلة",null,{"$f":"IFERROR(VLOOKUP(F7,البيانات!$A$1:$C$6,3,0),\"\")","v":""}]
[null,null,null,"مدير مسئول"]
["تاريخ الرحلة",{"$f":"IFERROR(IF(VLOOKUP(F7,البيانات!$A$1:$D$6,4,0)=\"\",\"\",VLOOKUP(F7,البيانات!$A$1:$D$6,4,0)),\"\")","v":""},null,"اسم المرشد",null,{"$f":"IFERROR(VLOOKUP(F7,البيانات!$A$1:$E$6,5,0),\"\")","v":""}]
[]
[]
["الرقم ","اسم المعتمر ","الجنس ","الجنسية ","رقم الهوية ","رقم جواز السفر ","تاريخ الاصدار ","تاريخ الانتهاء ","اسم المحرم ","نوع الخدمة ","سعر الشراء ","سعر البيع "]
[1,"محمد ","رجل ","مصرى",2135206,1236555211,"2018-01-01","2019-12-10","ننن","طيران",2000,3000]
[2]
[3]
[4]
[5]
[6]
[7]
[8]
[9]
[10]
[11]
[12]
[13]
[14]
[15]
[16]
[17]
[18]
[19]
[20]
[21]
[22]
[23]
[24]
[25]
[26]
[27]
[28]
[29]
[30]
["الاجمالي",null,null,null,null,null,null,null,null,null,2000,3000]

{"sheet":"R130","index":32,"n_rows":45,"n_cols":12,"rows_kept":45,"cut":false,"hidden":false,"merged":[[44,0,44,9],[5,5,5,6],[6,5,6,6],[8,5,8,6],[9,5,9,6],[10,5,10,6]]}
[]
[]
[]
[]
[]
[null,null,null,null,null,"رقم الحافلة"]
[null,null,"حساب الرحلة ",null,null,{"$f":"IFERROR(INDEX(البيانات!$A$2:$A$320,MATCH($B$9,البيانات!$B$2:$B$320,0)),\"\")","v":0}]
[]
["رقم الرحلة","R130",null,"نوع الرحلة",null,{"$f":"IFERROR(VLOOKUP(F7,البيانات!$A$1:$C$6,3,0),\"\")","v":""}]
[null,null,null,"مدير مسئول"]
["تاريخ الرحلة",{"$f":"IFERROR(IF(VLOOKUP(F7,البيانات!$A$1:$D$6,4,0)=\"\",\"\",VLOOKUP(F7,البيانات!$A$1:$D$6,4,0)),\"\")","v":""},null,"اسم المرشد",null,{"$f":"IFERROR(VLOOKUP(F7,البيانات!$A$1:$E$6,5,0),\"\")","v":""}]
[]
[]
["الرقم ","اسم المعتمر ","الجنس ","الجنسية ","رقم الهوية ","رقم جواز السفر ","تاريخ الاصدار ","تاريخ الانتهاء ","اسم المحرم ","نوع الخدمة ","سعر الشراء ","سعر البيع "]
[1,"محمد ","رجل ","مصرى",2135206,1236555211,"2018-01-01","2019-12-10","ننن","طيران",2000,3000]
[2]
[3]
[4]
[5]
[6]
[7]
[8]
[9]
[10]
[11]
[12]
[13]
[14]
[15]
[16]
[17]
[18]
[19]
[20]
[21]
[22]
[23]
[24]
[25]
[26]
[27]
[28]
[29]
[30]
["الاجمالي",null,null,null,null,null,null,null,null,null,2000,3000]

{"sheet":"R131","index":33,"n_rows":45,"n_cols":12,"rows_kept":45,"cut":false,"hidden":false,"merged":[[44,0,44,9],[5,5,5,6],[6,5,6,6],[8,5,8,6],[9,5,9,6],[10,5,10,6]]}
[]
[]
[]
[]
[]
[null,null,null,null,null,"رقم الحافلة"]
[null,null,"حساب الرحلة ",null,null,{"$f":"IFERROR(INDEX(البيانات!$A$2:$A$320,MATCH($B$9,البيانات!$B$2:$B$320,0)),\"\")","v":0}]
[]
["رقم الرحلة","R131",null,"نوع الرحلة",null,{"$f":"IFERROR(VLOOKUP(F7,البيانات!$A$1:$C$6,3,0),\"\")","v":""}]
[null,null,null,"مدير مسئول"]
["تاريخ الرحلة",{"$f":"IFERROR(IF(VLOOKUP(F7,البيانات!$A$1:$D$6,4,0)=\"\",\"\",VLOOKUP(F7,البيانات!$A$1:$D$6,4,0)),\"\")","v":""},null,"اسم المرشد",null,{"$f":"IFERROR(VLOOKUP(F7,البيانات!$A$1:$E$6,5,0),\"\")","v":""}]
[]
[]
["الرقم ","اسم المعتمر ","الجنس ","الجنسية ","رقم الهوية ","رقم جواز السفر ","تاريخ الاصدار ","تاريخ الانتهاء ","اسم المحرم ","نوع الخدمة ","سعر الشراء ","سعر البيع "]
[1,"محمد ","رجل ","مصرى",2135206,1236555211,"2018-01-01","2019-12-10","ننن","طيران",2000,3000]
[2]
[3]
[4]
[5]
[6]
[7]
[8]
[9]
[10]
[11]
[12]
[13]
[14]
[15]
[16]
[17]
[18]
[19]
[20]
[21]
[22]
[23]
[24]
[25]
[26]
[27]
[28]
[29]
[30]
["الاجمالي",null,null,null,null,null,null,null,null,null,2000,3000]

{"sheet":"R132","index":34,"n_rows":45,"n_cols":12,"rows_kept":45,"cut":false,"hidden":false,"merged":[[44,0,44,9],[5,5,5,6],[6,5,6,6],[8,5,8,6],[9,5,9,6],[10,5,10,6]]}
[]
[]
[]
[]
[]
[null,null,null,null,null,"رقم الحافلة"]
[null,null,"حساب الرحلة ",null,null,{"$f":"IFERROR(INDEX(البيانات!$A$2:$A$320,MATCH($B$9,البيانات!$B$2:$B$320,0)),\"\")","v":0}]
[]
["رقم الرحلة","R132",null,"نوع الرحلة",null,{"$f":"IFERROR(VLOOKUP(F7,البيانات!$A$1:$C$6,3,0),\"\")","v":""}]
[null,null,null,"مدير مسئول"]
["تاريخ الرحلة",{"$f":"IFERROR(IF(VLOOKUP(F7,البيانات!$A$1:$D$6,4,0)=\"\",\"\",VLOOKUP(F7,البيانات!$A$1:$D$6,4,0)),\"\")","v":""},null,"اسم المرشد",null,{"$f":"IFERROR(VLOOKUP(F7,البيانات!$A$1:$E$6,5,0),\"\")","v":""}]
[]
[]
["الرقم ","اسم المعتمر ","الجنس ","الجنسية ","رقم الهوية ","رقم جواز السفر ","تاريخ الاصدار ","تاريخ الانتهاء ","اسم المحرم ","نوع الخدمة ","سعر الشراء ","سعر البيع "]
[1,"محمد ","رجل ","مصرى",2135206,1236555211,"2018-01-01","2019-12-10","ننن","طيران",2000,3000]
[2]
[3]
[4]
[5]
[6]
[7]
[8]
[9]
[10]
[11]
[12]
[13]
[14]
[15]
[16]
[17]
[18]
[19]
[20]
[21]
[22]
[23]
[24]
[25]
[26]
[27]
[28]
[29]
[30]
["الاجمالي",null,null,null,null,null,null,null,null,null,2000,3000]

{"sheet":"R133","index":35,"n_rows":45,"n_cols":12,"rows_kept":45,"cut":false,"hidden":false,"merged":[[44,0,44,9],[5,5,5,6],[6,5,6,6],[8,5,8,6],[9,5,9,6],[10,5,10,6]]}
[]
[]
[]
[]
[]
[null,null,null,null,null,"رقم الحافلة"]
[null,null,"حساب الرحلة ",null,null,{"$f":"IFERROR(INDEX(البيانات!$A$2:$A$320,MATCH($B$9,البيانات!$B$2:$B$320,0)),\"\")","v":0}]
[]
["رقم الرحلة","R133",null,"نوع الرحلة",null,{"$f":"IFERROR(VLOOKUP(F7,البيانات!$A$1:$C$6,3,0),\"\")","v":""}]
[null,null,null,"مدير مسئول"]
["تاريخ الرحلة",{"$f":"IFERROR(IF(VLOOKUP(F7,البيانات!$A$1:$D$6,4,0)=\"\",\"\",VLOOKUP(F7,البيانات!$A$1:$D$6,4,0)),\"\")","v":""},null,"اسم المرشد",null,{"$f":"IFERROR(VLOOKUP(F7,البيانات!$A$1:$E$6,5,0),\"\")","v":""}]
[]
[]
["الرقم ","اسم المعتمر ","الجنس ","الجنسية ","رقم الهوية ","رقم جواز السفر ","تاريخ الاصدار ","تاريخ الانتهاء ","اسم المحرم ","نوع الخدمة ","سعر الشراء ","سعر البيع "]
[1,"محمد ","رجل ","مصرى",2135206,1236555211,"2018-01-01","2019-12-10","ننن","طيران",2000,3000]
[2]
[3]
[4]
[5]
[6]
[7]
[8]
[9]
[10]
[11]
[12]
[13]
[14]
[15]
[16]
[17]
[18]
[19]
[20]
[21]
[22]
[23]
[24]
[25]
[26]
[27]
[28]
[29]
[30]
["الاجمالي",null,null,null,null,null,null,null,null,null,2000,3000]

{"sheet":"R134","index":36,"n_rows":45,"n_cols":12,"rows_kept":45,"cut":false,"hidden":false,"merged":[[44,0,44,9],[5,5,5,6],[6,5,6,6],[8,5,8,6],[9,5,9,6],[10,5,10,6]]}
[]
[]
[]
[]
[]
[null,null,null,null,null,"رقم الحافلة"]
[null,null,"حساب الرحلة ",null,null,{"$f":"IFERROR(INDEX(البيانات!$A$2:$A$320,MATCH($B$9,البيانات!$B$2:$B$320,0)),\"\")","v":0}]
[]
["رقم الرحلة","R134",null,"نوع الرحلة",null,{"$f":"IFERROR(VLOOKUP(F7,البيانات!$A$1:$C$6,3,0),\"\")","v":""}]
[null,null,null,"مدير مسئول"]
["تاريخ الرحلة",{"$f":"IFERROR(IF(VLOOKUP(F7,البيانات!$A$1:$D$6,4,0)=\"\",\"\",VLOOKUP(F7,البيانات!$A$1:$D$6,4,0)),\"\")","v":""},null,"اسم المرشد",null,{"$f":"IFERROR(VLOOKUP(F7,البيانات!$A$1:$E$6,5,0),\"\")","v":""}]
[]
[]
["الرقم ","اسم المعتمر ","الجنس ","الجنسية ","رقم الهوية ","رقم جواز السفر ","تاريخ الاصدار ","تاريخ الانتهاء ","اسم المحرم ","نوع الخدمة ","سعر الشراء ","سعر البيع "]
[1,"محمد ","رجل ","مصرى",2135206,1236555211,"2018-01-01","2019-12-10","ننن","طيران",2000,3000]
[2]
[3]
[4]
[5]
[6]
[7]
[8]
[9]
[10]
[11]
[12]
[13]
[14]
[15]
[16]
[17]
[18]
[19]
[20]
[21]
[22]
[23]
[24]
[25]
[26]
[27]
[28]
[29]
[30]
["الاجمالي",null,null,null,null,null,null,null,null,null,2000,3000]

{"sheet":"R135","index":37,"n_rows":45,"n_cols":12,"rows_kept":45,"cut":false,"hidden":false,"merged":[[44,0,44,9],[5,5,5,6],[6,5,6,6],[8,5,8,6],[9,5,9,6],[10,5,10,6]]}
[]
[]
[]
[]
[]
[null,null,null,null,null,"رقم الحافلة"]
[null,null,"حساب الرحلة ",null,null,{"$f":"IFERROR(INDEX(البيانات!$A$2:$A$320,MATCH($B$9,البيانات!$B$2:$B$320,0)),\"\")","v":0}]
[]
["رقم الرحلة","R135",null,"نوع الرحلة",null,{"$f":"IFERROR(VLOOKUP(F7,البيانات!$A$1:$C$6,3,0),\"\")","v":""}]
[null,null,null,"مدير مسئول"]
["تاريخ الرحلة",{"$f":"IFERROR(IF(VLOOKUP(F7,البيانات!$A$1:$D$6,4,0)=\"\",\"\",VLOOKUP(F7,البيانات!$A$1:$D$6,4,0)),\"\")","v":""},null,"اسم المرشد",null,{"$f":"IFERROR(VLOOKUP(F7,البيانات!$A$1:$E$6,5,0),\"\")","v":""}]
[]
[]
["الرقم ","اسم المعتمر ","الجنس ","الجنسية ","رقم الهوية ","رقم جواز السفر ","تاريخ الاصدار ","تاريخ الانتهاء ","اسم المحرم ","نوع الخدمة ","سعر الشراء ","سعر البيع "]
[1,"محمد ","رجل ","مصرى",2135206,1236555211,"2018-01-01","2019-12-10","ننن","طيران",2000,3000]
[2]
[3]
[4]
[5]
[6]
[7]
[8]
[9]
[10]
[11]
[12]
[13]
[14]
[15]
[16]
[17]
[18]
[19]
[20]
[21]
[22]
[23]
[24]
[25]
[26]
[27]
[28]
[29]
[30]
["الاجمالي",null,null,null,null,null,null,null,null,null,2000,3000]

{"sheet":"R136","index":38,"n_rows":45,"n_cols":12,"rows_kept":45,"cut":false,"hidden":false,"merged":[[44,0,44,9],[5,5,5,6],[6,5,6,6],[8,5,8,6],[9,5,9,6],[10,5,10,6]]}
[]
[]
[]
[]
[]
[null,null,null,null,null,"رقم الحافلة"]
[null,null,"حساب الرحلة ",null,null,{"$f":"IFERROR(INDEX(البيانات!$A$2:$A$320,MATCH($B$9,البيانات!$B$2:$B$320,0)),\"\")","v":0}]
[]
["رقم الرحلة","R136",null,"نوع الرحلة",null,{"$f":"IFERROR(VLOOKUP(F7,البيانات!$A$1:$C$6,3,0),\"\")","v":""}]
[null,null,null,"مدير مسئول"]
["تاريخ الرحلة",{"$f":"IFERROR(IF(VLOOKUP(F7,البيانات!$A$1:$D$6,4,0)=\"\",\"\",VLOOKUP(F7,البيانات!$A$1:$D$6,4,0)),\"\")","v":""},null,"اسم المرشد",null,{"$f":"IFERROR(VLOOKUP(F7,البيانات!$A$1:$E$6,5,0),\"\")","v":""}]
[]
[]
["الرقم ","اسم المعتمر ","الجنس ","الجنسية ","رقم الهوية ","رقم جواز السفر ","تاريخ الاصدار ","تاريخ الانتهاء ","اسم المحرم ","نوع الخدمة ","سعر الشراء ","سعر البيع "]
[1,"محمد ","رجل ","مصرى",2135206,1236555211,"2018-01-01","2019-12-10","ننن","طيران",2000,3000]
[2]
[3]
[4]
[5]
[6]
[7]
[8]
[9]
[10]
[11]
[12]
[13]
[14]
[15]
[16]
[17]
[18]
[19]
[20]
[21]
[22]
[23]
[24]
[25]
[26]
[27]
[28]
[29]
[30]
["الاجمالي",null,null,null,null,null,null,null,null,null,2000,3000]

{"sheet":"R137","index":39,"n_rows":45,"n_cols":12,"rows_kept":45,"cut":false,"hidden":false,"merged":[[44,0,44,9],[5,5,5,6],[6,5,6,6],[8,5,8,6],[9,5,9,6],[10,5,10,6]]}
[]
[]
[]
[]
[]
[null,null,null,null,null,"رقم الحافلة"]
[null,null,"حساب الرحلة ",null,null,{"$f":"IFERROR(INDEX(البيانات!$A$2:$A$320,MATCH($B$9,البيانات!$B$2:$B$320,0)),\"\")","v":0}]
[]
["رقم الرحلة","R137",null,"نوع الرحلة",null,{"$f":"IFERROR(VLOOKUP(F7,البيانات!$A$1:$C$6,3,0),\"\")","v":""}]
[null,null,null,"مدير مسئول"]
["تاريخ الرحلة",{"$f":"IFERROR(IF(VLOOKUP(F7,البيانات!$A$1:$D$6,4,0)=\"\",\"\",VLOOKUP(F7,البيانات!$A$1:$D$6,4,0)),\"\")","v":""},null,"اسم المرشد",null,{"$f":"IFERROR(VLOOKUP(F7,البيانات!$A$1:$E$6,5,0),\"\")","v":""}]
[]
[]
["الرقم ","اسم المعتمر ","الجنس ","الجنسية ","رقم الهوية ","رقم جواز السفر ","تاريخ الاصدار ","تاريخ الانتهاء ","اسم المحرم ","نوع الخدمة ","سعر الشراء ","سعر البيع "]
[1,"محمد ","رجل ","مصرى",2135206,1236555211,"2018-01-01","2019-12-10","ننن","طيران",2000,3000]
[2]
[3]
[4]
[5]
[6]
[7]
[8]
[9]
[10]
[11]
[12]
[13]
[14]
[15]
[16]
[17]
[18]
[19]
[20]
[21]
[22]
[23]
[24]
[25]
[26]
[27]
[28]
[29]
[30]
["الاجمالي",null,null,null,null,null,null,null,null,null,2000,3000]

{"sheet":"R138","index":40,"n_rows":45,"n_cols":12,"rows_kept":45,"cut":false,"hidden":false,"merged":[[44,0,44,9],[5,5,5,6],[6,5,6,6],[8,5,8,6],[9,5,9,6],[10,5,10,6]]}
[]
[]
[]
[]
[]
[null,null,null,null,null,"رقم الحافلة"]
[null,null,"حساب الرحلة ",null,null,{"$f":"IFERROR(INDEX(البيانات!$A$2:$A$320,MATCH($B$9,البيانات!$B$2:$B$320,0)),\"\")","v":0}]
[]
["رقم الرحلة","R138",null,"نوع الرحلة",null,{"$f":"IFERROR(VLOOKUP(F7,البيانات!$A$1:$C$6,3,0),\"\")","v":""}]
[null,null,null,"مدير مسئول"]
["تاريخ الرحلة",{"$f":"IFERROR(IF(VLOOKUP(F7,البيانات!$A$1:$D$6,4,0)=\"\",\"\",VLOOKUP(F7,البيانات!$A$1:$D$6,4,0)),\"\")","v":""},null,"اسم المرشد",null,{"$f":"IFERROR(VLOOKUP(F7,البيانات!$A$1:$E$6,5,0),\"\")","v":""}]
[]
[]
["الرقم ","اسم المعتمر ","الجنس ","الجنسية ","رقم الهوية ","رقم جواز السفر ","تاريخ الاصدار ","تاريخ الانتهاء ","اسم المحرم ","نوع الخدمة ","سعر الشراء ","سعر البيع "]
[1,"محمد ","رجل ","مصرى",2135206,1236555211,"2018-01-01","2019-12-10","ننن","طيران",2000,3000]
[2]
[3]
[4]
[5]
[6]
[7]
[8]
[9]
[10]
[11]
[12]
[13]
[14]
[15]
[16]
[17]
[18]
[19]
[20]
[21]
[22]
[23]
[24]
[25]
[26]
[27]
[28]
[29]
[30]
["الاجمالي",null,null,null,null,null,null,null,null,null,2000,3000]

{"sheet":"R139","index":41,"n_rows":45,"n_cols":12,"rows_kept":45,"cut":false,"hidden":false,"merged":[[44,0,44,9],[5,5,5,6],[6,5,6,6],[8,5,8,6],[9,5,9,6],[10,5,10,6]]}
[]
[]
[]
[]
[]
[null,null,null,null,null,"رقم الحافلة"]
[null,null,"حساب الرحلة ",null,null,{"$f":"IFERROR(INDEX(البيانات!$A$2:$A$320,MATCH($B$9,البيانات!$B$2:$B$320,0)),\"\")","v":0}]
[]
["رقم الرحلة","R139",null,"نوع الرحلة",null,{"$f":"IFERROR(VLOOKUP(F7,البيانات!$A$1:$C$6,3,0),\"\")","v":""}]
[null,null,null,"مدير مسئول"]
["تاريخ الرحلة",{"$f":"IFERROR(IF(VLOOKUP(F7,البيانات!$A$1:$D$6,4,0)=\"\",\"\",VLOOKUP(F7,البيانات!$A$1:$D$6,4,0)),\"\")","v":""},null,"اسم المرشد",null,{"$f":"IFERROR(VLOOKUP(F7,البيانات!$A$1:$E$6,5,0),\"\")","v":""}]
[]
[]
["الرقم ","اسم المعتمر ","الجنس ","الجنسية ","رقم الهوية ","رقم جواز السفر ","تاريخ الاصدار ","تاريخ الانتهاء ","اسم المحرم ","نوع الخدمة ","سعر الشراء ","سعر البيع "]
[1,"محمد ","رجل ","مصرى",2135206,1236555211,"2018-01-01","2019-12-10","ننن","طيران",2000,3000]
[2]
[3]
[4]
[5]
[6]
[7]
[8]
[9]
[10]
[11]
[12]
[13]
[14]
[15]
[16]
[17]
[18]
[19]
[20]
[21]
[22]
[23]
[24]
[25]
[26]
[27]
[28]
[29]
[30]
["الاجمالي",null,null,null,null,null,null,null,null,null,2000,3000]

{"sheet":"R140","index":42,"n_rows":45,"n_cols":12,"rows_kept":45,"cut":false,"hidden":false,"merged":[[44,0,44,9],[5,5,5,6],[6,5,6,6],[8,5,8,6],[9,5,9,6],[10,5,10,6]]}
[]
[]
[]
[]
[]
[null,null,null,null,null,"رقم الحافلة"]
[null,null,"حساب الرحلة ",null,null,{"$f":"IFERROR(INDEX(البيانات!$A$2:$A$320,MATCH($B$9,البيانات!$B$2:$B$320,0)),\"\")","v":0}]
[]
["رقم الرحلة","R140",null,"نوع الرحلة",null,{"$f":"IFERROR(VLOOKUP(F7,البيانات!$A$1:$C$6,3,0),\"\")","v":""}]
[null,null,null,"مدير مسئول"]
["تاريخ الرحلة",{"$f":"IFERROR(IF(VLOOKUP(F7,البيانات!$A$1:$D$6,4,0)=\"\",\"\",VLOOKUP(F7,البيانات!$A$1:$D$6,4,0)),\"\")","v":""},null,"اسم المرشد",null,{"$f":"IFERROR(VLOOKUP(F7,البيانات!$A$1:$E$6,5,0),\"\")","v":""}]
[]
[]
["الرقم ","اسم المعتمر ","الجنس ","الجنسية ","رقم الهوية ","رقم جواز السفر ","تاريخ الاصدار ","تاريخ الانتهاء ","اسم المحرم ","نوع الخدمة ","سعر الشراء ","سعر البيع "]
[1,"محمد ","رجل ","مصرى",2135206,1236555211,"2018-01-01","2019-12-10","ننن","طيران",2000,3000]
[2]
[3]
[4]
[5]
[6]
[7]
[8]
[9]
[10]
[11]
[12]
[13]
[14]
[15]
[16]
[17]
[18]
[19]
[20]
[21]
[22]
[23]
[24]
[25]
[26]
[27]
[28]
[29]
[30]
["الاجمالي",null,null,null,null,null,null,null,null,null,2000,3000]

{"sheet":"R141","index":43,"n_rows":45,"n_cols":12,"rows_kept":45,"cut":false,"hidden":false,"merged":[[44,0,44,9],[5,5,5,6],[6,5,6,6],[8,5,8,6],[9,5,9,6],[10,5,10,6]]}
[]
[]
[]
[]
[]
[null,null,null,null,null,"رقم الحافلة"]
[null,null,"حساب الرحلة ",null,null,{"$f":"IFERROR(INDEX(البيانات!$A$2:$A$320,MATCH($B$9,البيانات!$B$2:$B$320,0)),\"\")","v":0}]
[]
["رقم الرحلة","R141",null,"نوع الرحلة",null,{"$f":"IFERROR(VLOOKUP(F7,البيانات!$A$1:$C$6,3,0),\"\")","v":""}]
[null,null,null,"مدير مسئول"]
["تاريخ الرحلة",{"$f":"IFERROR(IF(VLOOKUP(F7,البيانات!$A$1:$D$6,4,0)=\"\",\"\",VLOOKUP(F7,البيانات!$A$1:$D$6,4,0)),\"\")","v":""},null,"اسم المرشد",null,{"$f":"IFERROR(VLOOKUP(F7,البيانات!$A$1:$E$6,5,0),\"\")","v":""}]
[]
[]
["الرقم ","اسم المعتمر ","الجنس ","الجنسية ","رقم الهوية ","رقم جواز السفر ","تاريخ الاصدار ","تاريخ الانتهاء ","اسم المحرم ","نوع الخدمة ","سعر الشراء ","سعر البيع "]
[1,"محمد ","رجل ","مصرى",2135206,1236555211,"2018-01-01","2019-12-10","ننن","طيران",2000,3000]
[2]
[3]
[4]
[5]
[6]
[7]
[8]
[9]
[10]
[11]
[12]
[13]
[14]
[15]
[16]
[17]
[18]
[19]
[20]
[21]
[22]
[23]
[24]
[25]
[26]
[27]
[28]
[29]
[30]
["الاجمالي",null,null,null,null,null,null,null,null,null,2000,3000]

{"sheet":"R142","index":44,"n_rows":45,"n_cols":12,"rows_kept":45,"cut":false,"hidden":false,"merged":[[44,0,44,9],[5,5,5,6],[6,5,6,6],[8,5,8,6],[9,5,9,6],[10,5,10,6]]}
[]
[]
[]
[]
[]
[null,null,null,null,null,"رقم الحافلة"]
[null,null,"حساب الرحلة ",null,null,{"$f":"IFERROR(INDEX(البيانات!$A$2:$A$320,MATCH($B$9,البيانات!$B$2:$B$320,0)),\"\")","v":0}]
[]
["رقم الرحلة","R142",null,"نوع الرحلة",null,{"$f":"IFERROR(VLOOKUP(F7,البيانات!$A$1:$C$6,3,0),\"\")","v":""}]
[null,null,null,"مدير مسئول"]
["تاريخ الرحلة",{"$f":"IFERROR(IF(VLOOKUP(F7,البيانات!$A$1:$D$6,4,0)=\"\",\"\",VLOOKUP(F7,البيانات!$A$1:$D$6,4,0)),\"\")","v":""},null,"اسم المرشد",null,{"$f":"IFERROR(VLOOKUP(F7,البيانات!$A$1:$E$6,5,0),\"\")","v":""}]
[]
[]
["الرقم ","اسم المعتمر ","الجنس ","الجنسية ","رقم الهوية ","رقم جواز السفر ","تاريخ الاصدار ","تاريخ الانتهاء ","اسم المحرم ","نوع الخدمة ","سعر الشراء ","سعر البيع "]
[1,"محمد ","رجل ","مصرى",2135206,1236555211,"2018-01-01","2019-12-10","ننن","طيران",2000,3000]
[2]
[3]
[4]
[5]
[6]
[7]
[8]
[9]
[10]
[11]
[12]
[13]
[14]
[15]
[16]
[17]
[18]
[19]
[20]
[21]
[22]
[23]
[24]
[25]
[26]
[27]
[28]
[29]
[30]
["الاجمالي",null,null,null,null,null,null,null,null,null,2000,3000]

{"sheet":"R143","index":45,"n_rows":45,"n_cols":12,"rows_kept":45,"cut":false,"hidden":false,"merged":[[44,0,44,9],[5,5,5,6],[6,5,6,6],[8,5,8,6],[9,5,9,6],[10,5,10,6]]}
[]
[]
[]
[]
[]
[null,null,null,null,null,"رقم الحافلة"]
[null,null,"حساب الرحلة ",null,null,{"$f":"IFERROR(INDEX(البيانات!$A$2:$A$320,MATCH($B$9,البيانات!$B$2:$B$320,0)),\"\")","v":0}]
[]
["رقم الرحلة","R143",null,"نوع الرحلة",null,{"$f":"IFERROR(VLOOKUP(F7,البيانات!$A$1:$C$6,3,0),\"\")","v":""}]
[null,null,null,"مدير مسئول"]
["تاريخ الرحلة",{"$f":"IFERROR(IF(VLOOKUP(F7,البيانات!$A$1:$D$6,4,0)=\"\",\"\",VLOOKUP(F7,البيانات!$A$1:$D$6,4,0)),\"\")","v":""},null,"اسم المرشد",null,{"$f":"IFERROR(VLOOKUP(F7,البيانات!$A$1:$E$6,5,0),\"\")","v":""}]
[]
[]
["الرقم ","اسم المعتمر ","الجنس ","الجنسية ","رقم الهوية ","رقم جواز السفر ","تاريخ الاصدار ","تاريخ الانتهاء ","اسم المحرم ","نوع الخدمة ","سعر الشراء ","سعر البيع "]
[1,"محمد ","رجل ","مصرى",2135206,1236555211,"2018-01-01","2019-12-10","ننن","طيران",2000,3000]
[2]
[3]
[4]
[5]
[6]
[7]
[8]
[9]
[10]
[11]
[12]
[13]
[14]
[15]
[16]
[17]
[18]
[19]
[20]
[21]
[22]
[23]
[24]
[25]
[26]
[27]
[28]
[29]
[30]
["الاجمالي",null,null,null,null,null,null,null,null,null,2000,3000]

{"sheet":"R144","index":46,"n_rows":45,"n_cols":12,"rows_kept":45,"cut":false,"hidden":false,"merged":[[44,0,44,9],[5,5,5,6],[6,5,6,6],[8,5,8,6],[9,5,9,6],[10,5,10,6]]}
[]
[]
[]
[]
[]
[null,null,null,null,null,"رقم الحافلة"]
[null,null,"حساب الرحلة ",null,null,{"$f":"IFERROR(INDEX(البيانات!$A$2:$A$320,MATCH($B$9,البيانات!$B$2:$B$320,0)),\"\")","v":0}]
[]
["رقم الرحلة","R144",null,"نوع الرحلة",null,{"$f":"IFERROR(VLOOKUP(F7,البيانات!$A$1:$C$6,3,0),\"\")","v":""}]
[null,null,null,"مدير مسئول"]
["تاريخ الرحلة",{"$f":"IFERROR(IF(VLOOKUP(F7,البيانات!$A$1:$D$6,4,0)=\"\",\"\",VLOOKUP(F7,البيانات!$A$1:$D$6,4,0)),\"\")","v":""},null,"اسم المرشد",null,{"$f":"IFERROR(VLOOKUP(F7,البيانات!$A$1:$E$6,5,0),\"\")","v":""}]
[]
[]
["الرقم ","اسم المعتمر ","الجنس ","الجنسية ","رقم الهوية ","رقم جواز السفر ","تاريخ الاصدار ","تاريخ الانتهاء ","اسم المحرم ","نوع الخدمة ","سعر الشراء ","سعر البيع "]
[1,"محمد ","رجل ","مصرى",2135206,1236555211,"2018-01-01","2019-12-10","ننن","طيران",2000,3000]
[2]
[3]
[4]
[5]
[6]
[7]
[8]
[9]
[10]
[11]
[12]
[13]
[14]
[15]
[16]
[17]
[18]
[19]
[20]
[21]
[22]
[23]
[24]
[25]
[26]
[27]
[28]
[29]
[30]
["الاجمالي",null,null,null,null,null,null,null,null,null,2000,3000]

{"sheet":"R145","index":47,"n_rows":45,"n_cols":12,"rows_kept":45,"cut":false,"hidden":false,"merged":[[44,0,44,9],[5,5,5,6],[6,5,6,6],[8,5,8,6],[9,5,9,6],[10,5,10,6]]}
[]
[]
[]
[]
[]
[null,null,null,null,null,"رقم الحافلة"]
[null,null,"حساب الرحلة ",null,null,{"$f":"IFERROR(INDEX(البيانات!$A$2:$A$320,MATCH($B$9,البيانات!$B$2:$B$320,0)),\"\")","v":0}]
[]
["رقم الرحلة","R145",null,"نوع الرحلة",null,{"$f":"IFERROR(VLOOKUP(F7,البيانات!$A$1:$C$6,3,0),\"\")","v":""}]
[null,null,null,"مدير مسئول"]
["تاريخ الرحلة",{"$f":"IFERROR(IF(VLOOKUP(F7,البيانات!$A$1:$D$6,4,0)=\"\",\"\",VLOOKUP(F7,البيانات!$A$1:$D$6,4,0)),\"\")","v":""},null,"اسم المرشد",null,{"$f":"IFERROR(VLOOKUP(F7,البيانات!$A$1:$E$6,5,0),\"\")","v":""}]
[]
[]
["الرقم ","اسم المعتمر ","الجنس ","الجنسية ","رقم الهوية ","رقم جواز السفر ","تاريخ الاصدار ","تاريخ الانتهاء ","اسم المحرم ","نوع الخدمة ","سعر الشراء ","سعر البيع "]
[1,"محمد ","رجل ","مصرى",2135206,1236555211,"2018-01-01","2019-12-10","ننن","طيران",2000,3000]
[2]
[3]
[4]
[5]
[6]
[7]
[8]
[9]
[10]
[11]
[12]
[13]
[14]
[15]
[16]
[17]
[18]
[19]
[20]
[21]
[22]
[23]
[24]
[25]
[26]
[27]
[28]
[29]
[30]
["الاجمالي",null,null,null,null,null,null,null,null,null,2000,3000]

{"sheet":"R146","index":48,"n_rows":45,"n_cols":12,"rows_kept":45,"cut":false,"hidden":false,"merged":[[44,0,44,9],[5,5,5,6],[6,5,6,6],[8,5,8,6],[9,5,9,6],[10,5,10,6]]}
[]
[]
[]
[]
[]
[null,null,null,null,null,"رقم الحافلة"]
[null,null,"حساب الرحلة ",null,null,{"$f":"IFERROR(INDEX(البيانات!$A$2:$A$320,MATCH($B$9,البيانات!$B$2:$B$320,0)),\"\")","v":0}]
[]
["رقم الرحلة","R146",null,"نوع الرحلة",null,{"$f":"IFERROR(VLOOKUP(F7,البيانات!$A$1:$C$6,3,0),\"\")","v":""}]
[null,null,null,"مدير مسئول"]
["تاريخ الرحلة",{"$f":"IFERROR(IF(VLOOKUP(F7,البيانات!$A$1:$D$6,4,0)=\"\",\"\",VLOOKUP(F7,البيانات!$A$1:$D$6,4,0)),\"\")","v":""},null,"اسم المرشد",null,{"$f":"IFERROR(VLOOKUP(F7,البيانات!$A$1:$E$6,5,0),\"\")","v":""}]
[]
[]
["الرقم ","اسم المعتمر ","الجنس ","الجنسية ","رقم الهوية ","رقم جواز السفر ","تاريخ الاصدار ","تاريخ الانتهاء ","اسم المحرم ","نوع الخدمة ","سعر الشراء ","سعر البيع "]
[1,"محمد ","رجل ","مصرى",2135206,1236555211,"2018-01-01","2019-12-10","ننن","طيران",2000,3000]
[2]
[3]
[4]
[5]
[6]
[7]
[8]
[9]
[10]
[11]
[12]
[13]
[14]
[15]
[16]
[17]
[18]
[19]
[20]
[21]
[22]
[23]
[24]
[25]
[26]
[27]
[28]
[29]
[30]
["الاجمالي",null,null,null,null,null,null,null,null,null,2000,3000]

{"sheet":"R147","index":49,"n_rows":45,"n_cols":12,"rows_kept":45,"cut":false,"hidden":false,"merged":[[44,0,44,9],[5,5,5,6],[6,5,6,6],[8,5,8,6],[9,5,9,6],[10,5,10,6]]}
[]
[]
[]
[]
[]
[null,null,null,null,null,"رقم الحافلة"]
[null,null,"حساب الرحلة ",null,null,{"$f":"IFERROR(INDEX(البيانات!$A$2:$A$320,MATCH($B$9,البيانات!$B$2:$B$320,0)),\"\")","v":0}]
[]
["رقم الرحلة","R147",null,"نوع الرحلة",null,{"$f":"IFERROR(VLOOKUP(F7,البيانات!$A$1:$C$6,3,0),\"\")","v":""}]
[null,null,null,"مدير مسئول"]
["تاريخ الرحلة",{"$f":"IFERROR(IF(VLOOKUP(F7,البيانات!$A$1:$D$6,4,0)=\"\",\"\",VLOOKUP(F7,البيانات!$A$1:$D$6,4,0)),\"\")","v":""},null,"اسم المرشد",null,{"$f":"IFERROR(VLOOKUP(F7,البيانات!$A$1:$E$6,5,0),\"\")","v":""}]
[]
[]
["الرقم ","اسم المعتمر ","الجنس ","الجنسية ","رقم الهوية ","رقم جواز السفر ","تاريخ الاصدار ","تاريخ الانتهاء ","اسم المحرم ","نوع الخدمة ","سعر الشراء ","سعر البيع "]
[1,"محمد ","رجل ","مصرى",2135206,1236555211,"2018-01-01","2019-12-10","ننن","طيران",2000,3000]
[2]
[3]
[4]
[5]
[6]
[7]
[8]
[9]
[10]
[11]
[12]
[13]
[14]
[15]
[16]
[17]
[18]
[19]
[20]
[21]
[22]
[23]
[24]
[25]
[26]
[27]
[28]
[29]
[30]
["الاجمالي",null,null,null,null,null,null,null,null,null,2000,3000]

{"sheet":"R148","index":50,"n_rows":45,"n_cols":12,"rows_kept":45,"cut":false,"hidden":false,"merged":[[44,0,44,9],[5,5,5,6],[6,5,6,6],[8,5,8,6],[9,5,9,6],[10,5,10,6]]}
[]
[]
[]
[]
[]
[null,null,null,null,null,"رقم الحافلة"]
[null,null,"حساب الرحلة ",null,null,{"$f":"IFERROR(INDEX(البيانات!$A$2:$A$320,MATCH($B$9,البيانات!$B$2:$B$320,0)),\"\")","v":0}]
[]
["رقم الرحلة","R148",null,"نوع الرحلة",null,{"$f":"IFERROR(VLOOKUP(F7,البيانات!$A$1:$C$6,3,0),\"\")","v":""}]
[null,null,null,"مدير مسئول"]
["تاريخ الرحلة",{"$f":"IFERROR(IF(VLOOKUP(F7,البيانات!$A$1:$D$6,4,0)=\"\",\"\",VLOOKUP(F7,البيانات!$A$1:$D$6,4,0)),\"\")","v":""},null,"اسم المرشد",null,{"$f":"IFERROR(VLOOKUP(F7,البيانات!$A$1:$E$6,5,0),\"\")","v":""}]
[]
[]
["الرقم ","اسم المعتمر ","الجنس ","الجنسية ","رقم الهوية ","رقم جواز السفر ","تاريخ الاصدار ","تاريخ الانتهاء ","اسم المحرم ","نوع الخدمة ","سعر الشراء ","سعر البيع "]
[1,"محمد ","رجل ","مصرى",2135206,1236555211,"2018-01-01","2019-12-10","ننن","طيران",2000,3000]
[2]
[3]
[4]
[5]
[6]
[7]
[8]
[9]
[10]
[11]
[12]
[13]
[14]
[15]
[16]
[17]
[18]
[19]
[20]
[21]
[22]
[23]
[24]
[25]
[26]
[27]
[28]
[29]
[30]
["الاجمالي",null,null,null,null,null,null,null,null,null,2000,3000]

{"sheet":"R149","index":51,"n_rows":45,"n_cols":12,"rows_kept":45,"cut":false,"hidden":false,"merged":[[44,0,44,9],[5,5,5,6],[6,5,6,6],[8,5,8,6],[9,5,9,6],[10,5,10,6]]}
[]
[]
[]
[]
[]
[null,null,null,null,null,"رقم الحافلة"]
[null,null,"حساب الرحلة ",null,null,{"$f":"IFERROR(INDEX(البيانات!$A$2:$A$320,MATCH($B$9,البيانات!$B$2:$B$320,0)),\"\")","v":0}]
[]
["رقم الرحلة","R149",null,"نوع الرحلة",null,{"$f":"IFERROR(VLOOKUP(F7,البيانات!$A$1:$C$6,3,0),\"\")","v":""}]
[null,null,null,"مدير مسئول"]
["تاريخ الرحلة",{"$f":"IFERROR(IF(VLOOKUP(F7,البيانات!$A$1:$D$6,4,0)=\"\",\"\",VLOOKUP(F7,البيانات!$A$1:$D$6,4,0)),\"\")","v":""},null,"اسم المرشد",null,{"$f":"IFERROR(VLOOKUP(F7,البيانات!$A$1:$E$6,5,0),\"\")","v":""}]
[]
[]
["الرقم ","اسم المعتمر ","الجنس ","الجنسية ","رقم الهوية ","رقم جواز السفر ","تاريخ الاصدار ","تاريخ الانتهاء ","اسم المحرم ","نوع الخدمة ","سعر الشراء ","سعر البيع "]
[1,"محمد ","رجل ","مصرى",2135206,1236555211,"2018-01-01","2019-12-10","ننن","طيران",2000,3000]
[2]
[3]
[4]
[5]
[6]
[7]
[8]
[9]
[10]
[11]
[12]
[13]
[14]
[15]
[16]
[17]
[18]
[19]
[20]
[21]
[22]
[23]
[24]
[25]
[26]
[27]
[28]
[29]
[30]
["الاجمالي",null,null,null,null,null,null,null,null,null,2000,3000]

{"sheet":"R150","index":52,"n_rows":45,"n_cols":12,"rows_kept":45,"cut":false,"hidden":false,"merged":[[44,0,44,9],[5,5,5,6],[6,5,6,6],[8,5,8,6],[9,5,9,6],[10,5,10,6]]}
[]
[]
[]
[]
[]
[null,null,null,null,null,"رقم الحافلة"]
[null,null,"حساب الرحلة ",null,null,{"$f":"IFERROR(INDEX(البيانات!$A$2:$A$320,MATCH($B$9,البيانات!$B$2:$B$320,0)),\"\")","v":0}]
[]
["رقم الرحلة","R150",null,"نوع الرحلة",null,{"$f":"IFERROR(VLOOKUP(F7,البيانات!$A$1:$C$6,3,0),\"\")","v":""}]
[null,null,null,"مدير مسئول"]
["تاريخ الرحلة",{"$f":"IFERROR(IF(VLOOKUP(F7,البيانات!$A$1:$D$6,4,0)=\"\",\"\",VLOOKUP(F7,البيانات!$A$1:$D$6,4,0)),\"\")","v":""},null,"اسم المرشد",null,{"$f":"IFERROR(VLOOKUP(F7,البيانات!$A$1:$E$6,5,0),\"\")","v":""}]
[]
[]
["الرقم ","اسم المعتمر ","الجنس ","الجنسية ","رقم الهوية ","رقم جواز السفر ","تاريخ الاصدار ","تاريخ الانتهاء ","اسم المحرم ","نوع الخدمة ","سعر الشراء ","سعر البيع "]
[1,"محمد ","رجل ","مصرى",2135206,1236555211,"2018-01-01","2019-12-10","ننن","طيران",2000,3000]
[2]
[3]
[4]
[5]
[6]
[7]
[8]
[9]
[10]
[11]
[12]
[13]
[14]
[15]
[16]
[17]
[18]
[19]
[20]
[21]
[22]
[23]
[24]
[25]
[26]
[27]
[28]
[29]
[30]
["الاجمالي",null,null,null,null,null,null,null,null,null,2000,3000]

{"sheet":"فاتورة المشتريات الرئيسية","index":53,"n_rows":24,"n_cols":6,"rows_kept":24,"cut":false,"hidden":false,"merged":[[23,1,25,4],[23,5,25,5],[30,1,30,2],[30,3,30,5],[5,1,5,5],[19,1,19,2],[20,1,20,4],[21,1,21,4],[22,1,22,4]]}
[]
[]
[]
[]
[]
[]
[null,null,"فاتورة مشتريات","رقم الفاتورة ",3]
[null,"رقم الرحلة",null,null,"اسم المرشد ",{"$f":"IFERROR(IF(INDEX(البيانات!$E$2:$E$1000,MATCH($C$8,البيانات!$B$2:$B$1000,0))=\"\",\"\",INDEX(البيانات!$E$2:$E$1000,MATCH($C$8,البيانات!$B$2:$B$1000,0))),\"\")","v":""}]
[null,"تاريخ الرحلة",{"$f":"IFERROR(IF(INDEX(البيانات!$D$2:$D$1000,MATCH($C$8,البيانات!$B$2:$B$1000,0))=\"\",\"\",INDEX(البيانات!$D$2:$D$1000,MATCH($C$8,البيانات!$B$2:$B$1000,0))),\"\")","v":""},null,"فندق المدينة المنورة",{"$f":"IFERROR(IF(INDEX(البيانات!$F$2:$F$1000,MATCH($C$8,البيانات!$B$2:$B$1000,0))=\"\",\"\",INDEX(البيانات!$F$2:$F$1000,MATCH($C$8,البيانات!$B$2:$B$1000,0))),\"\")","v":""}]
[null,"نوع الرحلة ",{"$f":"IFERROR(IF(INDEX(البيانات!$C$2:$C$1000,MATCH($C$8,البيانات!$B$2:$B$1000,0))=\"\",\"\",INDEX(البيانات!$C$2:$C$1000,MATCH($C$8,البيانات!$B$2:$B$1000,0))),\"\")","v":""},null,"فندق مكة المكرمة ",{"$f":"IFERROR(IF(INDEX(البيانات!$G$2:$G$1000,MATCH($C$8,البيانات!$B$2:$B$1000,0))=\"\",\"\",INDEX(البيانات!$G$2:$G$1000,MATCH($C$8,البيانات!$B$2:$B$1000,0))),\"\")","v":""}]
[null,"نوع الغرفة","عدد الغرف ","عدد المعتمرين","السعر ","الاجمالي"]
[null,"الثنائية                   ",null,null,null,{"$f":"D12*E12","v":0}]
[null,"الثلاثية                   ",null,null,null,{"$f":"D13*E13","v":0}]
[null,"الرباعية                  ",null,null,null,0]
[null,"الخماسية ",null,null,null,0]
[null,"تكاليف اخرى",null,null,null,0]
[null,"التأشيرة بدون مقعد  ",null,null,null,0]
[null,"التأشيرة + مقعد ",null,null,null,0]
[null,"اخرى ",null,null,null,0]
[null,"مجموع المعتمريـن",null,{"$f":"SUM(D12:D19)","v":0},"الاجمالي / دينار",{"$f":"SUM(F12:F19)","v":0}]
[null,"المرشد / (  يطرح ) "]
[null,"عمولة مندوبين، مصاريف"]
[null,"اخرى "]
[null," صافى المشتريات",null,null,null,{"$f":"F20-F21-F22-F23","v":0}]

{"sheet":"فواتير المشتريات الكلية","index":54,"n_rows":693,"n_cols":29,"rows_kept":693,"cut":false,"hidden":false,"merged":[[0,0,1,7],[0,20,1,28],[1,8,1,10],[1,11,1,13],[1,14,1,16],[1,17,1,19],[0,8,0,19]]}
[null,null,null,null,null,null,null,null,"نوع الغرف"]
[null,null,null,null,null,null,null,null,"الثنائية",null,null,"الثلاثية",null,null,"الرباعية",null,null,"الخماسية"]
["مسلسل","رقم\n الفاتورة","رقم \nالرحلة","تاريخ الرحلة","نوع \nالرحلة ","اسم المرشد","فندق\n المدينة \nالمنورة","فندق \nمكة \nالمكرمة ","عدد الغرف","عدد المعتمرين","السعر","عدد الغرف","عدد المعتمرين","السعر","عدد الغرف","عدد المعتمرين","السعر","عدد الغرف","عدد المعتمرين","السعر","تكاليف اخرى","التأشيرة \nبدون مقعد  ","التأشيرة\n+ مقعد","اخرى ","الاجمالي","المرشد /\n (  يطرح ) ","عمولة مندوبين\n، مصاريف","اخرى ","صافى\n المشتريات"]
[{"$f":"IF(B4=\"\",\"\",SUBTOTAL(3,$B$4:B4))","v":1},1,"R100","25-9-2018","طيران ","محمود",null,null,2,4,35,3,9,45,null,null,null,null,null,null,0,0,0,0,{"$f":"(I4*K4)+(L4*N4)+(O4*Q4)+(R4*T4)+SUM(U4:X4)","v":205},10,20,30,{"$f":"Y4-(Z4+AA4+AB4)","v":145}]
[{"$f":"IF(B5=\"\",\"\",SUBTOTAL(3,$B$4:B5))","v":2},2,"R101",null,"حافلات VIP","حذيفه",null,null,3,6,40,null,null,null,null,null,null,2,10,85,0,0,0,0,{"$f":"(I5*K5)+(L5*N5)+(O5*Q5)+(R5*T5)+SUM(U5:X5)","v":290},20,10,30,{"$f":"Y5-(Z5+AA5+AB5)","v":230}]
[{"$f":"IF(B6=\"\",\"\",SUBTOTAL(3,$B$4:B6))","v":""},null,null,null,null,null,null,null,null,null,null,null,null,null,null,null,null,null,null,null,null,null,null,null,0,null,null,null,0]
[{"$f":"IF(B7=\"\",\"\",SUBTOTAL(3,$B$4:B7))","v":""},null,null,null,null,null,null,null,null,null,null,null,null,null,null,null,null,null,null,null,null,null,null,null,0,null,null,null,0]
[{"$f":"IF(B8=\"\",\"\",SUBTOTAL(3,$B$4:B8))","v":""},null,null,null,null,null,null,null,null,null,null,null,null,null,null,null,null,null,null,null,null,null,null,null,0,null,null,null,0]
[{"$f":"IF(B9=\"\",\"\",SUBTOTAL(3,$B$4:B9))","v":""},null,null,null,null,null,null,null,null,null,null,null,null,null,null,null,null,null,null,null,null,null,null,null,0,null,null,null,0]
[{"$f":"IF(B10=\"\",\"\",SUBTOTAL(3,$B$4:B10))","v":""},null,null,null,null,null,null,null,null,null,null,null,null,null,null,null,null,null,null,null,null,null,null,null,0,null,null,null,0]
[{"$f":"IF(B11=\"\",\"\",SUBTOTAL(3,$B$4:B11))","v":""},null,null,null,null,null,null,null,null,null,null,null,null,null,null,null,null,null,null,null,null,null,null,null,0,null,null,null,0]
[{"$f":"IF(B12=\"\",\"\",SUBTOTAL(3,$B$4:B12))","v":""},null,null,null,null,null,null,null,null,null,null,null,null,null,null,null,null,null,null,null,null,null,null,null,0,null,null,null,0]
[{"$f":"IF(B13=\"\",\"\",SUBTOTAL(3,$B$4:B13))","v":""},null,null,null,null,null,null,null,null,null,null,null,null,null,null,null,null,null,null,null,null,null,null,null,0,null,null,null,0]
[{"$f":"IF(B14=\"\",\"\",SUBTOTAL(3,$B$4:B14))","v":""},null,null,null,null,null,null,null,null,null,null,null,null,null,null,null,null,null,null,null,null,null,null,null,0,null,null,null,0]
[{"$f":"IF(B15=\"\",\"\",SUBTOTAL(3,$B$4:B15))","v":""},null,null,null,null,null,null,null,null,null,null,null,null,null,null,null,null,null,null,null,null,null,null,null,0,null,null,null,0]
[{"$f":"IF(B16=\"\",\"\",SUBTOTAL(3,$B$4:B16))","v":""},null,null,null,null,null,null,null,null,null,null,null,null,null,null,null,null,null,null,null,null,null,null,null,0,null,null,null,0]
[{"$f":"IF(B17=\"\",\"\",SUBTOTAL(3,$B$4:B17))","v":""},null,null,null,null,null,null,null,null,null,null,null,null,null,null,null,null,null,null,null,null,null,null,null,0,null,null,null,0]
[{"$f":"IF(B18=\"\",\"\",SUBTOTAL(3,$B$4:B18))","v":""},null,null,null,null,null,null,null,null,null,null,null,null,null,null,null,null,null,null,null,null,null,null,null,0,null,null,null,0]
[{"$f":"IF(B19=\"\",\"\",SUBTOTAL(3,$B$4:B19))","v":""},null,null,null,null,null,null,null,null,null,null,null,null,null,null,null,null,null,null,null,null,null,null,null,0,null,null,null,0]
[{"$f":"IF(B20=\"\",\"\",SUBTOTAL(3,$B$4:B20))","v":""},null,null,null,null,null,null,null,null,null,null,null,null,null,null,null,null,null,null,null,null,null,null,null,0,null,null,null,0]
[{"$f":"IF(B21=\"\",\"\",SUBTOTAL(3,$B$4:B21))","v":""},null,null,null,null,null,null,null,null,null,null,null,null,null,null,null,null,null,null,null,null,null,null,null,0,null,null,null,0]
[{"$f":"IF(B22=\"\",\"\",SUBTOTAL(3,$B$4:B22))","v":""},null,null,null,null,null,null,null,null,null,null,null,null,null,null,null,null,null,null,null,null,null,null,null,0,null,null,null,0]
[{"$f":"IF(B23=\"\",\"\",SUBTOTAL(3,$B$4:B23))","v":""},null,null,null,null,null,null,null,null,null,null,null,null,null,null,null,null,null,null,null,null,null,null,null,0,null,null,null,0]
[{"$f":"IF(B24=\"\",\"\",SUBTOTAL(3,$B$4:B24))","v":""},null,null,null,null,null,null,null,null,null,null,null,null,null,null,null,null,null,null,null,null,null,null,null,0,null,null,null,0]
[{"$f":"IF(B25=\"\",\"\",SUBTOTAL(3,$B$4:B25))","v":""},null,null,null,null,null,null,null,null,null,null,null,null,null,null,null,null,null,null,null,null,null,null,null,0,null,null,null,0]
[{"$f":"IF(B26=\"\",\"\",SUBTOTAL(3,$B$4:B26))","v":""},null,null,null,null,null,null,null,null,null,null,null,null,null,null,null,null,null,null,null,null,null,null,null,0,null,null,null,0]
[{"$f":"IF(B27=\"\",\"\",SUBTOTAL(3,$B$4:B27))","v":""},null,null,null,null,null,null,null,null,null,null,null,null,null,null,null,null,null,null,null,null,null,null,null,0,null,null,null,0]
[{"$f":"IF(B28=\"\",\"\",SUBTOTAL(3,$B$4:B28))","v":""},null,null,null,null,null,null,null,null,null,null,null,null,null,null,null,null,null,null,null,null,null,null,null,0,null,null,null,0]
[{"$f":"IF(B29=\"\",\"\",SUBTOTAL(3,$B$4:B29))","v":""},null,null,null,null,null,null,null,null,null,null,null,null,null,null,null,null,null,null,null,null,null,null,null,0,null,null,null,0]
[{"$f":"IF(B30=\"\",\"\",SUBTOTAL(3,$B$4:B30))","v":""},null,null,null,null,null,null,null,null,null,null,null,null,null,null,null,null,null,null,null,null,null,null,null,0,null,null,null,0]
[{"$f":"IF(B31=\"\",\"\",SUBTOTAL(3,$B$4:B31))","v":""},null,null,null,null,null,null,null,null,null,null,null,null,null,null,null,null,null,null,null,null,null,null,null,0,null,null,null,0]
[{"$f":"IF(B32=\"\",\"\",SUBTOTAL(3,$B$4:B32))","v":""},null,null,null,null,null,null,null,null,null,null,null,null,null,null,null,null,null,null,null,null,null,null,null,0,null,null,null,0]
[{"$f":"IF(B33=\"\",\"\",SUBTOTAL(3,$B$4:B33))","v":""},null,null,null,null,null,null,null,null,null,null,null,null,null,null,null,null,null,null,null,null,null,null,null,0,null,null,null,0]
[{"$f":"IF(B34=\"\",\"\",SUBTOTAL(3,$B$4:B34))","v":""},null,null,null,null,null,null,null,null,null,null,null,null,null,null,null,null,null,null,null,null,null,null,null,0,null,null,null,0]
[{"$f":"IF(B35=\"\",\"\",SUBTOTAL(3,$B$4:B35))","v":""},null,null,null,null,null,null,null,null,null,null,null,null,null,null,null,null,null,null,null,null,null,null,null,0,null,null,null,0]
[{"$f":"IF(B36=\"\",\"\",SUBTOTAL(3,$B$4:B36))","v":""},null,null,null,null,null,null,null,null,null,null,null,null,null,null,null,null,null,null,null,null,null,null,null,0,null,null,null,0]
[{"$f":"IF(B37=\"\",\"\",SUBTOTAL(3,$B$4:B37))","v":""},null,null,null,null,null,null,null,null,null,null,null,null,null,null,null,null,null,null,null,null,null,null,null,0,null,null,null,0]
[{"$f":"IF(B38=\"\",\"\",SUBTOTAL(3,$B$4:B38))","v":""},null,null,null,null,null,null,null,null,null,null,null,null,null,null,null,null,null,null,null,null,null,null,null,0,null,null,null,0]
[{"$f":"IF(B39=\"\",\"\",SUBTOTAL(3,$B$4:B39))","v":""},null,null,null,null,null,null,null,null,null,null,null,null,null,null,null,null,null,null,null,null,null,null,null,0,null,null,null,0]
[{"$f":"IF(B40=\"\",\"\",SUBTOTAL(3,$B$4:B40))","v":""},null,null,null,null,null,null,null,null,null,null,null,null,null,null,null,null,null,null,null,null,null,null,null,0,null,null,null,0]
[{"$f":"IF(B41=\"\",\"\",SUBTOTAL(3,$B$4:B41))","v":""},null,null,null,null,null,null,null,null,null,null,null,null,null,null,null,null,null,null,null,null,null,null,null,0,null,null,null,0]
[{"$f":"IF(B42=\"\",\"\",SUBTOTAL(3,$B$4:B42))","v":""},null,null,null,null,null,null,null,null,null,null,null,null,null,null,null,null,null,null,null,null,null,null,null,0,null,null,null,0]
[{"$f":"IF(B43=\"\",\"\",SUBTOTAL(3,$B$4:B43))","v":""},null,null,null,null,null,null,null,null,null,null,null,null,null,null,null,null,null,null,null,null,null,null,null,0,null,null,null,0]
[{"$f":"IF(B44=\"\",\"\",SUBTOTAL(3,$B$4:B44))","v":""},null,null,null,null,null,null,null,null,null,null,null,null,null,null,null,null,null,null,null,null,null,null,null,0,null,null,null,0]
[{"$f":"IF(B45=\"\",\"\",SUBTOTAL(3,$B$4:B45))","v":""},null,null,null,null,null,null,null,null,null,null,null,null,null,null,null,null,null,null,null,null,null,null,null,0,null,null,null,0]
[{"$f":"IF(B46=\"\",\"\",SUBTOTAL(3,$B$4:B46))","v":""},null,null,null,null,null,null,null,null,null,null,null,null,null,null,null,null,null,null,null,null,null,null,null,0,null,null,null,0]
[{"$f":"IF(B47=\"\",\"\",SUBTOTAL(3,$B$4:B47))","v":""},null,null,null,null,null,null,null,null,null,null,null,null,null,null,null,null,null,null,null,null,null,null,null,0,null,null,null,0]
[{"$f":"IF(B48=\"\",\"\",SUBTOTAL(3,$B$4:B48))","v":""},null,null,null,null,null,null,null,null,null,null,null,null,null,null,null,null,null,null,null,null,null,null,null,0,null,null,null,0]
[{"$f":"IF(B49=\"\",\"\",SUBTOTAL(3,$B$4:B49))","v":""},null,null,null,null,null,null,null,null,null,null,null,null,null,null,null,null,null,null,null,null,null,null,null,0,null,null,null,0]
[{"$f":"IF(B50=\"\",\"\",SUBTOTAL(3,$B$4:B50))","v":""},null,null,null,null,null,null,null,null,null,null,null,null,null,null,null,null,null,null,null,null,null,null,null,0,null,null,null,0]
[{"$f":"IF(B51=\"\",\"\",SUBTOTAL(3,$B$4:B51))","v":""},null,null,null,null,null,null,null,null,null,null,null,null,null,null,null,null,null,null,null,null,null,null,null,0,null,null,null,0]
[{"$f":"IF(B52=\"\",\"\",SUBTOTAL(3,$B$4:B52))","v":""},null,null,null,null,null,null,null,null,null,null,null,null,null,null,null,null,null,null,null,null,null,null,null,0,null,null,null,0]
[{"$f":"IF(B53=\"\",\"\",SUBTOTAL(3,$B$4:B53))","v":""},null,null,null,null,null,null,null,null,null,null,null,null,null,null,null,null,null,null,null,null,null,null,null,0,null,null,null,0]
[{"$f":"IF(B54=\"\",\"\",SUBTOTAL(3,$B$4:B54))","v":""},null,null,null,null,null,null,null,null,null,null,null,null,null,null,null,null,null,null,null,null,null,null,null,0,null,null,null,0]
[{"$f":"IF(B55=\"\",\"\",SUBTOTAL(3,$B$4:B55))","v":""},null,null,null,null,null,null,null,null,null,null,null,null,null,null,null,null,null,null,null,null,null,null,null,0,null,null,null,0]
[{"$f":"IF(B56=\"\",\"\",SUBTOTAL(3,$B$4:B56))","v":""},null,null,null,null,null,null,null,null,null,null,null,null,null,null,null,null,null,null,null,null,null,null,null,0,null,null,null,0]
[{"$f":"IF(B57=\"\",\"\",SUBTOTAL(3,$B$4:B57))","v":""},null,null,null,null,null,null,null,null,null,null,null,null,null,null,null,null,null,null,null,null,null,null,null,0,null,null,null,0]
[{"$f":"IF(B58=\"\",\"\",SUBTOTAL(3,$B$4:B58))","v":""},null,null,null,null,null,null,null,null,null,null,null,null,null,null,null,null,null,null,null,null,null,null,null,0,null,null,null,0]
[{"$f":"IF(B59=\"\",\"\",SUBTOTAL(3,$B$4:B59))","v":""},null,null,null,null,null,null,null,null,null,null,null,null,null,null,null,null,null,null,null,null,null,null,null,0,null,null,null,0]
[{"$f":"IF(B60=\"\",\"\",SUBTOTAL(3,$B$4:B60))","v":""},null,null,null,null,null,null,null,null,null,null,null,null,null,null,null,null,null,null,null,null,null,null,null,0,null,null,null,0]
[{"$f":"IF(B61=\"\",\"\",SUBTOTAL(3,$B$4:B61))","v":""},null,null,null,null,null,null,null,null,null,null,null,null,null,null,null,null,null,null,null,null,null,null,null,0,null,null,null,0]
[{"$f":"IF(B62=\"\",\"\",SUBTOTAL(3,$B$4:B62))","v":""},null,null,null,null,null,null,null,null,null,null,null,null,null,null,null,null,null,null,null,null,null,null,null,0,null,null,null,0]
[{"$f":"IF(B63=\"\",\"\",SUBTOTAL(3,$B$4:B63))","v":""},null,null,null,null,null,null,null,null,null,null,null,null,null,null,null,null,null,null,null,null,null,null,null,0,null,null,null,0]
[{"$f":"IF(B64=\"\",\"\",SUBTOTAL(3,$B$4:B64))","v":""},null,null,null,null,null,null,null,null,null,null,null,null,null,null,null,null,null,null,null,null,null,null,null,0,null,null,null,0]
[{"$f":"IF(B65=\"\",\"\",SUBTOTAL(3,$B$4:B65))","v":""},null,null,null,null,null,null,null,null,null,null,null,null,null,null,null,null,null,null,null,null,null,null,null,0,null,null,null,0]
[{"$f":"IF(B66=\"\",\"\",SUBTOTAL(3,$B$4:B66))","v":""},null,null,null,null,null,null,null,null,null,null,null,null,null,null,null,null,null,null,null,null,null,null,null,0,null,null,null,0]
[{"$f":"IF(B67=\"\",\"\",SUBTOTAL(3,$B$4:B67))","v":""},null,null,null,null,null,null,null,null,null,null,null,null,null,null,null,null,null,null,null,null,null,null,null,0,null,null,null,0]
[{"$f":"IF(B68=\"\",\"\",SUBTOTAL(3,$B$4:B68))","v":""},null,null,null,null,null,null,null,null,null,null,null,null,null,null,null,null,null,null,null,null,null,null,null,0,null,null,null,0]
[{"$f":"IF(B69=\"\",\"\",SUBTOTAL(3,$B$4:B69))","v":""},null,null,null,null,null,null,null,null,null,null,null,null,null,null,null,null,null,null,null,null,null,null,null,{"$f":"(I69*K69)+(L69*N69)+(O69*Q69)+(R69*T69)+SUM(U69:X69)","v":0},null,null,null,{"$f":"Y69-(Z69+AA69+AB69)","v":0}]
[{"$f":"IF(B70=\"\",\"\",SUBTOTAL(3,$B$4:B70))","v":""},null,null,null,null,null,null,null,null,null,null,null,null,null,null,null,null,null,null,null,null,null,null,null,0,null,null,null,0]
[{"$f":"IF(B71=\"\",\"\",SUBTOTAL(3,$B$4:B71))","v":""},null,null,null,null,null,null,null,null,null,null,null,null,null,null,null,null,null,null,null,null,null,null,null,0,null,null,null,0]
[{"$f":"IF(B72=\"\",\"\",SUBTOTAL(3,$B$4:B72))","v":""},null,null,null,null,null,null,null,null,null,null,null,null,null,null,null,null,null,null,null,null,null,null,null,0,null,null,null,0]
[{"$f":"IF(B73=\"\",\"\",SUBTOTAL(3,$B$4:B73))","v":""},null,null,null,null,null,null,null,null,null,null,null,null,null,null,null,null,null,null,null,null,null,null,null,0,null,null,null,0]
[{"$f":"IF(B74=\"\",\"\",SUBTOTAL(3,$B$4:B74))","v":""},null,null,null,null,null,null,null,null,null,null,null,null,null,null,null,null,null,null,null,null,null,null,null,0,null,null,null,0]
[{"$f":"IF(B75=\"\",\"\",SUBTOTAL(3,$B$4:B75))","v":""},null,null,null,null,null,null,null,null,null,null,null,null,null,null,null,null,null,null,null,null,null,null,null,0,null,null,null,0]
[{"$f":"IF(B76=\"\",\"\",SUBTOTAL(3,$B$4:B76))","v":""},null,null,null,null,null,null,null,null,null,null,null,null,null,null,null,null,null,null,null,null,null,null,null,0,null,null,null,0]
[{"$f":"IF(B77=\"\",\"\",SUBTOTAL(3,$B$4:B77))","v":""},null,null,null,null,null,null,null,null,null,null,null,null,null,null,null,null,null,null,null,null,null,null,null,0,null,null,null,0]
[{"$f":"IF(B78=\"\",\"\",SUBTOTAL(3,$B$4:B78))","v":""},null,null,null,null,null,null,null,null,null,null,null,null,null,null,null,null,null,null,null,null,null,null,null,0,null,null,null,0]
[{"$f":"IF(B79=\"\",\"\",SUBTOTAL(3,$B$4:B79))","v":""},null,null,null,null,null,null,null,null,null,null,null,null,null,null,null,null,null,null,null,null,null,null,null,0,null,null,null,0]
[{"$f":"IF(B80=\"\",\"\",SUBTOTAL(3,$B$4:B80))","v":""},null,null,null,null,null,null,null,null,null,null,null,null,null,null,null,null,null,null,null,null,null,null,null,0,null,null,null,0]
[{"$f":"IF(B81=\"\",\"\",SUBTOTAL(3,$B$4:B81))","v":""},null,null,null,null,null,null,null,null,null,null,null,null,null,null,null,null,null,null,null,null,null,null,null,0,null,null,null,0]
[{"$f":"IF(B82=\"\",\"\",SUBTOTAL(3,$B$4:B82))","v":""},null,null,null,null,null,null,null,null,null,null,null,null,null,null,null,null,null,null,null,null,null,null,null,0,null,null,null,0]
[{"$f":"IF(B83=\"\",\"\",SUBTOTAL(3,$B$4:B83))","v":""},null,null,null,null,null,null,null,null,null,null,null,null,null,null,null,null,null,null,null,null,null,null,null,0,null,null,null,0]
[{"$f":"IF(B84=\"\",\"\",SUBTOTAL(3,$B$4:B84))","v":""},null,null,null,null,null,null,null,null,null,null,null,null,null,null,null,null,null,null,null,null,null,null,null,0,null,null,null,0]
[{"$f":"IF(B85=\"\",\"\",SUBTOTAL(3,$B$4:B85))","v":""},null,null,null,null,null,null,null,null,null,null,null,null,null,null,null,null,null,null,null,null,null,null,null,0,null,null,null,0]
[{"$f":"IF(B86=\"\",\"\",SUBTOTAL(3,$B$4:B86))","v":""},null,null,null,null,null,null,null,null,null,null,null,null,null,null,null,null,null,null,null,null,null,null,null,0,null,null,null,0]
[{"$f":"IF(B87=\"\",\"\",SUBTOTAL(3,$B$4:B87))","v":""},null,null,null,null,null,null,null,null,null,null,null,null,null,null,null,null,null,null,null,null,null,null,null,0,null,null,null,0]
[{"$f":"IF(B88=\"\",\"\",SUBTOTAL(3,$B$4:B88))","v":""},null,null,null,null,null,null,null,null,null,null,null,null,null,null,null,null,null,null,null,null,null,null,null,0,null,null,null,0]
[{"$f":"IF(B89=\"\",\"\",SUBTOTAL(3,$B$4:B89))","v":""},null,null,null,null,null,null,null,null,null,null,null,null,null,null,null,null,null,null,null,null,null,null,null,0,null,null,null,0]
[{"$f":"IF(B90=\"\",\"\",SUBTOTAL(3,$B$4:B90))","v":""},null,null,null,null,null,null,null,null,null,null,null,null,null,null,null,null,null,null,null,null,null,null,null,0,null,null,null,0]
[{"$f":"IF(B91=\"\",\"\",SUBTOTAL(3,$B$4:B91))","v":""},null,null,null,null,null,null,null,null,null,null,null,null,null,null,null,null,null,null,null,null,null,null,null,0,null,null,null,0]
[{"$f":"IF(B92=\"\",\"\",SUBTOTAL(3,$B$4:B92))","v":""},null,null,null,null,null,null,null,null,null,null,null,null,null,null,null,null,null,null,null,null,null,null,null,0,null,null,null,0]
[{"$f":"IF(B93=\"\",\"\",SUBTOTAL(3,$B$4:B93))","v":""},null,null,null,null,null,null,null,null,null,null,null,null,null,null,null,null,null,null,null,null,null,null,null,0,null,null,null,0]
[{"$f":"IF(B94=\"\",\"\",SUBTOTAL(3,$B$4:B94))","v":""},null,null,null,null,null,null,null,null,null,null,null,null,null,null,null,null,null,null,null,null,null,null,null,0,null,null,null,0]
[{"$f":"IF(B95=\"\",\"\",SUBTOTAL(3,$B$4:B95))","v":""},null,null,null,null,null,null,null,null,null,null,null,null,null,null,null,null,null,null,null,null,null,null,null,0,null,null,null,0]
[{"$f":"IF(B96=\"\",\"\",SUBTOTAL(3,$B$4:B96))","v":""},null,null,null,null,null,null,null,null,null,null,null,null,null,null,null,null,null,null,null,null,null,null,null,0,null,null,null,0]
[{"$f":"IF(B97=\"\",\"\",SUBTOTAL(3,$B$4:B97))","v":""},null,null,null,null,null,null,null,null,null,null,null,null,null,null,null,null,null,null,null,null,null,null,null,0,null,null,null,0]
[{"$f":"IF(B98=\"\",\"\",SUBTOTAL(3,$B$4:B98))","v":""},null,null,null,null,null,null,null,null,null,null,null,null,null,null,null,null,null,null,null,null,null,null,null,0,null,null,null,0]
[{"$f":"IF(B99=\"\",\"\",SUBTOTAL(3,$B$4:B99))","v":""},null,null,null,null,null,null,null,null,null,null,null,null,null,null,null,null,null,null,null,null,null,null,null,0,null,null,null,0]
[{"$f":"IF(B100=\"\",\"\",SUBTOTAL(3,$B$4:B100))","v":""},null,null,null,null,null,null,null,null,null,null,null,null,null,null,null,null,null,null,null,null,null,null,null,0,null,null,null,0]
[{"$f":"IF(B101=\"\",\"\",SUBTOTAL(3,$B$4:B101))","v":""},null,null,null,null,null,null,null,null,null,null,null,null,null,null,null,null,null,null,null,null,null,null,null,0,null,null,null,0]
[{"$f":"IF(B102=\"\",\"\",SUBTOTAL(3,$B$4:B102))","v":""},null,null,null,null,null,null,null,null,null,null,null,null,null,null,null,null,null,null,null,null,null,null,null,0,null,null,null,0]
[{"$f":"IF(B103=\"\",\"\",SUBTOTAL(3,$B$4:B103))","v":""},null,null,null,null,null,null,null,null,null,null,null,null,null,null,null,null,null,null,null,null,null,null,null,0,null,null,null,0]
[{"$f":"IF(B104=\"\",\"\",SUBTOTAL(3,$B$4:B104))","v":""},null,null,null,null,null,null,null,null,null,null,null,null,null,null,null,null,null,null,null,null,null,null,null,0,null,null,null,0]
[{"$f":"IF(B105=\"\",\"\",SUBTOTAL(3,$B$4:B105))","v":""},null,null,null,null,null,null,null,null,null,null,null,null,null,null,null,null,null,null,null,null,null,null,null,0,null,null,null,0]
[{"$f":"IF(B106=\"\",\"\",SUBTOTAL(3,$B$4:B106))","v":""},null,null,null,null,null,null,null,null,null,null,null,null,null,null,null,null,null,null,null,null,null,null,null,0,null,null,null,0]
[{"$f":"IF(B107=\"\",\"\",SUBTOTAL(3,$B$4:B107))","v":""},null,null,null,null,null,null,null,null,null,null,null,null,null,null,null,null,null,null,null,null,null,null,null,0,null,null,null,0]
[{"$f":"IF(B108=\"\",\"\",SUBTOTAL(3,$B$4:B108))","v":""},null,null,null,null,null,null,null,null,null,null,null,null,null,null,null,null,null,null,null,null,null,null,null,0,null,null,null,0]
[{"$f":"IF(B109=\"\",\"\",SUBTOTAL(3,$B$4:B109))","v":""},null,null,null,null,null,null,null,null,null,null,null,null,null,null,null,null,null,null,null,null,null,null,null,0,null,null,null,0]
[{"$f":"IF(B110=\"\",\"\",SUBTOTAL(3,$B$4:B110))","v":""},null,null,null,null,null,null,null,null,null,null,null,null,null,null,null,null,null,null,null,null,null,null,null,0,null,null,null,0]
[{"$f":"IF(B111=\"\",\"\",SUBTOTAL(3,$B$4:B111))","v":""},null,null,null,null,null,null,null,null,null,null,null,null,null,null,null,null,null,null,null,null,null,null,null,0,null,null,null,0]
[{"$f":"IF(B112=\"\",\"\",SUBTOTAL(3,$B$4:B112))","v":""},null,null,null,null,null,null,null,null,null,null,null,null,null,null,null,null,null,null,null,null,null,null,null,0,null,null,null,0]
[{"$f":"IF(B113=\"\",\"\",SUBTOTAL(3,$B$4:B113))","v":""},null,null,null,null,null,null,null,null,null,null,null,null,null,null,null,null,null,null,null,null,null,null,null,0,null,null,null,0]
[{"$f":"IF(B114=\"\",\"\",SUBTOTAL(3,$B$4:B114))","v":""},null,null,null,null,null,null,null,null,null,null,null,null,null,null,null,null,null,null,null,null,null,null,null,0,null,null,null,0]
[{"$f":"IF(B115=\"\",\"\",SUBTOTAL(3,$B$4:B115))","v":""},null,null,null,null,null,null,null,null,null,null,null,null,null,null,null,null,null,null,null,null,null,null,null,0,null,null,null,0]
[{"$f":"IF(B116=\"\",\"\",SUBTOTAL(3,$B$4:B116))","v":""},null,null,null,null,null,null,null,null,null,null,null,null,null,null,null,null,null,null,null,null,null,null,null,0,null,null,null,0]
[{"$f":"IF(B117=\"\",\"\",SUBTOTAL(3,$B$4:B117))","v":""},null,null,null,null,null,null,null,null,null,null,null,null,null,null,null,null,null,null,null,null,null,null,null,0,null,null,null,0]
[{"$f":"IF(B118=\"\",\"\",SUBTOTAL(3,$B$4:B118))","v":""},null,null,null,null,null,null,null,null,null,null,null,null,null,null,null,null,null,null,null,null,null,null,null,0,null,null,null,0]
[{"$f":"IF(B119=\"\",\"\",SUBTOTAL(3,$B$4:B119))","v":""},null,null,null,null,null,null,null,null,null,null,null,null,null,null,null,null,null,null,null,null,null,null,null,0,null,null,null,0]
[{"$f":"IF(B120=\"\",\"\",SUBTOTAL(3,$B$4:B120))","v":""},null,null,null,null,null,null,null,null,null,null,null,null,null,null,null,null,null,null,null,null,null,null,null,0,null,null,null,0]
[{"$f":"IF(B121=\"\",\"\",SUBTOTAL(3,$B$4:B121))","v":""},null,null,null,null,null,null,null,null,null,null,null,null,null,null,null,null,null,null,null,null,null,null,null,0,null,null,null,0]
[{"$f":"IF(B122=\"\",\"\",SUBTOTAL(3,$B$4:B122))","v":""},null,null,null,null,null,null,null,null,null,null,null,null,null,null,null,null,null,null,null,null,null,null,null,0,null,null,null,0]
[{"$f":"IF(B123=\"\",\"\",SUBTOTAL(3,$B$4:B123))","v":""},null,null,null,null,null,null,null,null,null,null,null,null,null,null,null,null,null,null,null,null,null,null,null,0,null,null,null,0]
[{"$f":"IF(B124=\"\",\"\",SUBTOTAL(3,$B$4:B124))","v":""},null,null,null,null,null,null,null,null,null,null,null,null,null,null,null,null,null,null,null,null,null,null,null,0,null,null,null,0]
[{"$f":"IF(B125=\"\",\"\",SUBTOTAL(3,$B$4:B125))","v":""},null,null,null,null,null,null,null,null,null,null,null,null,null,null,null,null,null,null,null,null,null,null,null,0,null,null,null,0]
[{"$f":"IF(B126=\"\",\"\",SUBTOTAL(3,$B$4:B126))","v":""},null,null,null,null,null,null,null,null,null,null,null,null,null,null,null,null,null,null,null,null,null,null,null,0,null,null,null,0]
[{"$f":"IF(B127=\"\",\"\",SUBTOTAL(3,$B$4:B127))","v":""},null,null,null,null,null,null,null,null,null,null,null,null,null,null,null,null,null,null,null,null,null,null,null,0,null,null,null,0]
[{"$f":"IF(B128=\"\",\"\",SUBTOTAL(3,$B$4:B128))","v":""},null,null,null,null,null,null,null,null,null,null,null,null,null,null,null,null,null,null,null,null,null,null,null,0,null,null,null,0]
[{"$f":"IF(B129=\"\",\"\",SUBTOTAL(3,$B$4:B129))","v":""},null,null,null,null,null,null,null,null,null,null,null,null,null,null,null,null,null,null,null,null,null,null,null,0,null,null,null,0]
[{"$f":"IF(B130=\"\",\"\",SUBTOTAL(3,$B$4:B130))","v":""},null,null,null,null,null,null,null,null,null,null,null,null,null,null,null,null,null,null,null,null,null,null,null,0,null,null,null,0]
[{"$f":"IF(B131=\"\",\"\",SUBTOTAL(3,$B$4:B131))","v":""},null,null,null,null,null,null,null,null,null,null,null,null,null,null,null,null,null,null,null,null,null,null,null,0,null,null,null,0]
[{"$f":"IF(B132=\"\",\"\",SUBTOTAL(3,$B$4:B132))","v":""},null,null,null,null,null,null,null,null,null,null,null,null,null,null,null,null,null,null,null,null,null,null,null,0,null,null,null,0]
[{"$f":"IF(B133=\"\",\"\",SUBTOTAL(3,$B$4:B133))","v":""},null,null,null,null,null,null,null,null,null,null,null,null,null,null,null,null,null,null,null,null,null,null,null,{"$f":"(I133*K133)+(L133*N133)+(O133*Q133)+(R133*T133)+SUM(U133:X133)","v":0},null,null,null,{"$f":"Y133-(Z133+AA133+AB133)","v":0}]
[{"$f":"IF(B134=\"\",\"\",SUBTOTAL(3,$B$4:B134))","v":""},null,null,null,null,null,null,null,null,null,null,null,null,null,null,null,null,null,null,null,null,null,null,null,0,null,null,null,0]
[{"$f":"IF(B135=\"\",\"\",SUBTOTAL(3,$B$4:B135))","v":""},null,null,null,null,null,null,null,null,null,null,null,null,null,null,null,null,null,null,null,null,null,null,null,0,null,null,null,0]
[{"$f":"IF(B136=\"\",\"\",SUBTOTAL(3,$B$4:B136))","v":""},null,null,null,null,null,null,null,null,null,null,null,null,null,null,null,null,null,null,null,null,null,null,null,0,null,null,null,0]
[{"$f":"IF(B137=\"\",\"\",SUBTOTAL(3,$B$4:B137))","v":""},null,null,null,null,null,null,null,null,null,null,null,null,null,null,null,null,null,null,null,null,null,null,null,0,null,null,null,0]
[{"$f":"IF(B138=\"\",\"\",SUBTOTAL(3,$B$4:B138))","v":""},null,null,null,null,null,null,null,null,null,null,null,null,null,null,null,null,null,null,null,null,null,null,null,0,null,null,null,0]
[{"$f":"IF(B139=\"\",\"\",SUBTOTAL(3,$B$4:B139))","v":""},null,null,null,null,null,null,null,null,null,null,null,null,null,null,null,null,null,null,null,null,null,null,null,0,null,null,null,0]
[{"$f":"IF(B140=\"\",\"\",SUBTOTAL(3,$B$4:B140))","v":""},null,null,null,null,null,null,null,null,null,null,null,null,null,null,null,null,null,null,null,null,null,null,null,0,null,null,null,0]
[{"$f":"IF(B141=\"\",\"\",SUBTOTAL(3,$B$4:B141))","v":""},null,null,null,null,null,null,null,null,null,null,null,null,null,null,null,null,null,null,null,null,null,null,null,0,null,null,null,0]
[{"$f":"IF(B142=\"\",\"\",SUBTOTAL(3,$B$4:B142))","v":""},null,null,null,null,null,null,null,null,null,null,null,null,null,null,null,null,null,null,null,null,null,null,null,0,null,null,null,0]
[{"$f":"IF(B143=\"\",\"\",SUBTOTAL(3,$B$4:B143))","v":""},null,null,null,null,null,null,null,null,null,null,null,null,null,null,null,null,null,null,null,null,null,null,null,0,null,null,null,0]
[{"$f":"IF(B144=\"\",\"\",SUBTOTAL(3,$B$4:B144))","v":""},null,null,null,null,null,null,null,null,null,null,null,null,null,null,null,null,null,null,null,null,null,null,null,0,null,null,null,0]
[{"$f":"IF(B145=\"\",\"\",SUBTOTAL(3,$B$4:B145))","v":""},null,null,null,null,null,null,null,null,null,null,null,null,null,null,null,null,null,null,null,null,null,null,null,0,null,null,null,0]
[{"$f":"IF(B146=\"\",\"\",SUBTOTAL(3,$B$4:B146))","v":""},null,null,null,null,null,null,null,null,null,null,null,null,null,null,null,null,null,null,null,null,null,null,null,0,null,null,null,0]
[{"$f":"IF(B147=\"\",\"\",SUBTOTAL(3,$B$4:B147))","v":""},null,null,null,null,null,null,null,null,null,null,null,null,null,null,null,null,null,null,null,null,null,null,null,0,null,null,null,0]
[{"$f":"IF(B148=\"\",\"\",SUBTOTAL(3,$B$4:B148))","v":""},null,null,null,null,null,null,null,null,null,null,null,null,null,null,null,null,null,null,null,null,null,null,null,0,null,null,null,0]
[{"$f":"IF(B149=\"\",\"\",SUBTOTAL(3,$B$4:B149))","v":""},null,null,null,null,null,null,null,null,null,null,null,null,null,null,null,null,null,null,null,null,null,null,null,0,null,null,null,0]
[{"$f":"IF(B150=\"\",\"\",SUBTOTAL(3,$B$4:B150))","v":""},null,null,null,null,null,null,null,null,null,null,null,null,null,null,null,null,null,null,null,null,null,null,null,0,null,null,null,0]
[{"$f":"IF(B151=\"\",\"\",SUBTOTAL(3,$B$4:B151))","v":""},null,null,null,null,null,null,null,null,null,null,null,null,null,null,null,null,null,null,null,null,null,null,null,0,null,null,null,0]
[{"$f":"IF(B152=\"\",\"\",SUBTOTAL(3,$B$4:B152))","v":""},null,null,null,null,null,null,null,null,null,null,null,null,null,null,null,null,null,null,null,null,null,null,null,0,null,null,null,0]
[{"$f":"IF(B153=\"\",\"\",SUBTOTAL(3,$B$4:B153))","v":""},null,null,null,null,null,null,null,null,null,null,null,null,null,null,null,null,null,null,null,null,null,null,null,0,null,null,null,0]
[{"$f":"IF(B154=\"\",\"\",SUBTOTAL(3,$B$4:B154))","v":""},null,null,null,null,null,null,null,null,null,null,null,null,null,null,null,null,null,null,null,null,null,null,null,0,null,null,null,0]
[{"$f":"IF(B155=\"\",\"\",SUBTOTAL(3,$B$4:B155))","v":""},null,null,null,null,null,null,null,null,null,null,null,null,null,null,null,null,null,null,null,null,null,null,null,0,null,null,null,0]
[{"$f":"IF(B156=\"\",\"\",SUBTOTAL(3,$B$4:B156))","v":""},null,null,null,null,null,null,null,null,null,null,null,null,null,null,null,null,null,null,null,null,null,null,null,0,null,null,null,0]
[{"$f":"IF(B157=\"\",\"\",SUBTOTAL(3,$B$4:B157))","v":""},null,null,null,null,null,null,null,null,null,null,null,null,null,null,null,null,null,null,null,null,null,null,null,0,null,null,null,0]
[{"$f":"IF(B158=\"\",\"\",SUBTOTAL(3,$B$4:B158))","v":""},null,null,null,null,null,null,null,null,null,null,null,null,null,null,null,null,null,null,null,null,null,null,null,0,null,null,null,0]
[{"$f":"IF(B159=\"\",\"\",SUBTOTAL(3,$B$4:B159))","v":""},null,null,null,null,null,null,null,null,null,null,null,null,null,null,null,null,null,null,null,null,null,null,null,0,null,null,null,0]
[{"$f":"IF(B160=\"\",\"\",SUBTOTAL(3,$B$4:B160))","v":""},null,null,null,null,null,null,null,null,null,null,null,null,null,null,null,null,null,null,null,null,null,null,null,0,null,null,null,0]
[{"$f":"IF(B161=\"\",\"\",SUBTOTAL(3,$B$4:B161))","v":""},null,null,null,null,null,null,null,null,null,null,null,null,null,null,null,null,null,null,null,null,null,null,null,0,null,null,null,0]
[{"$f":"IF(B162=\"\",\"\",SUBTOTAL(3,$B$4:B162))","v":""},null,null,null,null,null,null,null,null,null,null,null,null,null,null,null,null,null,null,null,null,null,null,null,0,null,null,null,0]
[{"$f":"IF(B163=\"\",\"\",SUBTOTAL(3,$B$4:B163))","v":""},null,null,null,null,null,null,null,null,null,null,null,null,null,null,null,null,null,null,null,null,null,null,null,0,null,null,null,0]
[{"$f":"IF(B164=\"\",\"\",SUBTOTAL(3,$B$4:B164))","v":""},null,null,null,null,null,null,null,null,null,null,null,null,null,null,null,null,null,null,null,null,null,null,null,0,null,null,null,0]
[{"$f":"IF(B165=\"\",\"\",SUBTOTAL(3,$B$4:B165))","v":""},null,null,null,null,null,null,null,null,null,null,null,null,null,null,null,null,null,null,null,null,null,null,null,0,null,null,null,0]
[{"$f":"IF(B166=\"\",\"\",SUBTOTAL(3,$B$4:B166))","v":""},null,null,null,null,null,null,null,null,null,null,null,null,null,null,null,null,null,null,null,null,null,null,null,0,null,null,null,0]
[{"$f":"IF(B167=\"\",\"\",SUBTOTAL(3,$B$4:B167))","v":""},null,null,null,null,null,null,null,null,null,null,null,null,null,null,null,null,null,null,null,null,null,null,null,0,null,null,null,0]
[{"$f":"IF(B168=\"\",\"\",SUBTOTAL(3,$B$4:B168))","v":""},null,null,null,null,null,null,null,null,null,null,null,null,null,null,null,null,null,null,null,null,null,null,null,0,null,null,null,0]
[{"$f":"IF(B169=\"\",\"\",SUBTOTAL(3,$B$4:B169))","v":""},null,null,null,null,null,null,null,null,null,null,null,null,null,null,null,null,null,null,null,null,null,null,null,0,null,null,null,0]
[{"$f":"IF(B170=\"\",\"\",SUBTOTAL(3,$B$4:B170))","v":""},null,null,null,null,null,null,null,null,null,null,null,null,null,null,null,null,null,null,null,null,null,null,null,0,null,null,null,0]
[{"$f":"IF(B171=\"\",\"\",SUBTOTAL(3,$B$4:B171))","v":""},null,null,null,null,null,null,null,null,null,null,null,null,null,null,null,null,null,null,null,null,null,null,null,0,null,null,null,0]
[{"$f":"IF(B172=\"\",\"\",SUBTOTAL(3,$B$4:B172))","v":""},null,null,null,null,null,null,null,null,null,null,null,null,null,null,null,null,null,null,null,null,null,null,null,0,null,null,null,0]
[{"$f":"IF(B173=\"\",\"\",SUBTOTAL(3,$B$4:B173))","v":""},null,null,null,null,null,null,null,null,null,null,null,null,null,null,null,null,null,null,null,null,null,null,null,0,null,null,null,0]
[{"$f":"IF(B174=\"\",\"\",SUBTOTAL(3,$B$4:B174))","v":""},null,null,null,null,null,null,null,null,null,null,null,null,null,null,null,null,null,null,null,null,null,null,null,0,null,null,null,0]
[{"$f":"IF(B175=\"\",\"\",SUBTOTAL(3,$B$4:B175))","v":""},null,null,null,null,null,null,null,null,null,null,null,null,null,null,null,null,null,null,null,null,null,null,null,0,null,null,null,0]
[{"$f":"IF(B176=\"\",\"\",SUBTOTAL(3,$B$4:B176))","v":""},null,null,null,null,null,null,null,null,null,null,null,null,null,null,null,null,null,null,null,null,null,null,null,0,null,null,null,0]
[{"$f":"IF(B177=\"\",\"\",SUBTOTAL(3,$B$4:B177))","v":""},null,null,null,null,null,null,null,null,null,null,null,null,null,null,null,null,null,null,null,null,null,null,null,0,null,null,null,0]
[{"$f":"IF(B178=\"\",\"\",SUBTOTAL(3,$B$4:B178))","v":""},null,null,null,null,null,null,null,null,null,null,null,null,null,null,null,null,null,null,null,null,null,null,null,0,null,null,null,0]
[{"$f":"IF(B179=\"\",\"\",SUBTOTAL(3,$B$4:B179))","v":""},null,null,null,null,null,null,null,null,null,null,null,null,null,null,null,null,null,null,null,null,null,null,null,0,null,null,null,0]
[{"$f":"IF(B180=\"\",\"\",SUBTOTAL(3,$B$4:B180))","v":""},null,null,null,null,null,null,null,null,null,null,null,null,null,null,null,null,null,null,null,null,null,null,null,0,null,null,null,0]
[{"$f":"IF(B181=\"\",\"\",SUBTOTAL(3,$B$4:B181))","v":""},null,null,null,null,null,null,null,null,null,null,null,null,null,null,null,null,null,null,null,null,null,null,null,0,null,null,null,0]
[{"$f":"IF(B182=\"\",\"\",SUBTOTAL(3,$B$4:B182))","v":""},null,null,null,null,null,null,null,null,null,null,null,null,null,null,null,null,null,null,null,null,null,null,null,0,null,null,null,0]
[{"$f":"IF(B183=\"\",\"\",SUBTOTAL(3,$B$4:B183))","v":""},null,null,null,null,null,null,null,null,null,null,null,null,null,null,null,null,null,null,null,null,null,null,null,0,null,null,null,0]
[{"$f":"IF(B184=\"\",\"\",SUBTOTAL(3,$B$4:B184))","v":""},null,null,null,null,null,null,null,null,null,null,null,null,null,null,null,null,null,null,null,null,null,null,null,0,null,null,null,0]
[{"$f":"IF(B185=\"\",\"\",SUBTOTAL(3,$B$4:B185))","v":""},null,null,null,null,null,null,null,null,null,null,null,null,null,null,null,null,null,null,null,null,null,null,null,0,null,null,null,0]
[{"$f":"IF(B186=\"\",\"\",SUBTOTAL(3,$B$4:B186))","v":""},null,null,null,null,null,null,null,null,null,null,null,null,null,null,null,null,null,null,null,null,null,null,null,0,null,null,null,0]
[{"$f":"IF(B187=\"\",\"\",SUBTOTAL(3,$B$4:B187))","v":""},null,null,null,null,null,null,null,null,null,null,null,null,null,null,null,null,null,null,null,null,null,null,null,0,null,null,null,0]
[{"$f":"IF(B188=\"\",\"\",SUBTOTAL(3,$B$4:B188))","v":""},null,null,null,null,null,null,null,null,null,null,null,null,null,null,null,null,null,null,null,null,null,null,null,0,null,null,null,0]
[{"$f":"IF(B189=\"\",\"\",SUBTOTAL(3,$B$4:B189))","v":""},null,null,null,null,null,null,null,null,null,null,null,null,null,null,null,null,null,null,null,null,null,null,null,0,null,null,null,0]
[{"$f":"IF(B190=\"\",\"\",SUBTOTAL(3,$B$4:B190))","v":""},null,null,null,null,null,null,null,null,null,null,null,null,null,null,null,null,null,null,null,null,null,null,null,0,null,null,null,0]
[{"$f":"IF(B191=\"\",\"\",SUBTOTAL(3,$B$4:B191))","v":""},null,null,null,null,null,null,null,null,null,null,null,null,null,null,null,null,null,null,null,null,null,null,null,0,null,null,null,0]
[{"$f":"IF(B192=\"\",\"\",SUBTOTAL(3,$B$4:B192))","v":""},null,null,null,null,null,null,null,null,null,null,null,null,null,null,null,null,null,null,null,null,null,null,null,0,null,null,null,0]
[{"$f":"IF(B193=\"\",\"\",SUBTOTAL(3,$B$4:B193))","v":""},null,null,null,null,null,null,null,null,null,null,null,null,null,null,null,null,null,null,null,null,null,null,null,0,null,null,null,0]
[{"$f":"IF(B194=\"\",\"\",SUBTOTAL(3,$B$4:B194))","v":""},null,null,null,null,null,null,null,null,null,null,null,null,null,null,null,null,null,null,null,null,null,null,null,0,null,null,null,0]
[{"$f":"IF(B195=\"\",\"\",SUBTOTAL(3,$B$4:B195))","v":""},null,null,null,null,null,null,null,null,null,null,null,null,null,null,null,null,null,null,null,null,null,null,null,0,null,null,null,0]
[{"$f":"IF(B196=\"\",\"\",SUBTOTAL(3,$B$4:B196))","v":""},null,null,null,null,null,null,null,null,null,null,null,null,null,null,null,null,null,null,null,null,null,null,null,0,null,null,null,0]
[{"$f":"IF(B197=\"\",\"\",SUBTOTAL(3,$B$4:B197))","v":""},null,null,null,null,null,null,null,null,null,null,null,null,null,null,null,null,null,null,null,null,null,null,null,{"$f":"(I197*K197)+(L197*N197)+(O197*Q197)+(R197*T197)+SUM(U197:X197)","v":0},null,null,null,{"$f":"Y197-(Z197+AA197+AB197)","v":0}]
[{"$f":"IF(B198=\"\",\"\",SUBTOTAL(3,$B$4:B198))","v":""},null,null,null,null,null,null,null,null,null,null,null,null,null,null,null,null,null,null,null,null,null,null,null,0,null,null,null,0]
[{"$f":"IF(B199=\"\",\"\",SUBTOTAL(3,$B$4:B199))","v":""},null,null,null,null,null,null,null,null,null,null,null,null,null,null,null,null,null,null,null,null,null,null,null,0,null,null,null,0]
[{"$f":"IF(B200=\"\",\"\",SUBTOTAL(3,$B$4:B200))","v":""},null,null,null,null,null,null,null,null,null,null,null,null,null,null,null,null,null,null,null,null,null,null,null,0,null,null,null,0]
[{"$f":"IF(B201=\"\",\"\",SUBTOTAL(3,$B$4:B201))","v":""},null,null,null,null,null,null,null,null,null,null,null,null,null,null,null,null,null,null,null,null,null,null,null,0,null,null,null,0]
[{"$f":"IF(B202=\"\",\"\",SUBTOTAL(3,$B$4:B202))","v":""},null,null,null,null,null,null,null,null,null,null,null,null,null,null,null,null,null,null,null,null,null,null,null,0,null,null,null,0]
[{"$f":"IF(B203=\"\",\"\",SUBTOTAL(3,$B$4:B203))","v":""},null,null,null,null,null,null,null,null,null,null,null,null,null,null,null,null,null,null,null,null,null,null,null,0,null,null,null,0]
[{"$f":"IF(B204=\"\",\"\",SUBTOTAL(3,$B$4:B204))","v":""},null,null,null,null,null,null,null,null,null,null,null,null,null,null,null,null,null,null,null,null,null,null,null,0,null,null,null,0]
[{"$f":"IF(B205=\"\",\"\",SUBTOTAL(3,$B$4:B205))","v":""},null,null,null,null,null,null,null,null,null,null,null,null,null,null,null,null,null,null,null,null,null,null,null,0,null,null,null,0]
[{"$f":"IF(B206=\"\",\"\",SUBTOTAL(3,$B$4:B206))","v":""},null,null,null,null,null,null,null,null,null,null,null,null,null,null,null,null,null,null,null,null,null,null,null,0,null,null,null,0]
[{"$f":"IF(B207=\"\",\"\",SUBTOTAL(3,$B$4:B207))","v":""},null,null,null,null,null,null,null,null,null,null,null,null,null,null,null,null,null,null,null,null,null,null,null,0,null,null,null,0]
[{"$f":"IF(B208=\"\",\"\",SUBTOTAL(3,$B$4:B208))","v":""},null,null,null,null,null,null,null,null,null,null,null,null,null,null,null,null,null,null,null,null,null,null,null,0,null,null,null,0]
[{"$f":"IF(B209=\"\",\"\",SUBTOTAL(3,$B$4:B209))","v":""},null,null,null,null,null,null,null,null,null,null,null,null,null,null,null,null,null,null,null,null,null,null,null,0,null,null,null,0]
[{"$f":"IF(B210=\"\",\"\",SUBTOTAL(3,$B$4:B210))","v":""},null,null,null,null,null,null,null,null,null,null,null,null,null,null,null,null,null,null,null,null,null,null,null,0,null,null,null,0]
[{"$f":"IF(B211=\"\",\"\",SUBTOTAL(3,$B$4:B211))","v":""},null,null,null,null,null,null,null,null,null,null,null,null,null,null,null,null,null,null,null,null,null,null,null,0,null,null,null,0]
[{"$f":"IF(B212=\"\",\"\",SUBTOTAL(3,$B$4:B212))","v":""},null,null,null,null,null,null,null,null,null,null,null,null,null,null,null,null,null,null,null,null,null,null,null,0,null,null,null,0]
[{"$f":"IF(B213=\"\",\"\",SUBTOTAL(3,$B$4:B213))","v":""},null,null,null,null,null,null,null,null,null,null,null,null,null,null,null,null,null,null,null,null,null,null,null,0,null,null,null,0]
[{"$f":"IF(B214=\"\",\"\",SUBTOTAL(3,$B$4:B214))","v":""},null,null,null,null,null,null,null,null,null,null,null,null,null,null,null,null,null,null,null,null,null,null,null,0,null,null,null,0]
[{"$f":"IF(B215=\"\",\"\",SUBTOTAL(3,$B$4:B215))","v":""},null,null,null,null,null,null,null,null,null,null,null,null,null,null,null,null,null,null,null,null,null,null,null,0,null,null,null,0]
[{"$f":"IF(B216=\"\",\"\",SUBTOTAL(3,$B$4:B216))","v":""},null,null,null,null,null,null,null,null,null,null,null,null,null,null,null,null,null,null,null,null,null,null,null,0,null,null,null,0]
[{"$f":"IF(B217=\"\",\"\",SUBTOTAL(3,$B$4:B217))","v":""},null,null,null,null,null,null,null,null,null,null,null,null,null,null,null,null,null,null,null,null,null,null,null,0,null,null,null,0]
[{"$f":"IF(B218=\"\",\"\",SUBTOTAL(3,$B$4:B218))","v":""},null,null,null,null,null,null,null,null,null,null,null,null,null,null,null,null,null,null,null,null,null,null,null,0,null,null,null,0]
[{"$f":"IF(B219=\"\",\"\",SUBTOTAL(3,$B$4:B219))","v":""},null,null,null,null,null,null,null,null,null,null,null,null,null,null,null,null,null,null,null,null,null,null,null,0,null,null,null,0]
[{"$f":"IF(B220=\"\",\"\",SUBTOTAL(3,$B$4:B220))","v":""},null,null,null,null,null,null,null,null,null,null,null,null,null,null,null,null,null,null,null,null,null,null,null,0,null,null,null,0]
[{"$f":"IF(B221=\"\",\"\",SUBTOTAL(3,$B$4:B221))","v":""},null,null,null,null,null,null,null,null,null,null,null,null,null,null,null,null,null,null,null,null,null,null,null,0,null,null,null,0]
[{"$f":"IF(B222=\"\",\"\",SUBTOTAL(3,$B$4:B222))","v":""},null,null,null,null,null,null,null,null,null,null,null,null,null,null,null,null,null,null,null,null,null,null,null,0,null,null,null,0]
[{"$f":"IF(B223=\"\",\"\",SUBTOTAL(3,$B$4:B223))","v":""},null,null,null,null,null,null,null,null,null,null,null,null,null,null,null,null,null,null,null,null,null,null,null,0,null,null,null,0]
[{"$f":"IF(B224=\"\",\"\",SUBTOTAL(3,$B$4:B224))","v":""},null,null,null,null,null,null,null,null,null,null,null,null,null,null,null,null,null,null,null,null,null,null,null,0,null,null,null,0]
[{"$f":"IF(B225=\"\",\"\",SUBTOTAL(3,$B$4:B225))","v":""},null,null,null,null,null,null,null,null,null,null,null,null,null,null,null,null,null,null,null,null,null,null,null,0,null,null,null,0]
[{"$f":"IF(B226=\"\",\"\",SUBTOTAL(3,$B$4:B226))","v":""},null,null,null,null,null,null,null,null,null,null,null,null,null,null,null,null,null,null,null,null,null,null,null,0,null,null,null,0]
[{"$f":"IF(B227=\"\",\"\",SUBTOTAL(3,$B$4:B227))","v":""},null,null,null,null,null,null,null,null,null,null,null,null,null,null,null,null,null,null,null,null,null,null,null,0,null,null,null,0]
[{"$f":"IF(B228=\"\",\"\",SUBTOTAL(3,$B$4:B228))","v":""},null,null,null,null,null,null,null,null,null,null,null,null,null,null,null,null,null,null,null,null,null,null,null,0,null,null,null,0]
[{"$f":"IF(B229=\"\",\"\",SUBTOTAL(3,$B$4:B229))","v":""},null,null,null,null,null,null,null,null,null,null,null,null,null,null,null,null,null,null,null,null,null,null,null,0,null,null,null,0]
[{"$f":"IF(B230=\"\",\"\",SUBTOTAL(3,$B$4:B230))","v":""},null,null,null,null,null,null,null,null,null,null,null,null,null,null,null,null,null,null,null,null,null,null,null,0,null,null,null,0]
[{"$f":"IF(B231=\"\",\"\",SUBTOTAL(3,$B$4:B231))","v":""},null,null,null,null,null,null,null,null,null,null,null,null,null,null,null,null,null,null,null,null,null,null,null,0,null,null,null,0]
[{"$f":"IF(B232=\"\",\"\",SUBTOTAL(3,$B$4:B232))","v":""},null,null,null,null,null,null,null,null,null,null,null,null,null,null,null,null,null,null,null,null,null,null,null,0,null,null,null,0]
[{"$f":"IF(B233=\"\",\"\",SUBTOTAL(3,$B$4:B233))","v":""},null,null,null,null,null,null,null,null,null,null,null,null,null,null,null,null,null,null,null,null,null,null,null,0,null,null,null,0]
[{"$f":"IF(B234=\"\",\"\",SUBTOTAL(3,$B$4:B234))","v":""},null,null,null,null,null,null,null,null,null,null,null,null,null,null,null,null,null,null,null,null,null,null,null,0,null,null,null,0]
[{"$f":"IF(B235=\"\",\"\",SUBTOTAL(3,$B$4:B235))","v":""},null,null,null,null,null,null,null,null,null,null,null,null,null,null,null,null,null,null,null,null,null,null,null,0,null,null,null,0]
[{"$f":"IF(B236=\"\",\"\",SUBTOTAL(3,$B$4:B236))","v":""},null,null,null,null,null,null,null,null,null,null,null,null,null,null,null,null,null,null,null,null,null,null,null,0,null,null,null,0]
[{"$f":"IF(B237=\"\",\"\",SUBTOTAL(3,$B$4:B237))","v":""},null,null,null,null,null,null,null,null,null,null,null,null,null,null,null,null,null,null,null,null,null,null,null,0,null,null,null,0]
[{"$f":"IF(B238=\"\",\"\",SUBTOTAL(3,$B$4:B238))","v":""},null,null,null,null,null,null,null,null,null,null,null,null,null,null,null,null,null,null,null,null,null,null,null,0,null,null,null,0]
[{"$f":"IF(B239=\"\",\"\",SUBTOTAL(3,$B$4:B239))","v":""},null,null,null,null,null,null,null,null,null,null,null,null,null,null,null,null,null,null,null,null,null,null,null,0,null,null,null,0]
[{"$f":"IF(B240=\"\",\"\",SUBTOTAL(3,$B$4:B240))","v":""},null,null,null,null,null,null,null,null,null,null,null,null,null,null,null,null,null,null,null,null,null,null,null,0,null,null,null,0]
[{"$f":"IF(B241=\"\",\"\",SUBTOTAL(3,$B$4:B241))","v":""},null,null,null,null,null,null,null,null,null,null,null,null,null,null,null,null,null,null,null,null,null,null,null,0,null,null,null,0]
[{"$f":"IF(B242=\"\",\"\",SUBTOTAL(3,$B$4:B242))","v":""},null,null,null,null,null,null,null,null,null,null,null,null,null,null,null,null,null,null,null,null,null,null,null,0,null,null,null,0]
[{"$f":"IF(B243=\"\",\"\",SUBTOTAL(3,$B$4:B243))","v":""},null,null,null,null,null,null,null,null,null,null,null,null,null,null,null,null,null,null,null,null,null,null,null,0,null,null,null,0]
[{"$f":"IF(B244=\"\",\"\",SUBTOTAL(3,$B$4:B244))","v":""},null,null,null,null,null,null,null,null,null,null,null,null,null,null,null,null,null,null,null,null,null,null,null,0,null,null,null,0]
[{"$f":"IF(B245=\"\",\"\",SUBTOTAL(3,$B$4:B245))","v":""},null,null,null,null,null,null,null,null,null,null,null,null,null,null,null,null,null,null,null,null,null,null,null,0,null,null,null,0]
[{"$f":"IF(B246=\"\",\"\",SUBTOTAL(3,$B$4:B246))","v":""},null,null,null,null,null,null,null,null,null,null,null,null,null,null,null,null,null,null,null,null,null,null,null,0,null,null,null,0]
[{"$f":"IF(B247=\"\",\"\",SUBTOTAL(3,$B$4:B247))","v":""},null,null,null,null,null,null,null,null,null,null,null,null,null,null,null,null,null,null,null,null,null,null,null,0,null,null,null,0]
[{"$f":"IF(B248=\"\",\"\",SUBTOTAL(3,$B$4:B248))","v":""},null,null,null,null,null,null,null,null,null,null,null,null,null,null,null,null,null,null,null,null,null,null,null,0,null,null,null,0]
[{"$f":"IF(B249=\"\",\"\",SUBTOTAL(3,$B$4:B249))","v":""},null,null,null,null,null,null,null,null,null,null,null,null,null,null,null,null,null,null,null,null,null,null,null,0,null,null,null,0]
[{"$f":"IF(B250=\"\",\"\",SUBTOTAL(3,$B$4:B250))","v":""},null,null,null,null,null,null,null,null,null,null,null,null,null,null,null,null,null,null,null,null,null,null,null,0,null,null,null,0]
[{"$f":"IF(B251=\"\",\"\",SUBTOTAL(3,$B$4:B251))","v":""},null,null,null,null,null,null,null,null,null,null,null,null,null,null,null,null,null,null,null,null,null,null,null,0,null,null,null,0]
[{"$f":"IF(B252=\"\",\"\",SUBTOTAL(3,$B$4:B252))","v":""},null,null,null,null,null,null,null,null,null,null,null,null,null,null,null,null,null,null,null,null,null,null,null,0,null,null,null,0]
[{"$f":"IF(B253=\"\",\"\",SUBTOTAL(3,$B$4:B253))","v":""},null,null,null,null,null,null,null,null,null,null,null,null,null,null,null,null,null,null,null,null,null,null,null,0,null,null,null,0]
[{"$f":"IF(B254=\"\",\"\",SUBTOTAL(3,$B$4:B254))","v":""},null,null,null,null,null,null,null,null,null,null,null,null,null,null,null,null,null,null,null,null,null,null,null,0,null,null,null,0]
[{"$f":"IF(B255=\"\",\"\",SUBTOTAL(3,$B$4:B255))","v":""},null,null,null,null,null,null,null,null,null,null,null,null,null,null,null,null,null,null,null,null,null,null,null,0,null,null,null,0]
[{"$f":"IF(B256=\"\",\"\",SUBTOTAL(3,$B$4:B256))","v":""},null,null,null,null,null,null,null,null,null,null,null,null,null,null,null,null,null,null,null,null,null,null,null,0,null,null,null,0]
[{"$f":"IF(B257=\"\",\"\",SUBTOTAL(3,$B$4:B257))","v":""},null,null,null,null,null,null,null,null,null,null,null,null,null,null,null,null,null,null,null,null,null,null,null,0,null,null,null,0]
[{"$f":"IF(B258=\"\",\"\",SUBTOTAL(3,$B$4:B258))","v":""},null,null,null,null,null,null,null,null,null,null,null,null,null,null,null,null,null,null,null,null,null,null,null,0,null,null,null,0]
[{"$f":"IF(B259=\"\",\"\",SUBTOTAL(3,$B$4:B259))","v":""},null,null,null,null,null,null,null,null,null,null,null,null,null,null,null,null,null,null,null,null,null,null,null,0,null,null,null,0]
[{"$f":"IF(B260=\"\",\"\",SUBTOTAL(3,$B$4:B260))","v":""},null,null,null,null,null,null,null,null,null,null,null,null,null,null,null,null,null,null,null,null,null,null,null,0,null,null,null,0]
[{"$f":"IF(B261=\"\",\"\",SUBTOTAL(3,$B$4:B261))","v":""},null,null,null,null,null,null,null,null,null,null,null,null,null,null,null,null,null,null,null,null,null,null,null,{"$f":"(I261*K261)+(L261*N261)+(O261*Q261)+(R261*T261)+SUM(U261:X261)","v":0},null,null,null,{"$f":"Y261-(Z261+AA261+AB261)","v":0}]
[{"$f":"IF(B262=\"\",\"\",SUBTOTAL(3,$B$4:B262))","v":""},null,null,null,null,null,null,null,null,null,null,null,null,null,null,null,null,null,null,null,null,null,null,null,0,null,null,null,0]
[{"$f":"IF(B263=\"\",\"\",SUBTOTAL(3,$B$4:B263))","v":""},null,null,null,null,null,null,null,null,null,null,null,null,null,null,null,null,null,null,null,null,null,null,null,0,null,null,null,0]
[{"$f":"IF(B264=\"\",\"\",SUBTOTAL(3,$B$4:B264))","v":""},null,null,null,null,null,null,null,null,null,null,null,null,null,null,null,null,null,null,null,null,null,null,null,0,null,null,null,0]
[{"$f":"IF(B265=\"\",\"\",SUBTOTAL(3,$B$4:B265))","v":""},null,null,null,null,null,null,null,null,null,null,null,null,null,null,null,null,null,null,null,null,null,null,null,0,null,null,null,0]
[{"$f":"IF(B266=\"\",\"\",SUBTOTAL(3,$B$4:B266))","v":""},null,null,null,null,null,null,null,null,null,null,null,null,null,null,null,null,null,null,null,null,null,null,null,0,null,null,null,0]
[{"$f":"IF(B267=\"\",\"\",SUBTOTAL(3,$B$4:B267))","v":""},null,null,null,null,null,null,null,null,null,null,null,null,null,null,null,null,null,null,null,null,null,null,null,0,null,null,null,0]
[{"$f":"IF(B268=\"\",\"\",SUBTOTAL(3,$B$4:B268))","v":""},null,null,null,null,null,null,null,null,null,null,null,null,null,null,null,null,null,null,null,null,null,null,null,0,null,null,null,0]
[{"$f":"IF(B269=\"\",\"\",SUBTOTAL(3,$B$4:B269))","v":""},null,null,null,null,null,null,null,null,null,null,null,null,null,null,null,null,null,null,null,null,null,null,null,0,null,null,null,0]
[{"$f":"IF(B270=\"\",\"\",SUBTOTAL(3,$B$4:B270))","v":""},null,null,null,null,null,null,null,null,null,null,null,null,null,null,null,null,null,null,null,null,null,null,null,0,null,null,null,0]
[{"$f":"IF(B271=\"\",\"\",SUBTOTAL(3,$B$4:B271))","v":""},null,null,null,null,null,null,null,null,null,null,null,null,null,null,null,null,null,null,null,null,null,null,null,0,null,null,null,0]
[{"$f":"IF(B272=\"\",\"\",SUBTOTAL(3,$B$4:B272))","v":""},null,null,null,null,null,null,null,null,null,null,null,null,null,null,null,null,null,null,null,null,null,null,null,0,null,null,null,0]
[{"$f":"IF(B273=\"\",\"\",SUBTOTAL(3,$B$4:B273))","v":""},null,null,null,null,null,null,null,null,null,null,null,null,null,null,null,null,null,null,null,null,null,null,null,0,null,null,null,0]
[{"$f":"IF(B274=\"\",\"\",SUBTOTAL(3,$B$4:B274))","v":""},null,null,null,null,null,null,null,null,null,null,null,null,null,null,null,null,null,null,null,null,null,null,null,0,null,null,null,0]
[{"$f":"IF(B275=\"\",\"\",SUBTOTAL(3,$B$4:B275))","v":""},null,null,null,null,null,null,null,null,null,null,null,null,null,null,null,null,null,null,null,null,null,null,null,0,null,null,null,0]
[{"$f":"IF(B276=\"\",\"\",SUBTOTAL(3,$B$4:B276))","v":""},null,null,null,null,null,null,null,null,null,null,null,null,null,null,null,null,null,null,null,null,null,null,null,0,null,null,null,0]
[{"$f":"IF(B277=\"\",\"\",SUBTOTAL(3,$B$4:B277))","v":""},null,null,null,null,null,null,null,null,null,null,null,null,null,null,null,null,null,null,null,null,null,null,null,0,null,null,null,0]
[{"$f":"IF(B278=\"\",\"\",SUBTOTAL(3,$B$4:B278))","v":""},null,null,null,null,null,null,null,null,null,null,null,null,null,null,null,null,null,null,null,null,null,null,null,0,null,null,null,0]
[{"$f":"IF(B279=\"\",\"\",SUBTOTAL(3,$B$4:B279))","v":""},null,null,null,null,null,null,null,null,null,null,null,null,null,null,null,null,null,null,null,null,null,null,null,0,null,null,null,0]
[{"$f":"IF(B280=\"\",\"\",SUBTOTAL(3,$B$4:B280))","v":""},null,null,null,null,null,null,null,null,null,null,null,null,null,null,null,null,null,null,null,null,null,null,null,0,null,null,null,0]
[{"$f":"IF(B281=\"\",\"\",SUBTOTAL(3,$B$4:B281))","v":""},null,null,null,null,null,null,null,null,null,null,null,null,null,null,null,null,null,null,null,null,null,null,null,0,null,null,null,0]
[{"$f":"IF(B282=\"\",\"\",SUBTOTAL(3,$B$4:B282))","v":""},null,null,null,null,null,null,null,null,null,null,null,null,null,null,null,null,null,null,null,null,null,null,null,0,null,null,null,0]
[{"$f":"IF(B283=\"\",\"\",SUBTOTAL(3,$B$4:B283))","v":""},null,null,null,null,null,null,null,null,null,null,null,null,null,null,null,null,null,null,null,null,null,null,null,0,null,null,null,0]
[{"$f":"IF(B284=\"\",\"\",SUBTOTAL(3,$B$4:B284))","v":""},null,null,null,null,null,null,null,null,null,null,null,null,null,null,null,null,null,null,null,null,null,null,null,0,null,null,null,0]
[{"$f":"IF(B285=\"\",\"\",SUBTOTAL(3,$B$4:B285))","v":""},null,null,null,null,null,null,null,null,null,null,null,null,null,null,null,null,null,null,null,null,null,null,null,0,null,null,null,0]
[{"$f":"IF(B286=\"\",\"\",SUBTOTAL(3,$B$4:B286))","v":""},null,null,null,null,null,null,null,null,null,null,null,null,null,null,null,null,null,null,null,null,null,null,null,0,null,null,null,0]
[{"$f":"IF(B287=\"\",\"\",SUBTOTAL(3,$B$4:B287))","v":""},null,null,null,null,null,null,null,null,null,null,null,null,null,null,null,null,null,null,null,null,null,null,null,0,null,null,null,0]
[{"$f":"IF(B288=\"\",\"\",SUBTOTAL(3,$B$4:B288))","v":""},null,null,null,null,null,null,null,null,null,null,null,null,null,null,null,null,null,null,null,null,null,null,null,0,null,null,null,0]
[{"$f":"IF(B289=\"\",\"\",SUBTOTAL(3,$B$4:B289))","v":""},null,null,null,null,null,null,null,null,null,null,null,null,null,null,null,null,null,null,null,null,null,null,null,0,null,null,null,0]
[{"$f":"IF(B290=\"\",\"\",SUBTOTAL(3,$B$4:B290))","v":""},null,null,null,null,null,null,null,null,null,null,null,null,null,null,null,null,null,null,null,null,null,null,null,0,null,null,null,0]
[{"$f":"IF(B291=\"\",\"\",SUBTOTAL(3,$B$4:B291))","v":""},null,null,null,null,null,null,null,null,null,null,null,null,null,null,null,null,null,null,null,null,null,null,null,0,null,null,null,0]
[{"$f":"IF(B292=\"\",\"\",SUBTOTAL(3,$B$4:B292))","v":""},null,null,null,null,null,null,null,null,null,null,null,null,null,null,null,null,null,null,null,null,null,null,null,0,null,null,null,0]
[{"$f":"IF(B293=\"\",\"\",SUBTOTAL(3,$B$4:B293))","v":""},null,null,null,null,null,null,null,null,null,null,null,null,null,null,null,null,null,null,null,null,null,null,null,0,null,null,null,0]
[{"$f":"IF(B294=\"\",\"\",SUBTOTAL(3,$B$4:B294))","v":""},null,null,null,null,null,null,null,null,null,null,null,null,null,null,null,null,null,null,null,null,null,null,null,0,null,null,null,0]
[{"$f":"IF(B295=\"\",\"\",SUBTOTAL(3,$B$4:B295))","v":""},null,null,null,null,null,null,null,null,null,null,null,null,null,null,null,null,null,null,null,null,null,null,null,0,null,null,null,0]
[{"$f":"IF(B296=\"\",\"\",SUBTOTAL(3,$B$4:B296))","v":""},null,null,null,null,null,null,null,null,null,null,null,null,null,null,null,null,null,null,null,null,null,null,null,0,null,null,null,0]
[{"$f":"IF(B297=\"\",\"\",SUBTOTAL(3,$B$4:B297))","v":""},null,null,null,null,null,null,null,null,null,null,null,null,null,null,null,null,null,null,null,null,null,null,null,0,null,null,null,0]
[{"$f":"IF(B298=\"\",\"\",SUBTOTAL(3,$B$4:B298))","v":""},null,null,null,null,null,null,null,null,null,null,null,null,null,null,null,null,null,null,null,null,null,null,null,0,null,null,null,0]
[{"$f":"IF(B299=\"\",\"\",SUBTOTAL(3,$B$4:B299))","v":""},null,null,null,null,null,null,null,null,null,null,null,null,null,null,null,null,null,null,null,null,null,null,null,0,null,null,null,0]
[{"$f":"IF(B300=\"\",\"\",SUBTOTAL(3,$B$4:B300))","v":""},null,null,null,null,null,null,null,null,null,null,null,null,null,null,null,null,null,null,null,null,null,null,null,0,null,null,null,0]
[{"$f":"IF(B301=\"\",\"\",SUBTOTAL(3,$B$4:B301))","v":""},null,null,null,null,null,null,null,null,null,null,null,null,null,null,null,null,null,null,null,null,null,null,null,0,null,null,null,0]
[{"$f":"IF(B302=\"\",\"\",SUBTOTAL(3,$B$4:B302))","v":""},null,null,null,null,null,null,null,null,null,null,null,null,null,null,null,null,null,null,null,null,null,null,null,0,null,null,null,0]
[{"$f":"IF(B303=\"\",\"\",SUBTOTAL(3,$B$4:B303))","v":""},null,null,null,null,null,null,null,null,null,null,null,null,null,null,null,null,null,null,null,null,null,null,null,0,null,null,null,0]
[{"$f":"IF(B304=\"\",\"\",SUBTOTAL(3,$B$4:B304))","v":""},null,null,null,null,null,null,null,null,null,null,null,null,null,null,null,null,null,null,null,null,null,null,null,0,null,null,null,0]
[{"$f":"IF(B305=\"\",\"\",SUBTOTAL(3,$B$4:B305))","v":""},null,null,null,null,null,null,null,null,null,null,null,null,null,null,null,null,null,null,null,null,null,null,null,0,null,null,null,0]
[{"$f":"IF(B306=\"\",\"\",SUBTOTAL(3,$B$4:B306))","v":""},null,null,null,null,null,null,null,null,null,null,null,null,null,null,null,null,null,null,null,null,null,null,null,0,null,null,null,0]
[{"$f":"IF(B307=\"\",\"\",SUBTOTAL(3,$B$4:B307))","v":""},null,null,null,null,null,null,null,null,null,null,null,null,null,null,null,null,null,null,null,null,null,null,null,0,null,null,null,0]
[{"$f":"IF(B308=\"\",\"\",SUBTOTAL(3,$B$4:B308))","v":""},null,null,null,null,null,null,null,null,null,null,null,null,null,null,null,null,null,null,null,null,null,null,null,0,null,null,null,0]
[{"$f":"IF(B309=\"\",\"\",SUBTOTAL(3,$B$4:B309))","v":""},null,null,null,null,null,null,null,null,null,null,null,null,null,null,null,null,null,null,null,null,null,null,null,0,null,null,null,0]
[{"$f":"IF(B310=\"\",\"\",SUBTOTAL(3,$B$4:B310))","v":""},null,null,null,null,null,null,null,null,null,null,null,null,null,null,null,null,null,null,null,null,null,null,null,0,null,null,null,0]
[{"$f":"IF(B311=\"\",\"\",SUBTOTAL(3,$B$4:B311))","v":""},null,null,null,null,null,null,null,null,null,null,null,null,null,null,null,null,null,null,null,null,null,null,null,0,null,null,null,0]
[{"$f":"IF(B312=\"\",\"\",SUBTOTAL(3,$B$4:B312))","v":""},null,null,null,null,null,null,null,null,null,null,null,null,null,null,null,null,null,null,null,null,null,null,null,0,null,null,null,0]
[{"$f":"IF(B313=\"\",\"\",SUBTOTAL(3,$B$4:B313))","v":""},null,null,null,null,null,null,null,null,null,null,null,null,null,null,null,null,null,null,null,null,null,null,null,0,null,null,null,0]
[{"$f":"IF(B314=\"\",\"\",SUBTOTAL(3,$B$4:B314))","v":""},null,null,null,null,null,null,null,null,null,null,null,null,null,null,null,null,null,null,null,null,null,null,null,0,null,null,null,0]
[{"$f":"IF(B315=\"\",\"\",SUBTOTAL(3,$B$4:B315))","v":""},null,null,null,null,null,null,null,null,null,null,null,null,null,null,null,null,null,null,null,null,null,null,null,0,null,null,null,0]
[{"$f":"IF(B316=\"\",\"\",SUBTOTAL(3,$B$4:B316))","v":""},null,null,null,null,null,null,null,null,null,null,null,null,null,null,null,null,null,null,null,null,null,null,null,0,null,null,null,0]
[{"$f":"IF(B317=\"\",\"\",SUBTOTAL(3,$B$4:B317))","v":""},null,null,null,null,null,null,null,null,null,null,null,null,null,null,null,null,null,null,null,null,null,null,null,0,null,null,null,0]
[{"$f":"IF(B318=\"\",\"\",SUBTOTAL(3,$B$4:B318))","v":""},null,null,null,null,null,null,null,null,null,null,null,null,null,null,null,null,null,null,null,null,null,null,null,0,null,null,null,0]
[{"$f":"IF(B319=\"\",\"\",SUBTOTAL(3,$B$4:B319))","v":""},null,null,null,null,null,null,null,null,null,null,null,null,null,null,null,null,null,null,null,null,null,null,null,0,null,null,null,0]
[{"$f":"IF(B320=\"\",\"\",SUBTOTAL(3,$B$4:B320))","v":""},null,null,null,null,null,null,null,null,null,null,null,null,null,null,null,null,null,null,null,null,null,null,null,0,null,null,null,0]
[{"$f":"IF(B321=\"\",\"\",SUBTOTAL(3,$B$4:B321))","v":""},null,null,null,null,null,null,null,null,null,null,null,null,null,null,null,null,null,null,null,null,null,null,null,0,null,null,null,0]
[{"$f":"IF(B322=\"\",\"\",SUBTOTAL(3,$B$4:B322))","v":""},null,null,null,null,null,null,null,null,null,null,null,null,null,null,null,null,null,null,null,null,null,null,null,0,null,null,null,0]
[{"$f":"IF(B323=\"\",\"\",SUBTOTAL(3,$B$4:B323))","v":""},null,null,null,null,null,null,null,null,null,null,null,null,null,null,null,null,null,null,null,null,null,null,null,0,null,null,null,0]
[{"$f":"IF(B324=\"\",\"\",SUBTOTAL(3,$B$4:B324))","v":""},null,null,null,null,null,null,null,null,null,null,null,null,null,null,null,null,null,null,null,null,null,null,null,0,null,null,null,0]
[{"$f":"IF(B325=\"\",\"\",SUBTOTAL(3,$B$4:B325))","v":""},null,null,null,null,null,null,null,null,null,null,null,null,null,null,null,null,null,null,null,null,null,null,null,{"$f":"(I325*K325)+(L325*N325)+(O325*Q325)+(R325*T325)+SUM(U325:X325)","v":0},null,null,null,{"$f":"Y325-(Z325+AA325+AB325)","v":0}]
[{"$f":"IF(B326=\"\",\"\",SUBTOTAL(3,$B$4:B326))","v":""},null,null,null,null,null,null,null,null,null,null,null,null,null,null,null,null,null,null,null,null,null,null,null,0,null,null,null,0]
[{"$f":"IF(B327=\"\",\"\",SUBTOTAL(3,$B$4:B327))","v":""},null,null,null,null,null,null,null,null,null,null,null,null,null,null,null,null,null,null,null,null,null,null,null,0,null,null,null,0]
[{"$f":"IF(B328=\"\",\"\",SUBTOTAL(3,$B$4:B328))","v":""},null,null,null,null,null,null,null,null,null,null,null,null,null,null,null,null,null,null,null,null,null,null,null,0,null,null,null,0]
[{"$f":"IF(B329=\"\",\"\",SUBTOTAL(3,$B$4:B329))","v":""},null,null,null,null,null,null,null,null,null,null,null,null,null,null,null,null,null,null,null,null,null,null,null,0,null,null,null,0]
[{"$f":"IF(B330=\"\",\"\",SUBTOTAL(3,$B$4:B330))","v":""},null,null,null,null,null,null,null,null,null,null,null,null,null,null,null,null,null,null,null,null,null,null,null,0,null,null,null,0]
[{"$f":"IF(B331=\"\",\"\",SUBTOTAL(3,$B$4:B331))","v":""},null,null,null,null,null,null,null,null,null,null,null,null,null,null,null,null,null,null,null,null,null,null,null,0,null,null,null,0]
[{"$f":"IF(B332=\"\",\"\",SUBTOTAL(3,$B$4:B332))","v":""},null,null,null,null,null,null,null,null,null,null,null,null,null,null,null,null,null,null,null,null,null,null,null,0,null,null,null,0]
[{"$f":"IF(B333=\"\",\"\",SUBTOTAL(3,$B$4:B333))","v":""},null,null,null,null,null,null,null,null,null,null,null,null,null,null,null,null,null,null,null,null,null,null,null,0,null,null,null,0]
[{"$f":"IF(B334=\"\",\"\",SUBTOTAL(3,$B$4:B334))","v":""},null,null,null,null,null,null,null,null,null,null,null,null,null,null,null,null,null,null,null,null,null,null,null,0,null,null,null,0]
[{"$f":"IF(B335=\"\",\"\",SUBTOTAL(3,$B$4:B335))","v":""},null,null,null,null,null,null,null,null,null,null,null,null,null,null,null,null,null,null,null,null,null,null,null,0,null,null,null,0]
[{"$f":"IF(B336=\"\",\"\",SUBTOTAL(3,$B$4:B336))","v":""},null,null,null,null,null,null,null,null,null,null,null,null,null,null,null,null,null,null,null,null,null,null,null,0,null,null,null,0]
[{"$f":"IF(B337=\"\",\"\",SUBTOTAL(3,$B$4:B337))","v":""},null,null,null,null,null,null,null,null,null,null,null,null,null,null,null,null,null,null,null,null,null,null,null,0,null,null,null,0]
[{"$f":"IF(B338=\"\",\"\",SUBTOTAL(3,$B$4:B338))","v":""},null,null,null,null,null,null,null,null,null,null,null,null,null,null,null,null,null,null,null,null,null,null,null,0,null,null,null,0]
[{"$f":"IF(B339=\"\",\"\",SUBTOTAL(3,$B$4:B339))","v":""},null,null,null,null,null,null,null,null,null,null,null,null,null,null,null,null,null,null,null,null,null,null,null,0,null,null,null,0]
[{"$f":"IF(B340=\"\",\"\",SUBTOTAL(3,$B$4:B340))","v":""},null,null,null,null,null,null,null,null,null,null,null,null,null,null,null,null,null,null,null,null,null,null,null,0,null,null,null,0]
[{"$f":"IF(B341=\"\",\"\",SUBTOTAL(3,$B$4:B341))","v":""},null,null,null,null,null,null,null,null,null,null,null,null,null,null,null,null,null,null,null,null,null,null,null,0,null,null,null,0]
[{"$f":"IF(B342=\"\",\"\",SUBTOTAL(3,$B$4:B342))","v":""},null,null,null,null,null,null,null,null,null,null,null,null,null,null,null,null,null,null,null,null,null,null,null,0,null,null,null,0]
[{"$f":"IF(B343=\"\",\"\",SUBTOTAL(3,$B$4:B343))","v":""},null,null,null,null,null,null,null,null,null,null,null,null,null,null,null,null,null,null,null,null,null,null,null,0,null,null,null,0]
[{"$f":"IF(B344=\"\",\"\",SUBTOTAL(3,$B$4:B344))","v":""},null,null,null,null,null,null,null,null,null,null,null,null,null,null,null,null,null,null,null,null,null,null,null,0,null,null,null,0]
[{"$f":"IF(B345=\"\",\"\",SUBTOTAL(3,$B$4:B345))","v":""},null,null,null,null,null,null,null,null,null,null,null,null,null,null,null,null,null,null,null,null,null,null,null,0,null,null,null,0]
[{"$f":"IF(B346=\"\",\"\",SUBTOTAL(3,$B$4:B346))","v":""},null,null,null,null,null,null,null,null,null,null,null,null,null,null,null,null,null,null,null,null,null,null,null,0,null,null,null,0]
[{"$f":"IF(B347=\"\",\"\",SUBTOTAL(3,$B$4:B347))","v":""},null,null,null,null,null,null,null,null,null,null,null,null,null,null,null,null,null,null,null,null,null,null,null,0,null,null,null,0]
[{"$f":"IF(B348=\"\",\"\",SUBTOTAL(3,$B$4:B348))","v":""},null,null,null,null,null,null,null,null,null,null,null,null,null,null,null,null,null,null,null,null,null,null,null,0,null,null,null,0]
[{"$f":"IF(B349=\"\",\"\",SUBTOTAL(3,$B$4:B349))","v":""},null,null,null,null,null,null,null,null,null,null,null,null,null,null,null,null,null,null,null,null,null,null,null,0,null,null,null,0]
[{"$f":"IF(B350=\"\",\"\",SUBTOTAL(3,$B$4:B350))","v":""},null,null,null,null,null,null,null,null,null,null,null,null,null,null,null,null,null,null,null,null,null,null,null,0,null,null,null,0]
[{"$f":"IF(B351=\"\",\"\",SUBTOTAL(3,$B$4:B351))","v":""},null,null,null,null,null,null,null,null,null,null,null,null,null,null,null,null,null,null,null,null,null,null,null,0,null,null,null,0]
[{"$f":"IF(B352=\"\",\"\",SUBTOTAL(3,$B$4:B352))","v":""},null,null,null,null,null,null,null,null,null,null,null,null,null,null,null,null,null,null,null,null,null,null,null,0,null,null,null,0]
[{"$f":"IF(B353=\"\",\"\",SUBTOTAL(3,$B$4:B353))","v":""},null,null,null,null,null,null,null,null,null,null,null,null,null,null,null,null,null,null,null,null,null,null,null,0,null,null,null,0]
[{"$f":"IF(B354=\"\",\"\",SUBTOTAL(3,$B$4:B354))","v":""},null,null,null,null,null,null,null,null,null,null,null,null,null,null,null,null,null,null,null,null,null,null,null,0,null,null,null,0]
[{"$f":"IF(B355=\"\",\"\",SUBTOTAL(3,$B$4:B355))","v":""},null,null,null,null,null,null,null,null,null,null,null,null,null,null,null,null,null,null,null,null,null,null,null,0,null,null,null,0]
[{"$f":"IF(B356=\"\",\"\",SUBTOTAL(3,$B$4:B356))","v":""},null,null,null,null,null,null,null,null,null,null,null,null,null,null,null,null,null,null,null,null,null,null,null,0,null,null,null,0]
[{"$f":"IF(B357=\"\",\"\",SUBTOTAL(3,$B$4:B357))","v":""},null,null,null,null,null,null,null,null,null,null,null,null,null,null,null,null,null,null,null,null,null,null,null,0,null,null,null,0]
[{"$f":"IF(B358=\"\",\"\",SUBTOTAL(3,$B$4:B358))","v":""},null,null,null,null,null,null,null,null,null,null,null,null,null,null,null,null,null,null,null,null,null,null,null,0,null,null,null,0]
[{"$f":"IF(B359=\"\",\"\",SUBTOTAL(3,$B$4:B359))","v":""},null,null,null,null,null,null,null,null,null,null,null,null,null,null,null,null,null,null,null,null,null,null,null,0,null,null,null,0]
[{"$f":"IF(B360=\"\",\"\",SUBTOTAL(3,$B$4:B360))","v":""},null,null,null,null,null,null,null,null,null,null,null,null,null,null,null,null,null,null,null,null,null,null,null,0,null,null,null,0]
[{"$f":"IF(B361=\"\",\"\",SUBTOTAL(3,$B$4:B361))","v":""},null,null,null,null,null,null,null,null,null,null,null,null,null,null,null,null,null,null,null,null,null,null,null,0,null,null,null,0]
[{"$f":"IF(B362=\"\",\"\",SUBTOTAL(3,$B$4:B362))","v":""},null,null,null,null,null,null,null,null,null,null,null,null,null,null,null,null,null,null,null,null,null,null,null,0,null,null,null,0]
[{"$f":"IF(B363=\"\",\"\",SUBTOTAL(3,$B$4:B363))","v":""},null,null,null,null,null,null,null,null,null,null,null,null,null,null,null,null,null,null,null,null,null,null,null,0,null,null,null,0]
[{"$f":"IF(B364=\"\",\"\",SUBTOTAL(3,$B$4:B364))","v":""},null,null,null,null,null,null,null,null,null,null,null,null,null,null,null,null,null,null,null,null,null,null,null,0,null,null,null,0]
[{"$f":"IF(B365=\"\",\"\",SUBTOTAL(3,$B$4:B365))","v":""},null,null,null,null,null,null,null,null,null,null,null,null,null,null,null,null,null,null,null,null,null,null,null,0,null,null,null,0]
[{"$f":"IF(B366=\"\",\"\",SUBTOTAL(3,$B$4:B366))","v":""},null,null,null,null,null,null,null,null,null,null,null,null,null,null,null,null,null,null,null,null,null,null,null,0,null,null,null,0]
[{"$f":"IF(B367=\"\",\"\",SUBTOTAL(3,$B$4:B367))","v":""},null,null,null,null,null,null,null,null,null,null,null,null,null,null,null,null,null,null,null,null,null,null,null,0,null,null,null,0]
[{"$f":"IF(B368=\"\",\"\",SUBTOTAL(3,$B$4:B368))","v":""},null,null,null,null,null,null,null,null,null,null,null,null,null,null,null,null,null,null,null,null,null,null,null,0,null,null,null,0]
[{"$f":"IF(B369=\"\",\"\",SUBTOTAL(3,$B$4:B369))","v":""},null,null,null,null,null,null,null,null,null,null,null,null,null,null,null,null,null,null,null,null,null,null,null,0,null,null,null,0]
[{"$f":"IF(B370=\"\",\"\",SUBTOTAL(3,$B$4:B370))","v":""},null,null,null,null,null,null,null,null,null,null,null,null,null,null,null,null,null,null,null,null,null,null,null,0,null,null,null,0]
[{"$f":"IF(B371=\"\",\"\",SUBTOTAL(3,$B$4:B371))","v":""},null,null,null,null,null,null,null,null,null,null,null,null,null,null,null,null,null,null,null,null,null,null,null,0,null,null,null,0]
[{"$f":"IF(B372=\"\",\"\",SUBTOTAL(3,$B$4:B372))","v":""},null,null,null,null,null,null,null,null,null,null,null,null,null,null,null,null,null,null,null,null,null,null,null,0,null,null,null,0]
[{"$f":"IF(B373=\"\",\"\",SUBTOTAL(3,$B$4:B373))","v":""},null,null,null,null,null,null,null,null,null,null,null,null,null,null,null,null,null,null,null,null,null,null,null,0,null,null,null,0]
[{"$f":"IF(B374=\"\",\"\",SUBTOTAL(3,$B$4:B374))","v":""},null,null,null,null,null,null,null,null,null,null,null,null,null,null,null,null,null,null,null,null,null,null,null,0,null,null,null,0]
[{"$f":"IF(B375=\"\",\"\",SUBTOTAL(3,$B$4:B375))","v":""},null,null,null,null,null,null,null,null,null,null,null,null,null,null,null,null,null,null,null,null,null,null,null,0,null,null,null,0]
[{"$f":"IF(B376=\"\",\"\",SUBTOTAL(3,$B$4:B376))","v":""},null,null,null,null,null,null,null,null,null,null,null,null,null,null,null,null,null,null,null,null,null,null,null,0,null,null,null,0]
[{"$f":"IF(B377=\"\",\"\",SUBTOTAL(3,$B$4:B377))","v":""},null,null,null,null,null,null,null,null,null,null,null,null,null,null,null,null,null,null,null,null,null,null,null,0,null,null,null,0]
[{"$f":"IF(B378=\"\",\"\",SUBTOTAL(3,$B$4:B378))","v":""},null,null,null,null,null,null,null,null,null,null,null,null,null,null,null,null,null,null,null,null,null,null,null,0,null,null,null,0]
[{"$f":"IF(B379=\"\",\"\",SUBTOTAL(3,$B$4:B379))","v":""},null,null,null,null,null,null,null,null,null,null,null,null,null,null,null,null,null,null,null,null,null,null,null,0,null,null,null,0]
[{"$f":"IF(B380=\"\",\"\",SUBTOTAL(3,$B$4:B380))","v":""},null,null,null,null,null,null,null,null,null,null,null,null,null,null,null,null,null,null,null,null,null,null,null,0,null,null,null,0]
[{"$f":"IF(B381=\"\",\"\",SUBTOTAL(3,$B$4:B381))","v":""},null,null,null,null,null,null,null,null,null,null,null,null,null,null,null,null,null,null,null,null,null,null,null,0,null,null,null,0]
[{"$f":"IF(B382=\"\",\"\",SUBTOTAL(3,$B$4:B382))","v":""},null,null,null,null,null,null,null,null,null,null,null,null,null,null,null,null,null,null,null,null,null,null,null,0,null,null,null,0]
[{"$f":"IF(B383=\"\",\"\",SUBTOTAL(3,$B$4:B383))","v":""},null,null,null,null,null,null,null,null,null,null,null,null,null,null,null,null,null,null,null,null,null,null,null,0,null,null,null,0]
[{"$f":"IF(B384=\"\",\"\",SUBTOTAL(3,$B$4:B384))","v":""},null,null,null,null,null,null,null,null,null,null,null,null,null,null,null,null,null,null,null,null,null,null,null,0,null,null,null,0]
[{"$f":"IF(B385=\"\",\"\",SUBTOTAL(3,$B$4:B385))","v":""},null,null,null,null,null,null,null,null,null,null,null,null,null,null,null,null,null,null,null,null,null,null,null,0,null,null,null,0]
[{"$f":"IF(B386=\"\",\"\",SUBTOTAL(3,$B$4:B386))","v":""},null,null,null,null,null,null,null,null,null,null,null,null,null,null,null,null,null,null,null,null,null,null,null,0,null,null,null,0]
[{"$f":"IF(B387=\"\",\"\",SUBTOTAL(3,$B$4:B387))","v":""},null,null,null,null,null,null,null,null,null,null,null,null,null,null,null,null,null,null,null,null,null,null,null,0,null,null,null,0]
[{"$f":"IF(B388=\"\",\"\",SUBTOTAL(3,$B$4:B388))","v":""},null,null,null,null,null,null,null,null,null,null,null,null,null,null,null,null,null,null,null,null,null,null,null,0,null,null,null,0]
[{"$f":"IF(B389=\"\",\"\",SUBTOTAL(3,$B$4:B389))","v":""},null,null,null,null,null,null,null,null,null,null,null,null,null,null,null,null,null,null,null,null,null,null,null,{"$f":"(I389*K389)+(L389*N389)+(O389*Q389)+(R389*T389)+SUM(U389:X389)","v":0},null,null,null,{"$f":"Y389-(Z389+AA389+AB389)","v":0}]
[{"$f":"IF(B390=\"\",\"\",SUBTOTAL(3,$B$4:B390))","v":""},null,null,null,null,null,null,null,null,null,null,null,null,null,null,null,null,null,null,null,null,null,null,null,0,null,null,null,0]
[{"$f":"IF(B391=\"\",\"\",SUBTOTAL(3,$B$4:B391))","v":""},null,null,null,null,null,null,null,null,null,null,null,null,null,null,null,null,null,null,null,null,null,null,null,0,null,null,null,0]
[{"$f":"IF(B392=\"\",\"\",SUBTOTAL(3,$B$4:B392))","v":""},null,null,null,null,null,null,null,null,null,null,null,null,null,null,null,null,null,null,null,null,null,null,null,0,null,null,null,0]
[{"$f":"IF(B393=\"\",\"\",SUBTOTAL(3,$B$4:B393))","v":""},null,null,null,null,null,null,null,null,null,null,null,null,null,null,null,null,null,null,null,null,null,null,null,0,null,null,null,0]
[{"$f":"IF(B394=\"\",\"\",SUBTOTAL(3,$B$4:B394))","v":""},null,null,null,null,null,null,null,null,null,null,null,null,null,null,null,null,null,null,null,null,null,null,null,0,null,null,null,0]
[{"$f":"IF(B395=\"\",\"\",SUBTOTAL(3,$B$4:B395))","v":""},null,null,null,null,null,null,null,null,null,null,null,null,null,null,null,null,null,null,null,null,null,null,null,0,null,null,null,0]
[{"$f":"IF(B396=\"\",\"\",SUBTOTAL(3,$B$4:B396))","v":""},null,null,null,null,null,null,null,null,null,null,null,null,null,null,null,null,null,null,null,null,null,null,null,0,null,null,null,0]
[{"$f":"IF(B397=\"\",\"\",SUBTOTAL(3,$B$4:B397))","v":""},null,null,null,null,null,null,null,null,null,null,null,null,null,null,null,null,null,null,null,null,null,null,null,0,null,null,null,0]
[{"$f":"IF(B398=\"\",\"\",SUBTOTAL(3,$B$4:B398))","v":""},null,null,null,null,null,null,null,null,null,null,null,null,null,null,null,null,null,null,null,null,null,null,null,0,null,null,null,0]
[{"$f":"IF(B399=\"\",\"\",SUBTOTAL(3,$B$4:B399))","v":""},null,null,null,null,null,null,null,null,null,null,null,null,null,null,null,null,null,null,null,null,null,null,null,0,null,null,null,0]
[{"$f":"IF(B400=\"\",\"\",SUBTOTAL(3,$B$4:B400))","v":""},null,null,null,null,null,null,null,null,null,null,null,null,null,null,null,null,null,null,null,null,null,null,null,0,null,null,null,0]
[{"$f":"IF(B401=\"\",\"\",SUBTOTAL(3,$B$4:B401))","v":""},null,null,null,null,null,null,null,null,null,null,null,null,null,null,null,null,null,null,null,null,null,null,null,0,null,null,null,0]
[{"$f":"IF(B402=\"\",\"\",SUBTOTAL(3,$B$4:B402))","v":""},null,null,null,null,null,null,null,null,null,null,null,null,null,null,null,null,null,null,null,null,null,null,null,0,null,null,null,0]
[{"$f":"IF(B403=\"\",\"\",SUBTOTAL(3,$B$4:B403))","v":""},null,null,null,null,null,null,null,null,null,null,null,null,null,null,null,null,null,null,null,null,null,null,null,0,null,null,null,0]
[{"$f":"IF(B404=\"\",\"\",SUBTOTAL(3,$B$4:B404))","v":""},null,null,null,null,null,null,null,null,null,null,null,null,null,null,null,null,null,null,null,null,null,null,null,0,null,null,null,0]
[{"$f":"IF(B405=\"\",\"\",SUBTOTAL(3,$B$4:B405))","v":""},null,null,null,null,null,null,null,null,null,null,null,null,null,null,null,null,null,null,null,null,null,null,null,0,null,null,null,0]
[{"$f":"IF(B406=\"\",\"\",SUBTOTAL(3,$B$4:B406))","v":""},null,null,null,null,null,null,null,null,null,null,null,null,null,null,null,null,null,null,null,null,null,null,null,0,null,null,null,0]
[{"$f":"IF(B407=\"\",\"\",SUBTOTAL(3,$B$4:B407))","v":""},null,null,null,null,null,null,null,null,null,null,null,null,null,null,null,null,null,null,null,null,null,null,null,0,null,null,null,0]
[{"$f":"IF(B408=\"\",\"\",SUBTOTAL(3,$B$4:B408))","v":""},null,null,null,null,null,null,null,null,null,null,null,null,null,null,null,null,null,null,null,null,null,null,null,0,null,null,null,0]
[{"$f":"IF(B409=\"\",\"\",SUBTOTAL(3,$B$4:B409))","v":""},null,null,null,null,null,null,null,null,null,null,null,null,null,null,null,null,null,null,null,null,null,null,null,0,null,null,null,0]
[{"$f":"IF(B410=\"\",\"\",SUBTOTAL(3,$B$4:B410))","v":""},null,null,null,null,null,null,null,null,null,null,null,null,null,null,null,null,null,null,null,null,null,null,null,0,null,null,null,0]
[{"$f":"IF(B411=\"\",\"\",SUBTOTAL(3,$B$4:B411))","v":""},null,null,null,null,null,null,null,null,null,null,null,null,null,null,null,null,null,null,null,null,null,null,null,0,null,null,null,0]
[{"$f":"IF(B412=\"\",\"\",SUBTOTAL(3,$B$4:B412))","v":""},null,null,null,null,null,null,null,null,null,null,null,null,null,null,null,null,null,null,null,null,null,null,null,0,null,null,null,0]
[{"$f":"IF(B413=\"\",\"\",SUBTOTAL(3,$B$4:B413))","v":""},null,null,null,null,null,null,null,null,null,null,null,null,null,null,null,null,null,null,null,null,null,null,null,0,null,null,null,0]
[{"$f":"IF(B414=\"\",\"\",SUBTOTAL(3,$B$4:B414))","v":""},null,null,null,null,null,null,null,null,null,null,null,null,null,null,null,null,null,null,null,null,null,null,null,0,null,null,null,0]
[{"$f":"IF(B415=\"\",\"\",SUBTOTAL(3,$B$4:B415))","v":""},null,null,null,null,null,null,null,null,null,null,null,null,null,null,null,null,null,null,null,null,null,null,null,0,null,null,null,0]
[{"$f":"IF(B416=\"\",\"\",SUBTOTAL(3,$B$4:B416))","v":""},null,null,null,null,null,null,null,null,null,null,null,null,null,null,null,null,null,null,null,null,null,null,null,0,null,null,null,0]
[{"$f":"IF(B417=\"\",\"\",SUBTOTAL(3,$B$4:B417))","v":""},null,null,null,null,null,null,null,null,null,null,null,null,null,null,null,null,null,null,null,null,null,null,null,0,null,null,null,0]
[{"$f":"IF(B418=\"\",\"\",SUBTOTAL(3,$B$4:B418))","v":""},null,null,null,null,null,null,null,null,null,null,null,null,null,null,null,null,null,null,null,null,null,null,null,0,null,null,null,0]
[{"$f":"IF(B419=\"\",\"\",SUBTOTAL(3,$B$4:B419))","v":""},null,null,null,null,null,null,null,null,null,null,null,null,null,null,null,null,null,null,null,null,null,null,null,0,null,null,null,0]
[{"$f":"IF(B420=\"\",\"\",SUBTOTAL(3,$B$4:B420))","v":""},null,null,null,null,null,null,null,null,null,null,null,null,null,null,null,null,null,null,null,null,null,null,null,0,null,null,null,0]
[{"$f":"IF(B421=\"\",\"\",SUBTOTAL(3,$B$4:B421))","v":""},null,null,null,null,null,null,null,null,null,null,null,null,null,null,null,null,null,null,null,null,null,null,null,0,null,null,null,0]
[{"$f":"IF(B422=\"\",\"\",SUBTOTAL(3,$B$4:B422))","v":""},null,null,null,null,null,null,null,null,null,null,null,null,null,null,null,null,null,null,null,null,null,null,null,0,null,null,null,0]
[{"$f":"IF(B423=\"\",\"\",SUBTOTAL(3,$B$4:B423))","v":""},null,null,null,null,null,null,null,null,null,null,null,null,null,null,null,null,null,null,null,null,null,null,null,0,null,null,null,0]
[{"$f":"IF(B424=\"\",\"\",SUBTOTAL(3,$B$4:B424))","v":""},null,null,null,null,null,null,null,null,null,null,null,null,null,null,null,null,null,null,null,null,null,null,null,0,null,null,null,0]
[{"$f":"IF(B425=\"\",\"\",SUBTOTAL(3,$B$4:B425))","v":""},null,null,null,null,null,null,null,null,null,null,null,null,null,null,null,null,null,null,null,null,null,null,null,0,null,null,null,0]
[{"$f":"IF(B426=\"\",\"\",SUBTOTAL(3,$B$4:B426))","v":""},null,null,null,null,null,null,null,null,null,null,null,null,null,null,null,null,null,null,null,null,null,null,null,0,null,null,null,0]
[{"$f":"IF(B427=\"\",\"\",SUBTOTAL(3,$B$4:B427))","v":""},null,null,null,null,null,null,null,null,null,null,null,null,null,null,null,null,null,null,null,null,null,null,null,0,null,null,null,0]
[{"$f":"IF(B428=\"\",\"\",SUBTOTAL(3,$B$4:B428))","v":""},null,null,null,null,null,null,null,null,null,null,null,null,null,null,null,null,null,null,null,null,null,null,null,0,null,null,null,0]
[{"$f":"IF(B429=\"\",\"\",SUBTOTAL(3,$B$4:B429))","v":""},null,null,null,null,null,null,null,null,null,null,null,null,null,null,null,null,null,null,null,null,null,null,null,0,null,null,null,0]
[{"$f":"IF(B430=\"\",\"\",SUBTOTAL(3,$B$4:B430))","v":""},null,null,null,null,null,null,null,null,null,null,null,null,null,null,null,null,null,null,null,null,null,null,null,0,null,null,null,0]
[{"$f":"IF(B431=\"\",\"\",SUBTOTAL(3,$B$4:B431))","v":""},null,null,null,null,null,null,null,null,null,null,null,null,null,null,null,null,null,null,null,null,null,null,null,0,null,null,null,0]
[{"$f":"IF(B432=\"\",\"\",SUBTOTAL(3,$B$4:B432))","v":""},null,null,null,null,null,null,null,null,null,null,null,null,null,null,null,null,null,null,null,null,null,null,null,0,null,null,null,0]
[{"$f":"IF(B433=\"\",\"\",SUBTOTAL(3,$B$4:B433))","v":""},null,null,null,null,null,null,null,null,null,null,null,null,null,null,null,null,null,null,null,null,null,null,null,0,null,null,null,0]
[{"$f":"IF(B434=\"\",\"\",SUBTOTAL(3,$B$4:B434))","v":""},null,null,null,null,null,null,null,null,null,null,null,null,null,null,null,null,null,null,null,null,null,null,null,0,null,null,null,0]
[{"$f":"IF(B435=\"\",\"\",SUBTOTAL(3,$B$4:B435))","v":""},null,null,null,null,null,null,null,null,null,null,null,null,null,null,null,null,null,null,null,null,null,null,null,0,null,null,null,0]
[{"$f":"IF(B436=\"\",\"\",SUBTOTAL(3,$B$4:B436))","v":""},null,null,null,null,null,null,null,null,null,null,null,null,null,null,null,null,null,null,null,null,null,null,null,0,null,null,null,0]
[{"$f":"IF(B437=\"\",\"\",SUBTOTAL(3,$B$4:B437))","v":""},null,null,null,null,null,null,null,null,null,null,null,null,null,null,null,null,null,null,null,null,null,null,null,0,null,null,null,0]
[{"$f":"IF(B438=\"\",\"\",SUBTOTAL(3,$B$4:B438))","v":""},null,null,null,null,null,null,null,null,null,null,null,null,null,null,null,null,null,null,null,null,null,null,null,0,null,null,null,0]
[{"$f":"IF(B439=\"\",\"\",SUBTOTAL(3,$B$4:B439))","v":""},null,null,null,null,null,null,null,null,null,null,null,null,null,null,null,null,null,null,null,null,null,null,null,0,null,null,null,0]
[{"$f":"IF(B440=\"\",\"\",SUBTOTAL(3,$B$4:B440))","v":""},null,null,null,null,null,null,null,null,null,null,null,null,null,null,null,null,null,null,null,null,null,null,null,0,null,null,null,0]
[{"$f":"IF(B441=\"\",\"\",SUBTOTAL(3,$B$4:B441))","v":""},null,null,null,null,null,null,null,null,null,null,null,null,null,null,null,null,null,null,null,null,null,null,null,0,null,null,null,0]
[{"$f":"IF(B442=\"\",\"\",SUBTOTAL(3,$B$4:B442))","v":""},null,null,null,null,null,null,null,null,null,null,null,null,null,null,null,null,null,null,null,null,null,null,null,0,null,null,null,0]
[{"$f":"IF(B443=\"\",\"\",SUBTOTAL(3,$B$4:B443))","v":""},null,null,null,null,null,null,null,null,null,null,null,null,null,null,null,null,null,null,null,null,null,null,null,0,null,null,null,0]
[{"$f":"IF(B444=\"\",\"\",SUBTOTAL(3,$B$4:B444))","v":""},null,null,null,null,null,null,null,null,null,null,null,null,null,null,null,null,null,null,null,null,null,null,null,0,null,null,null,0]
[{"$f":"IF(B445=\"\",\"\",SUBTOTAL(3,$B$4:B445))","v":""},null,null,null,null,null,null,null,null,null,null,null,null,null,null,null,null,null,null,null,null,null,null,null,0,null,null,null,0]
[{"$f":"IF(B446=\"\",\"\",SUBTOTAL(3,$B$4:B446))","v":""},null,null,null,null,null,null,null,null,null,null,null,null,null,null,null,null,null,null,null,null,null,null,null,0,null,null,null,0]
[{"$f":"IF(B447=\"\",\"\",SUBTOTAL(3,$B$4:B447))","v":""},null,null,null,null,null,null,null,null,null,null,null,null,null,null,null,null,null,null,null,null,null,null,null,0,null,null,null,0]
[{"$f":"IF(B448=\"\",\"\",SUBTOTAL(3,$B$4:B448))","v":""},null,null,null,null,null,null,null,null,null,null,null,null,null,null,null,null,null,null,null,null,null,null,null,0,null,null,null,0]
[{"$f":"IF(B449=\"\",\"\",SUBTOTAL(3,$B$4:B449))","v":""},null,null,null,null,null,null,null,null,null,null,null,null,null,null,null,null,null,null,null,null,null,null,null,0,null,null,null,0]
[{"$f":"IF(B450=\"\",\"\",SUBTOTAL(3,$B$4:B450))","v":""},null,null,null,null,null,null,null,null,null,null,null,null,null,null,null,null,null,null,null,null,null,null,null,0,null,null,null,0]
[{"$f":"IF(B451=\"\",\"\",SUBTOTAL(3,$B$4:B451))","v":""},null,null,null,null,null,null,null,null,null,null,null,null,null,null,null,null,null,null,null,null,null,null,null,0,null,null,null,0]
[{"$f":"IF(B452=\"\",\"\",SUBTOTAL(3,$B$4:B452))","v":""},null,null,null,null,null,null,null,null,null,null,null,null,null,null,null,null,null,null,null,null,null,null,null,0,null,null,null,0]
[{"$f":"IF(B453=\"\",\"\",SUBTOTAL(3,$B$4:B453))","v":""},null,null,null,null,null,null,null,null,null,null,null,null,null,null,null,null,null,null,null,null,null,null,null,{"$f":"(I453*K453)+(L453*N453)+(O453*Q453)+(R453*T453)+SUM(U453:X453)","v":0},null,null,null,{"$f":"Y453-(Z453+AA453+AB453)","v":0}]
[{"$f":"IF(B454=\"\",\"\",SUBTOTAL(3,$B$4:B454))","v":""},null,null,null,null,null,null,null,null,null,null,null,null,null,null,null,null,null,null,null,null,null,null,null,0,null,null,null,0]
[{"$f":"IF(B455=\"\",\"\",SUBTOTAL(3,$B$4:B455))","v":""},null,null,null,null,null,null,null,null,null,null,null,null,null,null,null,null,null,null,null,null,null,null,null,0,null,null,null,0]
[{"$f":"IF(B456=\"\",\"\",SUBTOTAL(3,$B$4:B456))","v":""},null,null,null,null,null,null,null,null,null,null,null,null,null,null,null,null,null,null,null,null,null,null,null,0,null,null,null,0]
[{"$f":"IF(B457=\"\",\"\",SUBTOTAL(3,$B$4:B457))","v":""},null,null,null,null,null,null,null,null,null,null,null,null,null,null,null,null,null,null,null,null,null,null,null,0,null,null,null,0]
[{"$f":"IF(B458=\"\",\"\",SUBTOTAL(3,$B$4:B458))","v":""},null,null,null,null,null,null,null,null,null,null,null,null,null,null,null,null,null,null,null,null,null,null,null,0,null,null,null,0]
[{"$f":"IF(B459=\"\",\"\",SUBTOTAL(3,$B$4:B459))","v":""},null,null,null,null,null,null,null,null,null,null,null,null,null,null,null,null,null,null,null,null,null,null,null,0,null,null,null,0]
[{"$f":"IF(B460=\"\",\"\",SUBTOTAL(3,$B$4:B460))","v":""},null,null,null,null,null,null,null,null,null,null,null,null,null,null,null,null,null,null,null,null,null,null,null,0,null,null,null,0]
[{"$f":"IF(B461=\"\",\"\",SUBTOTAL(3,$B$4:B461))","v":""},null,null,null,null,null,null,null,null,null,null,null,null,null,null,null,null,null,null,null,null,null,null,null,0,null,null,null,0]
[{"$f":"IF(B462=\"\",\"\",SUBTOTAL(3,$B$4:B462))","v":""},null,null,null,null,null,null,null,null,null,null,null,null,null,null,null,null,null,null,null,null,null,null,null,0,null,null,null,0]
[{"$f":"IF(B463=\"\",\"\",SUBTOTAL(3,$B$4:B463))","v":""},null,null,null,null,null,null,null,null,null,null,null,null,null,null,null,null,null,null,null,null,null,null,null,0,null,null,null,0]
[{"$f":"IF(B464=\"\",\"\",SUBTOTAL(3,$B$4:B464))","v":""},null,null,null,null,null,null,null,null,null,null,null,null,null,null,null,null,null,null,null,null,null,null,null,0,null,null,null,0]
[{"$f":"IF(B465=\"\",\"\",SUBTOTAL(3,$B$4:B465))","v":""},null,null,null,null,null,null,null,null,null,null,null,null,null,null,null,null,null,null,null,null,null,null,null,0,null,null,null,0]
[{"$f":"IF(B466=\"\",\"\",SUBTOTAL(3,$B$4:B466))","v":""},null,null,null,null,null,null,null,null,null,null,null,null,null,null,null,null,null,null,null,null,null,null,null,0,null,null,null,0]
[{"$f":"IF(B467=\"\",\"\",SUBTOTAL(3,$B$4:B467))","v":""},null,null,null,null,null,null,null,null,null,null,null,null,null,null,null,null,null,null,null,null,null,null,null,0,null,null,null,0]
[{"$f":"IF(B468=\"\",\"\",SUBTOTAL(3,$B$4:B468))","v":""},null,null,null,null,null,null,null,null,null,null,null,null,null,null,null,null,null,null,null,null,null,null,null,0,null,null,null,0]
[{"$f":"IF(B469=\"\",\"\",SUBTOTAL(3,$B$4:B469))","v":""},null,null,null,null,null,null,null,null,null,null,null,null,null,null,null,null,null,null,null,null,null,null,null,0,null,null,null,0]
[{"$f":"IF(B470=\"\",\"\",SUBTOTAL(3,$B$4:B470))","v":""},null,null,null,null,null,null,null,null,null,null,null,null,null,null,null,null,null,null,null,null,null,null,null,0,null,null,null,0]
[{"$f":"IF(B471=\"\",\"\",SUBTOTAL(3,$B$4:B471))","v":""},null,null,null,null,null,null,null,null,null,null,null,null,null,null,null,null,null,null,null,null,null,null,null,0,null,null,null,0]
[{"$f":"IF(B472=\"\",\"\",SUBTOTAL(3,$B$4:B472))","v":""},null,null,null,null,null,null,null,null,null,null,null,null,null,null,null,null,null,null,null,null,null,null,null,0,null,null,null,0]
[{"$f":"IF(B473=\"\",\"\",SUBTOTAL(3,$B$4:B473))","v":""},null,null,null,null,null,null,null,null,null,null,null,null,null,null,null,null,null,null,null,null,null,null,null,0,null,null,null,0]
[{"$f":"IF(B474=\"\",\"\",SUBTOTAL(3,$B$4:B474))","v":""},null,null,null,null,null,null,null,null,null,null,null,null,null,null,null,null,null,null,null,null,null,null,null,0,null,null,null,0]
[{"$f":"IF(B475=\"\",\"\",SUBTOTAL(3,$B$4:B475))","v":""},null,null,null,null,null,null,null,null,null,null,null,null,null,null,null,null,null,null,null,null,null,null,null,0,null,null,null,0]
[{"$f":"IF(B476=\"\",\"\",SUBTOTAL(3,$B$4:B476))","v":""},null,null,null,null,null,null,null,null,null,null,null,null,null,null,null,null,null,null,null,null,null,null,null,0,null,null,null,0]
[{"$f":"IF(B477=\"\",\"\",SUBTOTAL(3,$B$4:B477))","v":""},null,null,null,null,null,null,null,null,null,null,null,null,null,null,null,null,null,null,null,null,null,null,null,0,null,null,null,0]
[{"$f":"IF(B478=\"\",\"\",SUBTOTAL(3,$B$4:B478))","v":""},null,null,null,null,null,null,null,null,null,null,null,null,null,null,null,null,null,null,null,null,null,null,null,0,null,null,null,0]
[{"$f":"IF(B479=\"\",\"\",SUBTOTAL(3,$B$4:B479))","v":""},null,null,null,null,null,null,null,null,null,null,null,null,null,null,null,null,null,null,null,null,null,null,null,0,null,null,null,0]
[{"$f":"IF(B480=\"\",\"\",SUBTOTAL(3,$B$4:B480))","v":""},null,null,null,null,null,null,null,null,null,null,null,null,null,null,null,null,null,null,null,null,null,null,null,0,null,null,null,0]
[{"$f":"IF(B481=\"\",\"\",SUBTOTAL(3,$B$4:B481))","v":""},null,null,null,null,null,null,null,null,null,null,null,null,null,null,null,null,null,null,null,null,null,null,null,0,null,null,null,0]
[{"$f":"IF(B482=\"\",\"\",SUBTOTAL(3,$B$4:B482))","v":""},null,null,null,null,null,null,null,null,null,null,null,null,null,null,null,null,null,null,null,null,null,null,null,0,null,null,null,0]
[{"$f":"IF(B483=\"\",\"\",SUBTOTAL(3,$B$4:B483))","v":""},null,null,null,null,null,null,null,null,null,null,null,null,null,null,null,null,null,null,null,null,null,null,null,0,null,null,null,0]
[{"$f":"IF(B484=\"\",\"\",SUBTOTAL(3,$B$4:B484))","v":""},null,null,null,null,null,null,null,null,null,null,null,null,null,null,null,null,null,null,null,null,null,null,null,0,null,null,null,0]
[{"$f":"IF(B485=\"\",\"\",SUBTOTAL(3,$B$4:B485))","v":""},null,null,null,null,null,null,null,null,null,null,null,null,null,null,null,null,null,null,null,null,null,null,null,0,null,null,null,0]
[{"$f":"IF(B486=\"\",\"\",SUBTOTAL(3,$B$4:B486))","v":""},null,null,null,null,null,null,null,null,null,null,null,null,null,null,null,null,null,null,null,null,null,null,null,0,null,null,null,0]
[{"$f":"IF(B487=\"\",\"\",SUBTOTAL(3,$B$4:B487))","v":""},null,null,null,null,null,null,null,null,null,null,null,null,null,null,null,null,null,null,null,null,null,null,null,0,null,null,null,0]
[{"$f":"IF(B488=\"\",\"\",SUBTOTAL(3,$B$4:B488))","v":""},null,null,null,null,null,null,null,null,null,null,null,null,null,null,null,null,null,null,null,null,null,null,null,0,null,null,null,0]
[{"$f":"IF(B489=\"\",\"\",SUBTOTAL(3,$B$4:B489))","v":""},null,null,null,null,null,null,null,null,null,null,null,null,null,null,null,null,null,null,null,null,null,null,null,0,null,null,null,0]
[{"$f":"IF(B490=\"\",\"\",SUBTOTAL(3,$B$4:B490))","v":""},null,null,null,null,null,null,null,null,null,null,null,null,null,null,null,null,null,null,null,null,null,null,null,0,null,null,null,0]
[{"$f":"IF(B491=\"\",\"\",SUBTOTAL(3,$B$4:B491))","v":""},null,null,null,null,null,null,null,null,null,null,null,null,null,null,null,null,null,null,null,null,null,null,null,0,null,null,null,0]
[{"$f":"IF(B492=\"\",\"\",SUBTOTAL(3,$B$4:B492))","v":""},null,null,null,null,null,null,null,null,null,null,null,null,null,null,null,null,null,null,null,null,null,null,null,0,null,null,null,0]
[{"$f":"IF(B493=\"\",\"\",SUBTOTAL(3,$B$4:B493))","v":""},null,null,null,null,null,null,null,null,null,null,null,null,null,null,null,null,null,null,null,null,null,null,null,0,null,null,null,0]
[{"$f":"IF(B494=\"\",\"\",SUBTOTAL(3,$B$4:B494))","v":""},null,null,null,null,null,null,null,null,null,null,null,null,null,null,null,null,null,null,null,null,null,null,null,0,null,null,null,0]
[{"$f":"IF(B495=\"\",\"\",SUBTOTAL(3,$B$4:B495))","v":""},null,null,null,null,null,null,null,null,null,null,null,null,null,null,null,null,null,null,null,null,null,null,null,0,null,null,null,0]
[{"$f":"IF(B496=\"\",\"\",SUBTOTAL(3,$B$4:B496))","v":""},null,null,null,null,null,null,null,null,null,null,null,null,null,null,null,null,null,null,null,null,null,null,null,0,null,null,null,0]
[{"$f":"IF(B497=\"\",\"\",SUBTOTAL(3,$B$4:B497))","v":""},null,null,null,null,null,null,null,null,null,null,null,null,null,null,null,null,null,null,null,null,null,null,null,0,null,null,null,0]
[{"$f":"IF(B498=\"\",\"\",SUBTOTAL(3,$B$4:B498))","v":""},null,null,null,null,null,null,null,null,null,null,null,null,null,null,null,null,null,null,null,null,null,null,null,0,null,null,null,0]
[{"$f":"IF(B499=\"\",\"\",SUBTOTAL(3,$B$4:B499))","v":""},null,null,null,null,null,null,null,null,null,null,null,null,null,null,null,null,null,null,null,null,null,null,null,0,null,null,null,0]
[{"$f":"IF(B500=\"\",\"\",SUBTOTAL(3,$B$4:B500))","v":""},null,null,null,null,null,null,null,null,null,null,null,null,null,null,null,null,null,null,null,null,null,null,null,0,null,null,null,0]
[{"$f":"IF(B501=\"\",\"\",SUBTOTAL(3,$B$4:B501))","v":""},null,null,null,null,null,null,null,null,null,null,null,null,null,null,null,null,null,null,null,null,null,null,null,0,null,null,null,0]
[{"$f":"IF(B502=\"\",\"\",SUBTOTAL(3,$B$4:B502))","v":""},null,null,null,null,null,null,null,null,null,null,null,null,null,null,null,null,null,null,null,null,null,null,null,0,null,null,null,0]
[{"$f":"IF(B503=\"\",\"\",SUBTOTAL(3,$B$4:B503))","v":""},null,null,null,null,null,null,null,null,null,null,null,null,null,null,null,null,null,null,null,null,null,null,null,0,null,null,null,0]
[{"$f":"IF(B504=\"\",\"\",SUBTOTAL(3,$B$4:B504))","v":""},null,null,null,null,null,null,null,null,null,null,null,null,null,null,null,null,null,null,null,null,null,null,null,0,null,null,null,0]
[{"$f":"IF(B505=\"\",\"\",SUBTOTAL(3,$B$4:B505))","v":""},null,null,null,null,null,null,null,null,null,null,null,null,null,null,null,null,null,null,null,null,null,null,null,0,null,null,null,0]
[{"$f":"IF(B506=\"\",\"\",SUBTOTAL(3,$B$4:B506))","v":""},null,null,null,null,null,null,null,null,null,null,null,null,null,null,null,null,null,null,null,null,null,null,null,0,null,null,null,0]
[{"$f":"IF(B507=\"\",\"\",SUBTOTAL(3,$B$4:B507))","v":""},null,null,null,null,null,null,null,null,null,null,null,null,null,null,null,null,null,null,null,null,null,null,null,0,null,null,null,0]
[{"$f":"IF(B508=\"\",\"\",SUBTOTAL(3,$B$4:B508))","v":""},null,null,null,null,null,null,null,null,null,null,null,null,null,null,null,null,null,null,null,null,null,null,null,0,null,null,null,0]
[{"$f":"IF(B509=\"\",\"\",SUBTOTAL(3,$B$4:B509))","v":""},null,null,null,null,null,null,null,null,null,null,null,null,null,null,null,null,null,null,null,null,null,null,null,0,null,null,null,0]
[{"$f":"IF(B510=\"\",\"\",SUBTOTAL(3,$B$4:B510))","v":""},null,null,null,null,null,null,null,null,null,null,null,null,null,null,null,null,null,null,null,null,null,null,null,0,null,null,null,0]
[{"$f":"IF(B511=\"\",\"\",SUBTOTAL(3,$B$4:B511))","v":""},null,null,null,null,null,null,null,null,null,null,null,null,null,null,null,null,null,null,null,null,null,null,null,0,null,null,null,0]
[{"$f":"IF(B512=\"\",\"\",SUBTOTAL(3,$B$4:B512))","v":""},null,null,null,null,null,null,null,null,null,null,null,null,null,null,null,null,null,null,null,null,null,null,null,0,null,null,null,0]
[{"$f":"IF(B513=\"\",\"\",SUBTOTAL(3,$B$4:B513))","v":""},null,null,null,null,null,null,null,null,null,null,null,null,null,null,null,null,null,null,null,null,null,null,null,0,null,null,null,0]
[{"$f":"IF(B514=\"\",\"\",SUBTOTAL(3,$B$4:B514))","v":""},null,null,null,null,null,null,null,null,null,null,null,null,null,null,null,null,null,null,null,null,null,null,null,0,null,null,null,0]
[{"$f":"IF(B515=\"\",\"\",SUBTOTAL(3,$B$4:B515))","v":""},null,null,null,null,null,null,null,null,null,null,null,null,null,null,null,null,null,null,null,null,null,null,null,0,null,null,null,0]
[{"$f":"IF(B516=\"\",\"\",SUBTOTAL(3,$B$4:B516))","v":""},null,null,null,null,null,null,null,null,null,null,null,null,null,null,null,null,null,null,null,null,null,null,null,0,null,null,null,0]
[{"$f":"IF(B517=\"\",\"\",SUBTOTAL(3,$B$4:B517))","v":""},null,null,null,null,null,null,null,null,null,null,null,null,null,null,null,null,null,null,null,null,null,null,null,{"$f":"(I517*K517)+(L517*N517)+(O517*Q517)+(R517*T517)+SUM(U517:X517)","v":0},null,null,null,{"$f":"Y517-(Z517+AA517+AB517)","v":0}]
[{"$f":"IF(B518=\"\",\"\",SUBTOTAL(3,$B$4:B518))","v":""},null,null,null,null,null,null,null,null,null,null,null,null,null,null,null,null,null,null,null,null,null,null,null,0,null,null,null,0]
[{"$f":"IF(B519=\"\",\"\",SUBTOTAL(3,$B$4:B519))","v":""},null,null,null,null,null,null,null,null,null,null,null,null,null,null,null,null,null,null,null,null,null,null,null,0,null,null,null,0]
[{"$f":"IF(B520=\"\",\"\",SUBTOTAL(3,$B$4:B520))","v":""},null,null,null,null,null,null,null,null,null,null,null,null,null,null,null,null,null,null,null,null,null,null,null,0,null,null,null,0]
[{"$f":"IF(B521=\"\",\"\",SUBTOTAL(3,$B$4:B521))","v":""},null,null,null,null,null,null,null,null,null,null,null,null,null,null,null,null,null,null,null,null,null,null,null,0,null,null,null,0]
[{"$f":"IF(B522=\"\",\"\",SUBTOTAL(3,$B$4:B522))","v":""},null,null,null,null,null,null,null,null,null,null,null,null,null,null,null,null,null,null,null,null,null,null,null,0,null,null,null,0]
[{"$f":"IF(B523=\"\",\"\",SUBTOTAL(3,$B$4:B523))","v":""},null,null,null,null,null,null,null,null,null,null,null,null,null,null,null,null,null,null,null,null,null,null,null,0,null,null,null,0]
[{"$f":"IF(B524=\"\",\"\",SUBTOTAL(3,$B$4:B524))","v":""},null,null,null,null,null,null,null,null,null,null,null,null,null,null,null,null,null,null,null,null,null,null,null,0,null,null,null,0]
[{"$f":"IF(B525=\"\",\"\",SUBTOTAL(3,$B$4:B525))","v":""},null,null,null,null,null,null,null,null,null,null,null,null,null,null,null,null,null,null,null,null,null,null,null,0,null,null,null,0]
[{"$f":"IF(B526=\"\",\"\",SUBTOTAL(3,$B$4:B526))","v":""},null,null,null,null,null,null,null,null,null,null,null,null,null,null,null,null,null,null,null,null,null,null,null,0,null,null,null,0]
[{"$f":"IF(B527=\"\",\"\",SUBTOTAL(3,$B$4:B527))","v":""},null,null,null,null,null,null,null,null,null,null,null,null,null,null,null,null,null,null,null,null,null,null,null,0,null,null,null,0]
[{"$f":"IF(B528=\"\",\"\",SUBTOTAL(3,$B$4:B528))","v":""},null,null,null,null,null,null,null,null,null,null,null,null,null,null,null,null,null,null,null,null,null,null,null,0,null,null,null,0]
[{"$f":"IF(B529=\"\",\"\",SUBTOTAL(3,$B$4:B529))","v":""},null,null,null,null,null,null,null,null,null,null,null,null,null,null,null,null,null,null,null,null,null,null,null,0,null,null,null,0]
[{"$f":"IF(B530=\"\",\"\",SUBTOTAL(3,$B$4:B530))","v":""},null,null,null,null,null,null,null,null,null,null,null,null,null,null,null,null,null,null,null,null,null,null,null,0,null,null,null,0]
[{"$f":"IF(B531=\"\",\"\",SUBTOTAL(3,$B$4:B531))","v":""},null,null,null,null,null,null,null,null,null,null,null,null,null,null,null,null,null,null,null,null,null,null,null,0,null,null,null,0]
[{"$f":"IF(B532=\"\",\"\",SUBTOTAL(3,$B$4:B532))","v":""},null,null,null,null,null,null,null,null,null,null,null,null,null,null,null,null,null,null,null,null,null,null,null,0,null,null,null,0]
[{"$f":"IF(B533=\"\",\"\",SUBTOTAL(3,$B$4:B533))","v":""},null,null,null,null,null,null,null,null,null,null,null,null,null,null,null,null,null,null,null,null,null,null,null,0,null,null,null,0]
[{"$f":"IF(B534=\"\",\"\",SUBTOTAL(3,$B$4:B534))","v":""},null,null,null,null,null,null,null,null,null,null,null,null,null,null,null,null,null,null,null,null,null,null,null,0,null,null,null,0]
[{"$f":"IF(B535=\"\",\"\",SUBTOTAL(3,$B$4:B535))","v":""},null,null,null,null,null,null,null,null,null,null,null,null,null,null,null,null,null,null,null,null,null,null,null,0,null,null,null,0]
[{"$f":"IF(B536=\"\",\"\",SUBTOTAL(3,$B$4:B536))","v":""},null,null,null,null,null,null,null,null,null,null,null,null,null,null,null,null,null,null,null,null,null,null,null,0,null,null,null,0]
[{"$f":"IF(B537=\"\",\"\",SUBTOTAL(3,$B$4:B537))","v":""},null,null,null,null,null,null,null,null,null,null,null,null,null,null,null,null,null,null,null,null,null,null,null,0,null,null,null,0]
[{"$f":"IF(B538=\"\",\"\",SUBTOTAL(3,$B$4:B538))","v":""},null,null,null,null,null,null,null,null,null,null,null,null,null,null,null,null,null,null,null,null,null,null,null,0,null,null,null,0]
[{"$f":"IF(B539=\"\",\"\",SUBTOTAL(3,$B$4:B539))","v":""},null,null,null,null,null,null,null,null,null,null,null,null,null,null,null,null,null,null,null,null,null,null,null,0,null,null,null,0]
[{"$f":"IF(B540=\"\",\"\",SUBTOTAL(3,$B$4:B540))","v":""},null,null,null,null,null,null,null,null,null,null,null,null,null,null,null,null,null,null,null,null,null,null,null,0,null,null,null,0]
[{"$f":"IF(B541=\"\",\"\",SUBTOTAL(3,$B$4:B541))","v":""},null,null,null,null,null,null,null,null,null,null,null,null,null,null,null,null,null,null,null,null,null,null,null,0,null,null,null,0]
[{"$f":"IF(B542=\"\",\"\",SUBTOTAL(3,$B$4:B542))","v":""},null,null,null,null,null,null,null,null,null,null,null,null,null,null,null,null,null,null,null,null,null,null,null,0,null,null,null,0]
[{"$f":"IF(B543=\"\",\"\",SUBTOTAL(3,$B$4:B543))","v":""},null,null,null,null,null,null,null,null,null,null,null,null,null,null,null,null,null,null,null,null,null,null,null,0,null,null,null,0]
[{"$f":"IF(B544=\"\",\"\",SUBTOTAL(3,$B$4:B544))","v":""},null,null,null,null,null,null,null,null,null,null,null,null,null,null,null,null,null,null,null,null,null,null,null,0,null,null,null,0]
[{"$f":"IF(B545=\"\",\"\",SUBTOTAL(3,$B$4:B545))","v":""},null,null,null,null,null,null,null,null,null,null,null,null,null,null,null,null,null,null,null,null,null,null,null,0,null,null,null,0]
[{"$f":"IF(B546=\"\",\"\",SUBTOTAL(3,$B$4:B546))","v":""},null,null,null,null,null,null,null,null,null,null,null,null,null,null,null,null,null,null,null,null,null,null,null,0,null,null,null,0]
[{"$f":"IF(B547=\"\",\"\",SUBTOTAL(3,$B$4:B547))","v":""},null,null,null,null,null,null,null,null,null,null,null,null,null,null,null,null,null,null,null,null,null,null,null,0,null,null,null,0]
[{"$f":"IF(B548=\"\",\"\",SUBTOTAL(3,$B$4:B548))","v":""},null,null,null,null,null,null,null,null,null,null,null,null,null,null,null,null,null,null,null,null,null,null,null,0,null,null,null,0]
[{"$f":"IF(B549=\"\",\"\",SUBTOTAL(3,$B$4:B549))","v":""},null,null,null,null,null,null,null,null,null,null,null,null,null,null,null,null,null,null,null,null,null,null,null,0,null,null,null,0]
[{"$f":"IF(B550=\"\",\"\",SUBTOTAL(3,$B$4:B550))","v":""},null,null,null,null,null,null,null,null,null,null,null,null,null,null,null,null,null,null,null,null,null,null,null,0,null,null,null,0]
[{"$f":"IF(B551=\"\",\"\",SUBTOTAL(3,$B$4:B551))","v":""},null,null,null,null,null,null,null,null,null,null,null,null,null,null,null,null,null,null,null,null,null,null,null,0,null,null,null,0]
[{"$f":"IF(B552=\"\",\"\",SUBTOTAL(3,$B$4:B552))","v":""},null,null,null,null,null,null,null,null,null,null,null,null,null,null,null,null,null,null,null,null,null,null,null,0,null,null,null,0]
[{"$f":"IF(B553=\"\",\"\",SUBTOTAL(3,$B$4:B553))","v":""},null,null,null,null,null,null,null,null,null,null,null,null,null,null,null,null,null,null,null,null,null,null,null,0,null,null,null,0]
[{"$f":"IF(B554=\"\",\"\",SUBTOTAL(3,$B$4:B554))","v":""},null,null,null,null,null,null,null,null,null,null,null,null,null,null,null,null,null,null,null,null,null,null,null,0,null,null,null,0]
[{"$f":"IF(B555=\"\",\"\",SUBTOTAL(3,$B$4:B555))","v":""},null,null,null,null,null,null,null,null,null,null,null,null,null,null,null,null,null,null,null,null,null,null,null,0,null,null,null,0]
[{"$f":"IF(B556=\"\",\"\",SUBTOTAL(3,$B$4:B556))","v":""},null,null,null,null,null,null,null,null,null,null,null,null,null,null,null,null,null,null,null,null,null,null,null,0,null,null,null,0]
[{"$f":"IF(B557=\"\",\"\",SUBTOTAL(3,$B$4:B557))","v":""},null,null,null,null,null,null,null,null,null,null,null,null,null,null,null,null,null,null,null,null,null,null,null,0,null,null,null,0]
[{"$f":"IF(B558=\"\",\"\",SUBTOTAL(3,$B$4:B558))","v":""},null,null,null,null,null,null,null,null,null,null,null,null,null,null,null,null,null,null,null,null,null,null,null,0,null,null,null,0]
[{"$f":"IF(B559=\"\",\"\",SUBTOTAL(3,$B$4:B559))","v":""},null,null,null,null,null,null,null,null,null,null,null,null,null,null,null,null,null,null,null,null,null,null,null,0,null,null,null,0]
[{"$f":"IF(B560=\"\",\"\",SUBTOTAL(3,$B$4:B560))","v":""},null,null,null,null,null,null,null,null,null,null,null,null,null,null,null,null,null,null,null,null,null,null,null,0,null,null,null,0]
[{"$f":"IF(B561=\"\",\"\",SUBTOTAL(3,$B$4:B561))","v":""},null,null,null,null,null,null,null,null,null,null,null,null,null,null,null,null,null,null,null,null,null,null,null,0,null,null,null,0]
[{"$f":"IF(B562=\"\",\"\",SUBTOTAL(3,$B$4:B562))","v":""},null,null,null,null,null,null,null,null,null,null,null,null,null,null,null,null,null,null,null,null,null,null,null,0,null,null,null,0]
[{"$f":"IF(B563=\"\",\"\",SUBTOTAL(3,$B$4:B563))","v":""},null,null,null,null,null,null,null,null,null,null,null,null,null,null,null,null,null,null,null,null,null,null,null,0,null,null,null,0]
[{"$f":"IF(B564=\"\",\"\",SUBTOTAL(3,$B$4:B564))","v":""},null,null,null,null,null,null,null,null,null,null,null,null,null,null,null,null,null,null,null,null,null,null,null,0,null,null,null,0]
[{"$f":"IF(B565=\"\",\"\",SUBTOTAL(3,$B$4:B565))","v":""},null,null,null,null,null,null,null,null,null,null,null,null,null,null,null,null,null,null,null,null,null,null,null,0,null,null,null,0]
[{"$f":"IF(B566=\"\",\"\",SUBTOTAL(3,$B$4:B566))","v":""},null,null,null,null,null,null,null,null,null,null,null,null,null,null,null,null,null,null,null,null,null,null,null,0,null,null,null,0]
[{"$f":"IF(B567=\"\",\"\",SUBTOTAL(3,$B$4:B567))","v":""},null,null,null,null,null,null,null,null,null,null,null,null,null,null,null,null,null,null,null,null,null,null,null,0,null,null,null,0]
[{"$f":"IF(B568=\"\",\"\",SUBTOTAL(3,$B$4:B568))","v":""},null,null,null,null,null,null,null,null,null,null,null,null,null,null,null,null,null,null,null,null,null,null,null,0,null,null,null,0]
[{"$f":"IF(B569=\"\",\"\",SUBTOTAL(3,$B$4:B569))","v":""},null,null,null,null,null,null,null,null,null,null,null,null,null,null,null,null,null,null,null,null,null,null,null,0,null,null,null,0]
[{"$f":"IF(B570=\"\",\"\",SUBTOTAL(3,$B$4:B570))","v":""},null,null,null,null,null,null,null,null,null,null,null,null,null,null,null,null,null,null,null,null,null,null,null,0,null,null,null,0]
[{"$f":"IF(B571=\"\",\"\",SUBTOTAL(3,$B$4:B571))","v":""},null,null,null,null,null,null,null,null,null,null,null,null,null,null,null,null,null,null,null,null,null,null,null,0,null,null,null,0]
[{"$f":"IF(B572=\"\",\"\",SUBTOTAL(3,$B$4:B572))","v":""},null,null,null,null,null,null,null,null,null,null,null,null,null,null,null,null,null,null,null,null,null,null,null,0,null,null,null,0]
[{"$f":"IF(B573=\"\",\"\",SUBTOTAL(3,$B$4:B573))","v":""},null,null,null,null,null,null,null,null,null,null,null,null,null,null,null,null,null,null,null,null,null,null,null,0,null,null,null,0]
[{"$f":"IF(B574=\"\",\"\",SUBTOTAL(3,$B$4:B574))","v":""},null,null,null,null,null,null,null,null,null,null,null,null,null,null,null,null,null,null,null,null,null,null,null,0,null,null,null,0]
[{"$f":"IF(B575=\"\",\"\",SUBTOTAL(3,$B$4:B575))","v":""},null,null,null,null,null,null,null,null,null,null,null,null,null,null,null,null,null,null,null,null,null,null,null,0,null,null,null,0]
[{"$f":"IF(B576=\"\",\"\",SUBTOTAL(3,$B$4:B576))","v":""},null,null,null,null,null,null,null,null,null,null,null,null,null,null,null,null,null,null,null,null,null,null,null,0,null,null,null,0]
[{"$f":"IF(B577=\"\",\"\",SUBTOTAL(3,$B$4:B577))","v":""},null,null,null,null,null,null,null,null,null,null,null,null,null,null,null,null,null,null,null,null,null,null,null,0,null,null,null,0]
[{"$f":"IF(B578=\"\",\"\",SUBTOTAL(3,$B$4:B578))","v":""},null,null,null,null,null,null,null,null,null,null,null,null,null,null,null,null,null,null,null,null,null,null,null,0,null,null,null,0]
[{"$f":"IF(B579=\"\",\"\",SUBTOTAL(3,$B$4:B579))","v":""},null,null,null,null,null,null,null,null,null,null,null,null,null,null,null,null,null,null,null,null,null,null,null,0,null,null,null,0]
[{"$f":"IF(B580=\"\",\"\",SUBTOTAL(3,$B$4:B580))","v":""},null,null,null,null,null,null,null,null,null,null,null,null,null,null,null,null,null,null,null,null,null,null,null,0,null,null,null,0]
[{"$f":"IF(B581=\"\",\"\",SUBTOTAL(3,$B$4:B581))","v":""},null,null,null,null,null,null,null,null,null,null,null,null,null,null,null,null,null,null,null,null,null,null,null,{"$f":"(I581*K581)+(L581*N581)+(O581*Q581)+(R581*T581)+SUM(U581:X581)","v":0},null,null,null,{"$f":"Y581-(Z581+AA581+AB581)","v":0}]
[{"$f":"IF(B582=\"\",\"\",SUBTOTAL(3,$B$4:B582))","v":""},null,null,null,null,null,null,null,null,null,null,null,null,null,null,null,null,null,null,null,null,null,null,null,0,null,null,null,0]
[{"$f":"IF(B583=\"\",\"\",SUBTOTAL(3,$B$4:B583))","v":""},null,null,null,null,null,null,null,null,null,null,null,null,null,null,null,null,null,null,null,null,null,null,null,0,null,null,null,0]
[{"$f":"IF(B584=\"\",\"\",SUBTOTAL(3,$B$4:B584))","v":""},null,null,null,null,null,null,null,null,null,null,null,null,null,null,null,null,null,null,null,null,null,null,null,0,null,null,null,0]
[{"$f":"IF(B585=\"\",\"\",SUBTOTAL(3,$B$4:B585))","v":""},null,null,null,null,null,null,null,null,null,null,null,null,null,null,null,null,null,null,null,null,null,null,null,0,null,null,null,0]
[{"$f":"IF(B586=\"\",\"\",SUBTOTAL(3,$B$4:B586))","v":""},null,null,null,null,null,null,null,null,null,null,null,null,null,null,null,null,null,null,null,null,null,null,null,0,null,null,null,0]
[{"$f":"IF(B587=\"\",\"\",SUBTOTAL(3,$B$4:B587))","v":""},null,null,null,null,null,null,null,null,null,null,null,null,null,null,null,null,null,null,null,null,null,null,null,0,null,null,null,0]
[{"$f":"IF(B588=\"\",\"\",SUBTOTAL(3,$B$4:B588))","v":""},null,null,null,null,null,null,null,null,null,null,null,null,null,null,null,null,null,null,null,null,null,null,null,0,null,null,null,0]
[{"$f":"IF(B589=\"\",\"\",SUBTOTAL(3,$B$4:B589))","v":""},null,null,null,null,null,null,null,null,null,null,null,null,null,null,null,null,null,null,null,null,null,null,null,0,null,null,null,0]
[{"$f":"IF(B590=\"\",\"\",SUBTOTAL(3,$B$4:B590))","v":""},null,null,null,null,null,null,null,null,null,null,null,null,null,null,null,null,null,null,null,null,null,null,null,0,null,null,null,0]
[{"$f":"IF(B591=\"\",\"\",SUBTOTAL(3,$B$4:B591))","v":""},null,null,null,null,null,null,null,null,null,null,null,null,null,null,null,null,null,null,null,null,null,null,null,0,null,null,null,0]
[{"$f":"IF(B592=\"\",\"\",SUBTOTAL(3,$B$4:B592))","v":""},null,null,null,null,null,null,null,null,null,null,null,null,null,null,null,null,null,null,null,null,null,null,null,0,null,null,null,0]
[{"$f":"IF(B593=\"\",\"\",SUBTOTAL(3,$B$4:B593))","v":""},null,null,null,null,null,null,null,null,null,null,null,null,null,null,null,null,null,null,null,null,null,null,null,0,null,null,null,0]
[{"$f":"IF(B594=\"\",\"\",SUBTOTAL(3,$B$4:B594))","v":""},null,null,null,null,null,null,null,null,null,null,null,null,null,null,null,null,null,null,null,null,null,null,null,0,null,null,null,0]
[{"$f":"IF(B595=\"\",\"\",SUBTOTAL(3,$B$4:B595))","v":""},null,null,null,null,null,null,null,null,null,null,null,null,null,null,null,null,null,null,null,null,null,null,null,0,null,null,null,0]
[{"$f":"IF(B596=\"\",\"\",SUBTOTAL(3,$B$4:B596))","v":""},null,null,null,null,null,null,null,null,null,null,null,null,null,null,null,null,null,null,null,null,null,null,null,0,null,null,null,0]
[{"$f":"IF(B597=\"\",\"\",SUBTOTAL(3,$B$4:B597))","v":""},null,null,null,null,null,null,null,null,null,null,null,null,null,null,null,null,null,null,null,null,null,null,null,0,null,null,null,0]
[{"$f":"IF(B598=\"\",\"\",SUBTOTAL(3,$B$4:B598))","v":""},null,null,null,null,null,null,null,null,null,null,null,null,null,null,null,null,null,null,null,null,null,null,null,0,null,null,null,0]
[{"$f":"IF(B599=\"\",\"\",SUBTOTAL(3,$B$4:B599))","v":""},null,null,null,null,null,null,null,null,null,null,null,null,null,null,null,null,null,null,null,null,null,null,null,0,null,null,null,0]
[{"$f":"IF(B600=\"\",\"\",SUBTOTAL(3,$B$4:B600))","v":""},null,null,null,null,null,null,null,null,null,null,null,null,null,null,null,null,null,null,null,null,null,null,null,0,null,null,null,0]
[{"$f":"IF(B601=\"\",\"\",SUBTOTAL(3,$B$4:B601))","v":""},null,null,null,null,null,null,null,null,null,null,null,null,null,null,null,null,null,null,null,null,null,null,null,0,null,null,null,0]
[{"$f":"IF(B602=\"\",\"\",SUBTOTAL(3,$B$4:B602))","v":""},null,null,null,null,null,null,null,null,null,null,null,null,null,null,null,null,null,null,null,null,null,null,null,0,null,null,null,0]
[{"$f":"IF(B603=\"\",\"\",SUBTOTAL(3,$B$4:B603))","v":""},null,null,null,null,null,null,null,null,null,null,null,null,null,null,null,null,null,null,null,null,null,null,null,0,null,null,null,0]
[{"$f":"IF(B604=\"\",\"\",SUBTOTAL(3,$B$4:B604))","v":""},null,null,null,null,null,null,null,null,null,null,null,null,null,null,null,null,null,null,null,null,null,null,null,0,null,null,null,0]
[{"$f":"IF(B605=\"\",\"\",SUBTOTAL(3,$B$4:B605))","v":""},null,null,null,null,null,null,null,null,null,null,null,null,null,null,null,null,null,null,null,null,null,null,null,0,null,null,null,0]
[{"$f":"IF(B606=\"\",\"\",SUBTOTAL(3,$B$4:B606))","v":""},null,null,null,null,null,null,null,null,null,null,null,null,null,null,null,null,null,null,null,null,null,null,null,0,null,null,null,0]
[{"$f":"IF(B607=\"\",\"\",SUBTOTAL(3,$B$4:B607))","v":""},null,null,null,null,null,null,null,null,null,null,null,null,null,null,null,null,null,null,null,null,null,null,null,0,null,null,null,0]
[{"$f":"IF(B608=\"\",\"\",SUBTOTAL(3,$B$4:B608))","v":""},null,null,null,null,null,null,null,null,null,null,null,null,null,null,null,null,null,null,null,null,null,null,null,0,null,null,null,0]
[{"$f":"IF(B609=\"\",\"\",SUBTOTAL(3,$B$4:B609))","v":""},null,null,null,null,null,null,null,null,null,null,null,null,null,null,null,null,null,null,null,null,null,null,null,0,null,null,null,0]
[{"$f":"IF(B610=\"\",\"\",SUBTOTAL(3,$B$4:B610))","v":""},null,null,null,null,null,null,null,null,null,null,null,null,null,null,null,null,null,null,null,null,null,null,null,0,null,null,null,0]
[{"$f":"IF(B611=\"\",\"\",SUBTOTAL(3,$B$4:B611))","v":""},null,null,null,null,null,null,null,null,null,null,null,null,null,null,null,null,null,null,null,null,null,null,null,0,null,null,null,0]
[{"$f":"IF(B612=\"\",\"\",SUBTOTAL(3,$B$4:B612))","v":""},null,null,null,null,null,null,null,null,null,null,null,null,null,null,null,null,null,null,null,null,null,null,null,0,null,null,null,0]
[{"$f":"IF(B613=\"\",\"\",SUBTOTAL(3,$B$4:B613))","v":""},null,null,null,null,null,null,null,null,null,null,null,null,null,null,null,null,null,null,null,null,null,null,null,0,null,null,null,0]
[{"$f":"IF(B614=\"\",\"\",SUBTOTAL(3,$B$4:B614))","v":""},null,null,null,null,null,null,null,null,null,null,null,null,null,null,null,null,null,null,null,null,null,null,null,0,null,null,null,0]
[{"$f":"IF(B615=\"\",\"\",SUBTOTAL(3,$B$4:B615))","v":""},null,null,null,null,null,null,null,null,null,null,null,null,null,null,null,null,null,null,null,null,null,null,null,0,null,null,null,0]
[{"$f":"IF(B616=\"\",\"\",SUBTOTAL(3,$B$4:B616))","v":""},null,null,null,null,null,null,null,null,null,null,null,null,null,null,null,null,null,null,null,null,null,null,null,0,null,null,null,0]
[{"$f":"IF(B617=\"\",\"\",SUBTOTAL(3,$B$4:B617))","v":""},null,null,null,null,null,null,null,null,null,null,null,null,null,null,null,null,null,null,null,null,null,null,null,0,null,null,null,0]
[{"$f":"IF(B618=\"\",\"\",SUBTOTAL(3,$B$4:B618))","v":""},null,null,null,null,null,null,null,null,null,null,null,null,null,null,null,null,null,null,null,null,null,null,null,0,null,null,null,0]
[{"$f":"IF(B619=\"\",\"\",SUBTOTAL(3,$B$4:B619))","v":""},null,null,null,null,null,null,null,null,null,null,null,null,null,null,null,null,null,null,null,null,null,null,null,0,null,null,null,0]
[{"$f":"IF(B620=\"\",\"\",SUBTOTAL(3,$B$4:B620))","v":""},null,null,null,null,null,null,null,null,null,null,null,null,null,null,null,null,null,null,null,null,null,null,null,0,null,null,null,0]
[{"$f":"IF(B621=\"\",\"\",SUBTOTAL(3,$B$4:B621))","v":""},null,null,null,null,null,null,null,null,null,null,null,null,null,null,null,null,null,null,null,null,null,null,null,0,null,null,null,0]
[{"$f":"IF(B622=\"\",\"\",SUBTOTAL(3,$B$4:B622))","v":""},null,null,null,null,null,null,null,null,null,null,null,null,null,null,null,null,null,null,null,null,null,null,null,0,null,null,null,0]
[{"$f":"IF(B623=\"\",\"\",SUBTOTAL(3,$B$4:B623))","v":""},null,null,null,null,null,null,null,null,null,null,null,null,null,null,null,null,null,null,null,null,null,null,null,0,null,null,null,0]
[{"$f":"IF(B624=\"\",\"\",SUBTOTAL(3,$B$4:B624))","v":""},null,null,null,null,null,null,null,null,null,null,null,null,null,null,null,null,null,null,null,null,null,null,null,0,null,null,null,0]
[{"$f":"IF(B625=\"\",\"\",SUBTOTAL(3,$B$4:B625))","v":""},null,null,null,null,null,null,null,null,null,null,null,null,null,null,null,null,null,null,null,null,null,null,null,0,null,null,null,0]
[{"$f":"IF(B626=\"\",\"\",SUBTOTAL(3,$B$4:B626))","v":""},null,null,null,null,null,null,null,null,null,null,null,null,null,null,null,null,null,null,null,null,null,null,null,0,null,null,null,0]
[{"$f":"IF(B627=\"\",\"\",SUBTOTAL(3,$B$4:B627))","v":""},null,null,null,null,null,null,null,null,null,null,null,null,null,null,null,null,null,null,null,null,null,null,null,0,null,null,null,0]
[{"$f":"IF(B628=\"\",\"\",SUBTOTAL(3,$B$4:B628))","v":""},null,null,null,null,null,null,null,null,null,null,null,null,null,null,null,null,null,null,null,null,null,null,null,0,null,null,null,0]
[{"$f":"IF(B629=\"\",\"\",SUBTOTAL(3,$B$4:B629))","v":""},null,null,null,null,null,null,null,null,null,null,null,null,null,null,null,null,null,null,null,null,null,null,null,0,null,null,null,0]
[{"$f":"IF(B630=\"\",\"\",SUBTOTAL(3,$B$4:B630))","v":""},null,null,null,null,null,null,null,null,null,null,null,null,null,null,null,null,null,null,null,null,null,null,null,0,null,null,null,0]
[{"$f":"IF(B631=\"\",\"\",SUBTOTAL(3,$B$4:B631))","v":""},null,null,null,null,null,null,null,null,null,null,null,null,null,null,null,null,null,null,null,null,null,null,null,0,null,null,null,0]
[{"$f":"IF(B632=\"\",\"\",SUBTOTAL(3,$B$4:B632))","v":""},null,null,null,null,null,null,null,null,null,null,null,null,null,null,null,null,null,null,null,null,null,null,null,0,null,null,null,0]
[{"$f":"IF(B633=\"\",\"\",SUBTOTAL(3,$B$4:B633))","v":""},null,null,null,null,null,null,null,null,null,null,null,null,null,null,null,null,null,null,null,null,null,null,null,0,null,null,null,0]
[{"$f":"IF(B634=\"\",\"\",SUBTOTAL(3,$B$4:B634))","v":""},null,null,null,null,null,null,null,null,null,null,null,null,null,null,null,null,null,null,null,null,null,null,null,0,null,null,null,0]
[{"$f":"IF(B635=\"\",\"\",SUBTOTAL(3,$B$4:B635))","v":""},null,null,null,null,null,null,null,null,null,null,null,null,null,null,null,null,null,null,null,null,null,null,null,0,null,null,null,0]
[{"$f":"IF(B636=\"\",\"\",SUBTOTAL(3,$B$4:B636))","v":""},null,null,null,null,null,null,null,null,null,null,null,null,null,null,null,null,null,null,null,null,null,null,null,0,null,null,null,0]
[{"$f":"IF(B637=\"\",\"\",SUBTOTAL(3,$B$4:B637))","v":""},null,null,null,null,null,null,null,null,null,null,null,null,null,null,null,null,null,null,null,null,null,null,null,0,null,null,null,0]
[{"$f":"IF(B638=\"\",\"\",SUBTOTAL(3,$B$4:B638))","v":""},null,null,null,null,null,null,null,null,null,null,null,null,null,null,null,null,null,null,null,null,null,null,null,0,null,null,null,0]
[{"$f":"IF(B639=\"\",\"\",SUBTOTAL(3,$B$4:B639))","v":""},null,null,null,null,null,null,null,null,null,null,null,null,null,null,null,null,null,null,null,null,null,null,null,0,null,null,null,0]
[{"$f":"IF(B640=\"\",\"\",SUBTOTAL(3,$B$4:B640))","v":""},null,null,null,null,null,null,null,null,null,null,null,null,null,null,null,null,null,null,null,null,null,null,null,0,null,null,null,0]
[{"$f":"IF(B641=\"\",\"\",SUBTOTAL(3,$B$4:B641))","v":""},null,null,null,null,null,null,null,null,null,null,null,null,null,null,null,null,null,null,null,null,null,null,null,0,null,null,null,0]
[{"$f":"IF(B642=\"\",\"\",SUBTOTAL(3,$B$4:B642))","v":""},null,null,null,null,null,null,null,null,null,null,null,null,null,null,null,null,null,null,null,null,null,null,null,0,null,null,null,0]
[{"$f":"IF(B643=\"\",\"\",SUBTOTAL(3,$B$4:B643))","v":""},null,null,null,null,null,null,null,null,null,null,null,null,null,null,null,null,null,null,null,null,null,null,null,0,null,null,null,0]
[{"$f":"IF(B644=\"\",\"\",SUBTOTAL(3,$B$4:B644))","v":""},null,null,null,null,null,null,null,null,null,null,null,null,null,null,null,null,null,null,null,null,null,null,null,0,null,null,null,0]
[{"$f":"IF(B645=\"\",\"\",SUBTOTAL(3,$B$4:B645))","v":""},null,null,null,null,null,null,null,null,null,null,null,null,null,null,null,null,null,null,null,null,null,null,null,{"$f":"(I645*K645)+(L645*N645)+(O645*Q645)+(R645*T645)+SUM(U645:X645)","v":0},null,null,null,{"$f":"Y645-(Z645+AA645+AB645)","v":0}]
[{"$f":"IF(B646=\"\",\"\",SUBTOTAL(3,$B$4:B646))","v":""},null,null,null,null,null,null,null,null,null,null,null,null,null,null,null,null,null,null,null,null,null,null,null,0,null,null,null,0]
[{"$f":"IF(B647=\"\",\"\",SUBTOTAL(3,$B$4:B647))","v":""},null,null,null,null,null,null,null,null,null,null,null,null,null,null,null,null,null,null,null,null,null,null,null,0,null,null,null,0]
[{"$f":"IF(B648=\"\",\"\",SUBTOTAL(3,$B$4:B648))","v":""},null,null,null,null,null,null,null,null,null,null,null,null,null,null,null,null,null,null,null,null,null,null,null,0,null,null,null,0]
[{"$f":"IF(B649=\"\",\"\",SUBTOTAL(3,$B$4:B649))","v":""},null,null,null,null,null,null,null,null,null,null,null,null,null,null,null,null,null,null,null,null,null,null,null,0,null,null,null,0]
[{"$f":"IF(B650=\"\",\"\",SUBTOTAL(3,$B$4:B650))","v":""},null,null,null,null,null,null,null,null,null,null,null,null,null,null,null,null,null,null,null,null,null,null,null,0,null,null,null,0]
[{"$f":"IF(B651=\"\",\"\",SUBTOTAL(3,$B$4:B651))","v":""},null,null,null,null,null,null,null,null,null,null,null,null,null,null,null,null,null,null,null,null,null,null,null,0,null,null,null,0]
[{"$f":"IF(B652=\"\",\"\",SUBTOTAL(3,$B$4:B652))","v":""},null,null,null,null,null,null,null,null,null,null,null,null,null,null,null,null,null,null,null,null,null,null,null,0,null,null,null,0]
[{"$f":"IF(B653=\"\",\"\",SUBTOTAL(3,$B$4:B653))","v":""},null,null,null,null,null,null,null,null,null,null,null,null,null,null,null,null,null,null,null,null,null,null,null,0,null,null,null,0]
[{"$f":"IF(B654=\"\",\"\",SUBTOTAL(3,$B$4:B654))","v":""},null,null,null,null,null,null,null,null,null,null,null,null,null,null,null,null,null,null,null,null,null,null,null,0,null,null,null,0]
[{"$f":"IF(B655=\"\",\"\",SUBTOTAL(3,$B$4:B655))","v":""},null,null,null,null,null,null,null,null,null,null,null,null,null,null,null,null,null,null,null,null,null,null,null,0,null,null,null,0]
[{"$f":"IF(B656=\"\",\"\",SUBTOTAL(3,$B$4:B656))","v":""},null,null,null,null,null,null,null,null,null,null,null,null,null,null,null,null,null,null,null,null,null,null,null,0,null,null,null,0]
[{"$f":"IF(B657=\"\",\"\",SUBTOTAL(3,$B$4:B657))","v":""},null,null,null,null,null,null,null,null,null,null,null,null,null,null,null,null,null,null,null,null,null,null,null,0,null,null,null,0]
[{"$f":"IF(B658=\"\",\"\",SUBTOTAL(3,$B$4:B658))","v":""},null,null,null,null,null,null,null,null,null,null,null,null,null,null,null,null,null,null,null,null,null,null,null,0,null,null,null,0]
[{"$f":"IF(B659=\"\",\"\",SUBTOTAL(3,$B$4:B659))","v":""},null,null,null,null,null,null,null,null,null,null,null,null,null,null,null,null,null,null,null,null,null,null,null,0,null,null,null,0]
[{"$f":"IF(B660=\"\",\"\",SUBTOTAL(3,$B$4:B660))","v":""},null,null,null,null,null,null,null,null,null,null,null,null,null,null,null,null,null,null,null,null,null,null,null,0,null,null,null,0]
[{"$f":"IF(B661=\"\",\"\",SUBTOTAL(3,$B$4:B661))","v":""},null,null,null,null,null,null,null,null,null,null,null,null,null,null,null,null,null,null,null,null,null,null,null,0,null,null,null,0]
[{"$f":"IF(B662=\"\",\"\",SUBTOTAL(3,$B$4:B662))","v":""},null,null,null,null,null,null,null,null,null,null,null,null,null,null,null,null,null,null,null,null,null,null,null,0,null,null,null,0]
[{"$f":"IF(B663=\"\",\"\",SUBTOTAL(3,$B$4:B663))","v":""},null,null,null,null,null,null,null,null,null,null,null,null,null,null,null,null,null,null,null,null,null,null,null,0,null,null,null,0]
[{"$f":"IF(B664=\"\",\"\",SUBTOTAL(3,$B$4:B664))","v":""},null,null,null,null,null,null,null,null,null,null,null,null,null,null,null,null,null,null,null,null,null,null,null,0,null,null,null,0]
[{"$f":"IF(B665=\"\",\"\",SUBTOTAL(3,$B$4:B665))","v":""},null,null,null,null,null,null,null,null,null,null,null,null,null,null,null,null,null,null,null,null,null,null,null,0,null,null,null,0]
[{"$f":"IF(B666=\"\",\"\",SUBTOTAL(3,$B$4:B666))","v":""},null,null,null,null,null,null,null,null,null,null,null,null,null,null,null,null,null,null,null,null,null,null,null,0,null,null,null,0]
[{"$f":"IF(B667=\"\",\"\",SUBTOTAL(3,$B$4:B667))","v":""},null,null,null,null,null,null,null,null,null,null,null,null,null,null,null,null,null,null,null,null,null,null,null,0,null,null,null,0]
[{"$f":"IF(B668=\"\",\"\",SUBTOTAL(3,$B$4:B668))","v":""}]
[{"$f":"IF(B669=\"\",\"\",SUBTOTAL(3,$B$4:B669))","v":""}]
[{"$f":"IF(B670=\"\",\"\",SUBTOTAL(3,$B$4:B670))","v":""}]
[{"$f":"IF(B671=\"\",\"\",SUBTOTAL(3,$B$4:B671))","v":""}]
[{"$f":"IF(B672=\"\",\"\",SUBTOTAL(3,$B$4:B672))","v":""}]
[{"$f":"IF(B673=\"\",\"\",SUBTOTAL(3,$B$4:B673))","v":""}]
[{"$f":"IF(B674=\"\",\"\",SUBTOTAL(3,$B$4:B674))","v":""}]
[{"$f":"IF(B675=\"\",\"\",SUBTOTAL(3,$B$4:B675))","v":""}]
[{"$f":"IF(B676=\"\",\"\",SUBTOTAL(3,$B$4:B676))","v":""}]
[{"$f":"IF(B677=\"\",\"\",SUBTOTAL(3,$B$4:B677))","v":""}]
[{"$f":"IF(B678=\"\",\"\",SUBTOTAL(3,$B$4:B678))","v":""}]
[{"$f":"IF(B679=\"\",\"\",SUBTOTAL(3,$B$4:B679))","v":""}]
[{"$f":"IF(B680=\"\",\"\",SUBTOTAL(3,$B$4:B680))","v":""}]
[{"$f":"IF(B681=\"\",\"\",SUBTOTAL(3,$B$4:B681))","v":""}]
[{"$f":"IF(B682=\"\",\"\",SUBTOTAL(3,$B$4:B682))","v":""}]
[{"$f":"IF(B683=\"\",\"\",SUBTOTAL(3,$B$4:B683))","v":""}]
[{"$f":"IF(B684=\"\",\"\",SUBTOTAL(3,$B$4:B684))","v":""}]
[{"$f":"IF(B685=\"\",\"\",SUBTOTAL(3,$B$4:B685))","v":""}]
[{"$f":"IF(B686=\"\",\"\",SUBTOTAL(3,$B$4:B686))","v":""}]
[{"$f":"IF(B687=\"\",\"\",SUBTOTAL(3,$B$4:B687))","v":""}]
[{"$f":"IF(B688=\"\",\"\",SUBTOTAL(3,$B$4:B688))","v":""}]
[{"$f":"IF(B689=\"\",\"\",SUBTOTAL(3,$B$4:B689))","v":""}]
[{"$f":"IF(B690=\"\",\"\",SUBTOTAL(3,$B$4:B690))","v":""}]
[{"$f":"IF(B691=\"\",\"\",SUBTOTAL(3,$B$4:B691))","v":""}]
[{"$f":"IF(B692=\"\",\"\",SUBTOTAL(3,$B$4:B692))","v":""}]
[{"$f":"IF(B693=\"\",\"\",SUBTOTAL(3,$B$4:B693))","v":""}]

{"sheet":"إستدعاء برقم الفاتورة","index":55,"n_rows":24,"n_cols":6,"rows_kept":24,"cut":false,"hidden":false,"merged":[[30,1,30,2],[30,3,30,5],[5,1,5,5],[19,1,19,2],[20,1,20,4],[21,1,21,4],[22,1,22,4],[23,1,25,4],[23,5,25,5]]}
[]
[]
[]
[null,null,null,"بمجرد اختيار رقم الفاتورة من القائمة المنسدلة سوف يتم جلب بيانات الفاتورة المختارة بالمعادلات"]
[]
[]
[null,null,"فاتورة مشتريات","رقم الفاتورة ",2]
[null,"رقم الرحلة",{"$f":"IFERROR(INDEX('فواتير المشتريات الكلية'!$C$4:$C$1000,MATCH($E$7,'فواتير المشتريات الكلية'!$B$4:$B$1000,0)),\"\")","v":"R101"},null,"اسم المرشد ",{"$f":"IFERROR(IF(INDEX(البيانات!$E$2:$E$1000,MATCH($C$8,البيانات!$B$2:$B$1000,0))=\"\",\"\",INDEX(البيانات!$E$2:$E$1000,MATCH($C$8,البيانات!$B$2:$B$1000,0))),\"\")","v":"حذيفه"}]
[null,"تاريخ الرحلة",{"$f":"IFERROR(IF(INDEX(البيانات!$D$2:$D$1000,MATCH($C$8,البيانات!$B$2:$B$1000,0))=\"\",\"\",INDEX(البيانات!$D$2:$D$1000,MATCH($C$8,البيانات!$B$2:$B$1000,0))),\"\")","v":""},null,"فندق المدينة المنورة",{"$f":"IFERROR(IF(INDEX(البيانات!$F$2:$F$1000,MATCH($C$8,البيانات!$B$2:$B$1000,0))=\"\",\"\",INDEX(البيانات!$F$2:$F$1000,MATCH($C$8,البيانات!$B$2:$B$1000,0))),\"\")","v":""}]
[null,"نوع الرحلة ",{"$f":"IFERROR(IF(INDEX(البيانات!$C$2:$C$1000,MATCH($C$8,البيانات!$B$2:$B$1000,0))=\"\",\"\",INDEX(البيانات!$C$2:$C$1000,MATCH($C$8,البيانات!$B$2:$B$1000,0))),\"\")","v":"حافلات VIP"},null,"فندق مكة المكرمة ",{"$f":"IFERROR(IF(INDEX(البيانات!$G$2:$G$1000,MATCH($C$8,البيانات!$B$2:$B$1000,0))=\"\",\"\",INDEX(البيانات!$G$2:$G$1000,MATCH($C$8,البيانات!$B$2:$B$1000,0))),\"\")","v":""}]
[null,"نوع الغرفة","عدد الغرف ","عدد المعتمرين","السعر ","الاجمالي"]
[null,"الثنائية                   ",{"$f":"IFERROR(INDEX('فواتير المشتريات الكلية'!$I$4:$I$1000,MATCH($E$7,'فواتير المشتريات الكلية'!$B$4:$B$1000,0)),\"\")","v":3},{"$f":"IFERROR(INDEX('فواتير المشتريات الكلية'!$J$4:$J$1000,MATCH($E$7,'فواتير المشتريات الكلية'!$B$4:$B$1000,0)),\"\")","v":6},{"$f":"IFERROR(INDEX('فواتير المشتريات الكلية'!$K$4:$K$1000,MATCH($E$7,'فواتير المشتريات الكلية'!$B$4:$B$1000,0)),\"\")","v":40},{"$f":"D12*E12","v":240}]
[null,"الثلاثية                   ",{"$f":"IFERROR(INDEX('فواتير المشتريات الكلية'!$L$4:$L$1000,MATCH($E$7,'فواتير المشتريات الكلية'!$B$4:$B$1000,0)),\"\")","v":0},{"$f":"IFERROR(INDEX('فواتير المشتريات الكلية'!$M$4:$M$1000,MATCH($E$7,'فواتير المشتريات الكلية'!$B$4:$B$1000,0)),\"\")","v":0},{"$f":"IFERROR(INDEX('فواتير المشتريات الكلية'!$N$4:$N$1000,MATCH($E$7,'فواتير المشتريات الكلية'!$B$4:$B$1000,0)),\"\")","v":0},{"$f":"D13*E13","v":0}]
[null,"الرباعية                  ",{"$f":"IFERROR(INDEX('فواتير المشتريات الكلية'!$O$4:$O$1000,MATCH($E$7,'فواتير المشتريات الكلية'!$B$4:$B$1000,0)),\"\")","v":0},{"$f":"IFERROR(INDEX('فواتير المشتريات الكلية'!$P$4:$P$1000,MATCH($E$7,'فواتير المشتريات الكلية'!$B$4:$B$1000,0)),\"\")","v":0},{"$f":"IFERROR(INDEX('فواتير المشتريات الكلية'!$Q$4:$Q$1000,MATCH($E$7,'فواتير المشتريات الكلية'!$B$4:$B$1000,0)),\"\")","v":0},0]
[null,"الخماسية ",{"$f":"IFERROR(INDEX('فواتير المشتريات الكلية'!$R$4:$R$1000,MATCH($E$7,'فواتير المشتريات الكلية'!$B$4:$B$1000,0)),\"\")","v":2},{"$f":"IFERROR(INDEX('فواتير المشتريات الكلية'!$S$4:$S$1000,MATCH($E$7,'فواتير المشتريات الكلية'!$B$4:$B$1000,0)),\"\")","v":10},{"$f":"IFERROR(INDEX('فواتير المشتريات الكلية'!$T$4:$T$1000,MATCH($E$7,'فواتير المشتريات الكلية'!$B$4:$B$1000,0)),\"\")","v":85},850]
[null,"تكاليف اخرى",null,null,null,{"$f":"IFERROR(INDEX('فواتير المشتريات الكلية'!$U$4:$U$1000,MATCH($E$7,'فواتير المشتريات الكلية'!$B$4:$B$1000,0)),\"\")","v":0}]
[null,"التأشيرة بدون مقعد  ",null,null,null,{"$f":"IFERROR(INDEX('فواتير المشتريات الكلية'!$V$4:$V$1000,MATCH($E$7,'فواتير المشتريات الكلية'!$B$4:$B$1000,0)),\"\")","v":0}]
[null,"التأشيرة + مقعد ",null,null,null,{"$f":"IFERROR(INDEX('فواتير المشتريات الكلية'!$W$4:$W$1000,MATCH($E$7,'فواتير المشتريات الكلية'!$B$4:$B$1000,0)),\"\")","v":0}]
[null,"اخرى ",null,null,null,{"$f":"IFERROR(INDEX('فواتير المشتريات الكلية'!$X$4:$X$1000,MATCH($E$7,'فواتير المشتريات الكلية'!$B$4:$B$1000,0)),\"\")","v":0}]
[null,"مجموع المعتمريـن",null,{"$f":"SUM(D12:D19)","v":16},"الاجمالي / دينار",{"$f":"SUM(F12:F19)","v":1090}]
[null,"المرشد / (  يطرح ) ",null,null,null,{"$f":"IFERROR(INDEX('فواتير المشتريات الكلية'!$Z$4:$Z$1000,MATCH($E$7,'فواتير المشتريات الكلية'!$B$4:$B$1000,0)),\"\")","v":20}]
[null,"عمولة مندوبين، مصاريف",null,null,null,{"$f":"IFERROR(INDEX('فواتير المشتريات الكلية'!$AA$4:$AA$1000,MATCH($E$7,'فواتير المشتريات الكلية'!$B$4:$B$1000,0)),\"\")","v":10}]
[null,"اخرى ",null,null,null,{"$f":"IFERROR(INDEX('فواتير المشتريات الكلية'!$AB$4:$AB$1000,MATCH($E$7,'فواتير المشتريات الكلية'!$B$4:$B$1000,0)),\"\")","v":30}]
[null," صافى المشتريات",null,null,null,{"$f":"F20-F21-F22-F23","v":1030}]